Workbook

Sheet Conso Validation (hidden)
A8: =IF(_xll.EPMRetrieveData(,"CONSOLIDATED")=0,"CONSOLIDATED","IMPACTED") -> IMPACTED

Sheet Cover Page
C20: T3
C27: Relations avec les investisseurs, BCE
C28: Richard Bengian
C29: 514-786-8219
C30: richard.bengian@bell.ca

Sheet BCE Inc. IS Summary p2
M1: BCE (1)
M2: Données opérationnelles consolidées
C5: T3 | D5: T3 | F5: Variation | G5: % de | I5: Cumul | J5: Cumul | L5: Variation | M5: % de
A6: (en millions de dollars canadiens, sauf les montants liés aux actions) (non audité) | C6: 2025 | D6: 2024 | F6: ($) | G6: variation | I6: 2025 | J6: 2024 | L6: ($) | M6: variation
A7: Produits d’exploitation
A8: Tirés des services | C8: 5329 | D8: 5286 | F8: 43 | G8: 0.008134695422 | I8: 15768 | J8: 15786 | L8: -18 | M8: -0.001140250855
A9: Tirés des produits | C9: 720 | D9: 685 | F9: 35 | G9: 0.05109489051 | I9: 2296 | J9: 2201 | L9: 95 | M9: 0.043162199
A10: Total des produits d’exploitation | C10: 6049 | D10: 5971 | F10: 78 | G10: 0.0130631385 | I10: 18064 | J10: 17987 | L10: 77 | M10: 0.004280869517
A11: Coûts d’exploitation | C11: -3287 | D11: -3249 | F11: -38 | G11: -0.01169590643 | I11: -10070 | J11: -10003 | L11: -67 | M11: -0.006697990603
A12: BAIIA ajusté (A) | C12: 2762 | D12: 2722 | F12: 40 | G12: 0.01469507715 | I12: 7994 | J12: 7984 | L12: 10 | M12: 0.00125250501
A13: Marge du BAIIA ajusté (B) (3) | C13: 45,7 % | D13: 0.456 | G13: 0.1 | I13: 44,3 % | J13: 0.444 | M13: -0.1
A14: Coûts liés aux indemnités de départ, aux acquisitions et autres | C14: -82 | D14: -49 | F14: -33 | G14: -0.6734693878 | I14: -370 | J14: -300 | L14: -70 | M14: -0.2333333333
A15: Amortissement des immobilisations corporelles | C15: -969 | D15: -934 | F15: -35 | G15: -0.0374732334 | I15: -2859 | J15: -2825 | L15: -34 | M15: -0.01203539823
A16: Amortissement des immobilisations incorporelles | C16: -340 | D16: -325 | F16: -15 | G16: -0.04615384615 | I16: -1009 | J16: -966 | L16: -43 | M16: -0.04451345756
A17: Charges financières
A18: Charges d’intérêts | C18: -457 | D18: -440 | F18: -17 | G18: -0.03863636364 | I18: -1322 | J18: -1282 | L18: -40 | M18: -0.03120124805
A19: Rendements nets au titre des régimes d’avantages postérieurs à l’emploi | C19: 26 | D19: 16 | F19: 10 | G19: 0.625 | I19: 77 | J19: 49 | L19: 28 | M19: 0.5714285714
A20: Perte de valeur d’actifs | C20: -970 | D20: -2113 | F20: 1143 | G20: 0.5409370563 | I20: -987 | J20: -2186 | L20: 1199 | M20: 0.5484903934
A21: Profits sur placements | C21: 5175 | D21: 66 | F21: 5109 | G21: n.s. | I21: 5165 | J21: 58 | L21: 5107 | M21: n.s.
A22: Autres (charges) produits | C22: -95 | D22: -129 | F22: 34 | G22: 0.2635658915 | I22: 185 | J22: -260 | L22: 445 | M22: n.s.
A23: Impôt sur le résultat | C23: -495 | D23: -5 | F23: -490 | G23: n.s. | I23: -992 | J23: -402 | L23: -590 | M23: n.s.
A24: Bénéfice net (perte nette) | C24: 4555 | D24: -1191 | F24: 5746 | G24: n.s. | I24: 5882 | J24: -130 | L24: 6012 | M24: n.s.
A26: Bénéfice net (perte nette) attribuable aux :
A27: Actionnaires ordinaires | C27: 4502 | D27: -1237 | F27: 5739 | G27: n.s. | I27: 5711 | J27: -298 | L27: 6009 | M27: n.s.
A28: Actionnaires privilégiés | C28: 38 | D28: 45 | F28: -7 | G28: -0.1555555556 | I28: 119 | J28: 138 | L28: -19 | M28: -0.1376811594
A29: Détenteurs de participations ne donnant pas le contrôle (PNDPC) | C29: 15 | D29: 1 | F29: 14 | G29: n.s. | I29: 52 | J29: 30 | L29: 22 | M29: 0.7333333333
A30: Bénéfice net (perte nette) | C30: 4555 | D30: -1191 | F30: 5746 | G30: n.s. | I30: 5882 | J30: -130 | L30: 6012 | M30: n.s.
A32: Bénéfice net (perte nette) par action ordinaire – de base et dilué | C32: 4.844094828 | D32: -1.36 | F32: 6.2 | G32: n.s. | I32: 6.154094828 | J32: -0.33 | K32: 0 | L32: 6.48 | M32: n.s.
A34: Dividendes par action ordinaire | C34: 0.4375 | D34: 0.9975 | F34: -0.56 | G34: -0.5614035088 | I34: 1.8725 | J34: 2.9925 | L34: -1.12 | M34: -0.3742690058
A36: Nombre moyen pondéré d’actions ordinaires en circulation – de base (en millions) | C36: 932.5 | D36: 912.3 | I36: 928 | J36: 912.3
A37: Nombre moyen pondéré d’actions ordinaires en circulation – dilué (en millions) | C37: 932.5 | D37: 912.3 | I37: 928 | J37: 912.3
A38: Nombre d’actions ordinaires en circulation (en millions) | C38: 932.5 | D38: 912.3 | I38: 932.5 | J38: 912.3
A40: Bénéfice net ajusté et BPA ajusté
A41: Bénéfice net (perte nette) attribuable aux actionnaires ordinaires | C41: 4502 | D41: -1237 | F41: 5739 | G41: n.s. | I41: 5711 | J41: -298 | L41: 6009 | M41: n.s.
A42: Éléments de rapprochement :
A43: Coûts liés aux indemnités de départ, aux acquisitions et autres | C43: 82 | D43: 49 | F43: 33 | G43: 0.6734693878 | I43: 370 | J43: 300 | L43: 70 | M43: 0.2333333333
A44: (Profits nets) pertes nettes lié(e)s à la valeur de marché sur dérivés utilisés à titre de couverture économique des régimes de rémunération fondée sur des actions qui sont réglés en instruments de capitaux propres | C44: -31 | D44: -42 | F44: 11 | G44: 0.2619047619 | I44: 11 | J44: 71 | L44: -60 | M44: -0.8450704225
A45: Pertes nettes sur participations mises en équivalence dans des entreprises associées et des coentreprises | C45: 0 | D45: 154 | F45: -154 | G45: -1 | I45: 0 | J45: 247 | L45: -247 | M45: -1
A46: Profits nets sur placements | C46: -5175 | D46: -66 | F46: -5109 | G46: n.s. | I46: -5165 | J46: -58 | L46: -5107 | M46: n.s.
A47: Coûts (profits) liés au remboursement anticipé de titres d’emprunt | C47: 154 | D47: 0 | F47: 154 | G47: n.s. | I47: -203 | J47: 0 | L47: -203 | M47: n.s.
A48: Perte de valeur d’actifs | C48: 970 | D48: 2113 | F48: -1143 | G48: -0.5409370563 | I48: 987 | J48: 2186 | L48: -1199 | M48: -0.5484903934
A49: Impôt lié aux éléments de rapprochement ci-dessus | C49: 239 | D49: -258 | F49: 497 | G49: n.s. | I49: 255 | J49: -368 | L49: 623 | M49: n.s.
A50: PNDPC liées aux éléments de rapprochement ci-dessus | C50: -8 | D50: -25 | F50: 17 | G50: 0.68 | I50: -8 | J50: -26 | L50: 18 | M50: 0.6923076923
A51: Bénéfice net ajusté (A) | C51: 733 | D51: 688 | F51: 45 | G51: 0.06540697674 | I51: 1958 | J51: 2054 | L51: -96 | M51: -0.04673807205
A52: BPA ajusté (A) | C52: 0.7899137931 | D52: 0.75 | F52: 0.04 | G52: 0.05333333333 | I52: 2.109913793 | J52: 2.25 | L52: -0.14 | M52: -0.06222222222
A53: n.s. : non significatif
A55: (A) | B55: Le BAIIA ajusté représente un total des mesures sectorielles, le bénéfice net ajusté est une mesure financière non conforme aux PCGR et le BPA ajusté est un ratio non conforme aux PCGR. Se reporter à la note 2.3, Total des mesures sectorielles, à la note 2.1, Mesures financières non conformes aux PCGR et à la note 2.2, Ratios non conformes aux PCGR dans les notes annexes du présent rapport pour en savoir plus sur ces mesures.
A56: (B) | B56: La marge du BAIIA ajusté est définie comme le BAIIA ajusté divisé par les produits d’exploitation.

Sheet DS_INTERNAL_SNIP_STORAGE (hidden)
A1: 1761922431527 | B1: YCSE7TXQAVY6GQANR3XMGM45A0D5G0FKQT3B6TE59SS2VQ4DZKX0 | C1: Amelie Theroux-Lemay | D1: 0 | E1: 1761929057671 | F1: 6YKX281ZRYRTZXQAD981N4A32TVHFVF0JV0V4G2S86YV9V3QGVWG | G1: Caroline Delaney | H1: 0

Sheet DS_INTERNAL_SETTINGS_STORAGE (hidden)
A1: 1761922431983 | B1: YCSE7TXQAVY6GQANR3XMGM45A0D5G0FKQT3B6TE59SS2VQ4DZKX0 | C1: Amelie Theroux-Lemay | D1: 5 | E1: 1761929057285 | F1: 6YKX281ZRYRTZXQAD981N4A32TVHFVF0JV0V4G2S86YV9V3QGVWG | G1: Caroline Delaney | H1: 0
A2: 1761922432047 | B2: Create | C2: 4a28d780-1415-4582-95db-efce8e4dafc3 | D2: {"id":"4a28d780-1415-4582-95db-efce8e4dafc3","type":1,"name":"workbookId","value":"8e7efcac-7191-45f5-ade6-99f7d5522c5e"}
A3: 1761922432053 | B3: Create | C3: de5e5d94-2ae8-401f-8cf9-afea3eca9dab | D3: {"id":"de5e5d94-2ae8-401f-8cf9-afea3eca9dab","type":0,"name":"dataSnipperSheetDeleted","value":"false"}
A4: 1761922432053 | B4: Create | C4: 3419e2eb-cf85-4cbd-a4cc-4baeedaaefd7 | D4: {"id":"3419e2eb-cf85-4cbd-a4cc-4baeedaaefd7","type":0,"name":"embed-documents","value":"true"}
A5: 1761922432053 | B5: Create | C5: 7de46b48-4f91-45a5-8022-19bb6edbcb1b | D5: {"id":"7de46b48-4f91-45a5-8022-19bb6edbcb1b","type":0,"name":"table-snip-suggestions","value":"true"}
A6: 1761922432053 | B6: Create | C6: 589e2cb7-7aab-43d0-b360-8cba3153ed4f | D6: {"id":"589e2cb7-7aab-43d0-b360-8cba3153ed4f","type":1,"name":"migratedFssProjectId","value":""}

Sheet DS_INTERNAL_DOCGROUP_STORAGE (hidden)
A1: 1761922432013 | B1: YCSE7TXQAVY6GQANR3XMGM45A0D5G0FKQT3B6TE59SS2VQ4DZKX0 | C1: Amelie Theroux-Lemay | D1: 0 | E1: 1761929057654 | F1: 6YKX281ZRYRTZXQAD981N4A32TVHFVF0JV0V4G2S86YV9V3QGVWG | G1: Caroline Delaney | H1: 0

Sheet DS_INTERNAL_DOCUMENT_STORAGE (hidden)
A1: 1761922432046 | B1: YCSE7TXQAVY6GQANR3XMGM45A0D5G0FKQT3B6TE59SS2VQ4DZKX0 | C1: Amelie Theroux-Lemay | D1: 0 | E1: 1761929057664 | F1: 6YKX281ZRYRTZXQAD981N4A32TVHFVF0JV0V4G2S86YV9V3QGVWG | G1: Caroline Delaney | H1: 0

Sheet BCE Inc. IS HIST p3
M1: BCE
M2: Données opérationnelles consolidées – Tendance historique
B5: Cumul | H5: TOTAL
A6: (en millions de dollars canadiens, sauf les montants liés aux actions) (non audité) | B6: 2025 | D6: T3 25 | E6: T2 25 | F6: T1 25 | H6: 2024 | J6: T4 24 | K6: T3 24 | L6: T2 24 | M6: T1 24
A7: Produits d’exploitation
A8: Tirés des services | B8: 15768 | D8: 5329 | E8: 5267 | F8: 5172 | H8: 21073 | J8: 5287 | K8: 5286 | L8: 5308 | M8: 5192
A9: Tirés des produits | B9: 2296 | D9: 720 | E9: 818 | F9: 758 | H9: 3336 | J9: 1135 | K9: 685 | L9: 697 | M9: 819
A10: Total des produits d’exploitation | B10: 18064 | D10: 6049 | E10: 6085 | F10: 5930 | H10: 24409 | J10: 6422 | K10: 5971 | L10: 6005 | M10: 6011
A11: Coûts d’exploitation | B11: -10070 | D11: -3287 | E11: -3411 | F11: -3372 | H11: -13820 | J11: -3817 | K11: -3249 | L11: -3308 | M11: -3446
A12: BAIIA ajusté | B12: 7994 | D12: 2762 | E12: 2674 | F12: 2558 | H12: 10589 | J12: 2605 | K12: 2722 | L12: 2697 | M12: 2565
A13: Marge du BAIIA ajusté | B13: 0.4425376439 | D13: 0.4566043974 | E13: 0.439 | F13: 0.431 | H13: 0.434 | J13: 0.406 | K13: 0.456 | L13: 0.449 | M13: 0.427
A14: Coûts liés aux indemnités de départ, aux acquisitions et autres | B14: -370 | D14: -82 | E14: -41 | F14: -247 | H14: -454 | J14: -154 | K14: -49 | L14: -22 | M14: -229
A15: Amortissement des immobilisations corporelles | B15: -2859 | D15: -969 | E15: -949 | F15: -941 | H15: -3758 | J15: -933 | K15: -934 | L15: -945 | M15: -946
A16: Amortissement des immobilisations incorporelles | B16: -1009 | D16: -340 | E16: -338 | F16: -331 | H16: -1283 | J16: -317 | K16: -325 | L16: -325 | M16: -316
A17: Charges financières
A18: Charges d’intérêts | B18: -1322 | D18: -457 | E18: -442 | F18: -423 | H18: -1713 | J18: -431 | K18: -440 | L18: -426 | M18: -416
A19: Rendements nets au titre des régimes d’avantages postérieurs à l’emploi | B19: 77 | D19: 26 | E19: 26 | F19: 25 | H19: 66 | J19: 17 | K19: 16 | L19: 17 | M19: 16
A20: Perte de valeur d’actifs | B20: -987 | D20: -970 | E20: -8 | F20: -9 | H20: -2190 | J20: -4 | K20: -2113 | L20: -60 | M20: -13
A21: Profits (pertes) sur placements | B21: 5165 | D21: 5175 | E21: -8 | F21: -2 | H21: 57 | J21: -1 | K21: 66 | L21: -2 | M21: -6
A22: Autres produits (charges) | B22: 185 | D22: -95 | E22: -30 | F22: 310 | H22: -362 | J22: -102 | K22: -129 | L22: -99 | M22: -32
A23: Impôt sur le résultat | B23: -992 | D23: -495 | E23: -240 | F23: -257 | H23: -577 | J23: -175 | K23: -5 | L23: -231 | M23: -166
A24: Bénéfice net (perte nette) | B24: 5882 | D24: 4555 | E24: 644 | F24: 683 | H24: 375 | J24: 505 | K24: -1191 | L24: 604 | M24: 457
A26: Bénéfice net (perte nette) attribuable aux :
A27: Actionnaires ordinaires | B27: 5711 | D27: 4502 | E27: 579 | F27: 630 | H27: 163 | J27: 461 | K27: -1237 | L27: 537 | M27: 402
A28: Actionnaires privilégiés | B28: 119 | D28: 38 | E28: 40 | F28: 41 | H28: 181 | J28: 43 | K28: 45 | L28: 46 | M28: 47
A29: Détenteurs de PNDPC | B29: 52 | D29: 15 | E29: 25 | F29: 12 | H29: 31 | J29: 1 | K29: 1 | L29: 21 | M29: 8
A30: Bénéfice net (perte nette) | B30: 5882 | D30: 4555 | E30: 644 | F30: 683 | H30: 375 | J30: 505 | K30: -1191 | L30: 604 | M30: 457
A32: Bénéfice net (perte nette) par action ordinaire – de base et dilué | B32: 6.154094828 | D32: 4.844094828 | E32: 0.63 | F32: 0.68 | H32: 0.18 | J32: 0.51 | K32: -1.36 | L32: 0.59 | M32: 0.44
A34: Dividendes par action ordinaire | B34: 1.8725 | D34: 0.4375 | E34: 0.4375 | F34: 0.9975 | H34: 3.99 | J34: 0.9975 | K34: 0.9975 | L34: 0.9975 | M34: 0.9975
A36: Nombre moyen pondéré d’actions ordinaires en circulation – de base (en millions) | B36: 928 | D36: 932.5 | E36: 930.9 | F36: 920.3 | H36: 912.3 | J36: 912.3 | K36: 912.3 | L36: 912.3 | M36: 912.3
A37: Nombre moyen pondéré d’actions ordinaires en circulation – dilué (en millions) | B37: 928 | D37: 932.5 | E37: 930.9 | F37: 920.3 | H37: 912.3 | J37: 912.3 | K37: 912.3 | L37: 912.3 | M37: 912.3
A38: Nombre d’actions ordinaires en circulation (en millions) | B38: 932.5 | D38: 932.5 | E38: 932.5 | F38: 921.8 | H38: 912.3 | J38: 912.3 | K38: 912.3 | L38: 912.3 | M38: 912.3
A40: Bénéfice net ajusté et BPA ajusté
A41: Bénéfice net (perte nette) attribuable aux actionnaires ordinaires | B41: 5711 | D41: 4502 | E41: 579 | F41: 630 | H41: 163 | J41: 461 | K41: -1237 | L41: 537 | M41: 402
A42: Éléments de rapprochement :
A43: Coûts liés aux indemnités de départ, aux acquisitions et autres | B43: 370 | D43: 82 | E43: 41 | F43: 247 | H43: 454 | J43: 154 | K43: 49 | L43: 22 | M43: 229
A44: Pertes nettes (profits nets) lié(e)s à la valeur de marché sur dérivés utilisés à titre de couverture économique des régimes de rémunération fondée sur des actions qui sont réglés en instruments de capitaux propres | B44: 11 | D44: -31 | E44: 43 | F44: -1 | H44: 269 | J44: 198 | K44: -42 | L44: 23 | M44: 90
A45: Pertes nettes sur participations mises en équivalence dans des entreprises associées et des coentreprises | B45: 0 | D45: 0 | E45: 0 | F45: 0 | H45: 247 | J45: 0 | K45: 154 | L45: 93 | M45: 0
A46: (Profits nets) pertes nettes sur placements | B46: -5165 | D46: -5175 | E46: 8 | F46: 2 | H46: -57 | J46: 1 | K46: -66 | L46: 2 | M46: 6
A47: (Profits) pertes lié(e)s au remboursement anticipé de titres d’emprunt | B47: -203 | D47: 154 | E47: -91 | F47: -266 | H47: 0 | J47: 0 | K47: 0 | L47: 0 | M47: 0
A48: Perte de valeur d’actifs | B48: 987 | D48: 970 | E48: 8 | F48: 9 | H48: 2190 | J48: 4 | K48: 2113 | L48: 60 | M48: 13
A49: Impôt lié aux éléments de rapprochement ci-dessus | B49: 255 | D49: 239 | E49: 4 | F49: 12 | H49: -467 | J49: -99 | K49: -258 | L49: -25 | M49: -85
A50: PNDPC liées aux éléments de rapprochement ci-dessus | B50: -8 | D50: -8 | E50: 0 | F50: 0 | H50: -26 | J50: 0 | K50: -25 | L50: 0 | M50: -1
A51: Bénéfice net ajusté | B51: 1958 | D51: 733 | E51: 592 | F51: 633 | H51: 2773 | J51: 719 | K51: 688 | L51: 712 | M51: 654
A52: BPA ajusté | B52: 2.109913793 | D52: 0.7899137931 | E52: 0.63 | F52: 0.69 | H52: 3.04 | J52: 0.79 | K52: 0.75 | L52: 0.78 | M52: 0.72

Sheet BCE Inc Seg Info Summary p4
G1: BCE (1) (2) | L1: BCE
G2: Segmented Data | L2: Informations sectorielles
B4: T3 | C4: T3 | E4: Variation | F4: % de | H4: Cumul | I4: Cumul | K4: Variation | L4: % de
A5: (en millions de dollars canadiens, sauf indication contraire) (non audité) | B5: 2025 | C5: 2024 | E5: ($) | F5: variation | H5: 2025 | I5: 2024 | K5: ($) | L5: variation
A7: Produits d’exploitation
A8: Bell Services de communications et de technologies (Bell SCT) – Canada | B8: 5248 | C8: 5280 | E8: -32 | F8: -0.006060606061 | H8: 15828 | I8: 15938 | K8: -110 | L8: -0.006901744259
A9: Bell SCT – États-Unis | B9: 160 | C9: 0 | E9: 160 | F9: n.s. | H9: 160 | I9: 0 | K9: 160 | L9: n.s.
A10: Bell SCT | B10: 5408 | C10: 5280 | E10: 128 | F10: 0.02424242424 | H10: 15988 | I10: 15938 | K10: 50 | L10: 0.003137156481
A11: Bell Média | B11: 732 | C11: 782 | E11: -50 | F11: -0.06393861893 | H11: 2350 | I11: 2319 | K11: 31 | L11: 0.01336783096
A12: Éliminations intersectorielles | B12: -91 | C12: -91 | E12: 0 | F12: 0 | H12: -274 | I12: -270 | K12: -4 | L12: -0.01481481481
A13: Total | B13: 6049 | C13: 5971 | E13: 78 | F13: 0.0130631385 | H13: 18064 | I13: 17987 | K13: 77 | L13: 0.004280869517
A15: Coûts d’exploitation
A16: Bell SCT – Canada | B16: -2794 | C16: -2812 | E16: 18 | F16: 0.00640113798 | H16: -8536 | I16: -8543 | K16: 7 | L16: 0.0008193842912
A17: Bell SCT – États-Unis | B17: -89 | C17: 0 | E17: -89 | F17: n.s. | H17: -89 | I17: 0 | K17: -89 | L17: n.s.
A18: Bell SCT | B18: -2883 | C18: -2812 | E18: -71 | F18: -0.02524893314 | H18: -8625 | I18: -8543 | K18: -82 | L18: -0.009598501697
A19: Bell Média | B19: -495 | C19: -528 | E19: 33 | F19: 0.0625 | H19: -1719 | I19: -1730 | K19: 11 | L19: 0.006358381503
A20: Éliminations intersectorielles | B20: 91 | C20: 91 | E20: 0 | F20: 0 | H20: 274 | I20: 270 | K20: 4 | L20: 0.01481481481
A21: Total | B21: -3287 | C21: -3249 | E21: -38 | F21: -0.01169590643 | H21: -10070 | I21: -10003 | K21: -67 | L21: -0.006697990603
A23: BAIIA ajusté
A24: Bell SCT – Canada | B24: 2454 | C24: 2468 | E24: -14 | F24: -0.0056726094 | H24: 7292 | I24: 7395 | K24: -103 | L24: -0.01392832995
A25: Marge | B25: 46,8 % | C25: 0.467 | F25: 0.1 | H25: 46,1 % | I25: 0.464 | L25: -0.3
A26: Bell SCT – États-Unis | B26: 71 | C26: 0 | E26: 71 | F26: n.s. | H26: 71 | I26: 0 | K26: 71 | L26: n.s.
A27: Marge | B27: 44,4 % | C27: 0 | F27: 44.4 | H27: 44,4 % | I27: 0 | L27: 44.4
A28: Bell SCT (B) | B28: 2525 | C28: 2468 | E28: 57 | F28: 0.02309562399 | H28: 7363 | I28: 7395 | K28: -32 | L28: -0.004327248141
A29: Marge | B29: 46,7 % | C29: 0.467 | F29: 0 | H29: 46,1 % | I29: 0.464 | L29: -0.3
A30: Bell Média | B30: 237 | C30: 254 | E30: -17 | F30: -0.06692913386 | H30: 631 | I30: 589 | K30: 42 | L30: 0.07130730051
A31: Marge | B31: 32,4 % | C31: 0.325 | F31: -0.1 | H31: 26,9 % | I31: 0.254 | L31: 1.5
A32: Total | B32: 2762 | C32: 2722 | E32: 40 | F32: 0.01469507715 | H32: 7994 | I32: 7984 | K32: 10 | L32: 0.00125250501
A33: Marge | B33: 45,7 % | C33: 0.456 | F33: 0.1 | H33: 44,3 % | I33: 0.444 | L33: -0.1
A35: Dépenses d’investissement
A36: Bell SCT – Canada | B36: 732 | C36: 919 | E36: 187 | F36: 0.2034820457 | H36: 2163 | I36: 2839 | K36: 676 | L36: 0.2381120113
A37: Intensité du capital (A) (3) | B37: 13,9 % | C37: 0.174 | F37: 3.5 | H37: 13,7 % | I37: 0.178 | L37: 4.1
A38: Bell SCT – États-Unis | B38: 128 | C38: 0 | E38: -128 | F38: n.s. | H38: 128 | I38: 0 | K38: -128 | L38: n.s.
A39: Intensité du capital | B39: 80,0 % | C39: 0 | F39: (80,0) pts | H39: 80,0 % | I39: 0 | L39: (80,0) pts
A40: Bell SCT | B40: 860 | C40: 919 | E40: 59 | F40: 0.06420021763 | H40: 2291 | I40: 2839 | K40: 548 | L40: 0.1930257133
A41: Intensité du capital | B41: 15,9 % | C41: 0.174 | F41: 1.5 | H41: 14,3 % | I41: 0.178 | L41: 3.5
A42: Bell Média | B42: 31 | C42: 35 | E42: 4 | F42: 0.1142857143 | H42: 92 | I42: 95 | K42: 3 | L42: 0.03157894737
A43: Intensité du capital | B43: 4,2 % | C43: 0.045 | F43: 0.3 | H43: 3,9 % | I43: 0.041 | L43: 0.2
A44: Total | B44: 891 | C44: 954 | E44: 63 | F44: 0.06603773585 | H44: 2383 | I44: 2934 | K44: 551 | L44: 0.1877982277
A45: Intensité du capital | B45: 14,7 % | C45: 0.16 | F45: 1.3 | H45: 13,2 % | I45: 0.163 | L45: 3.1
A47: n.s. : non significatif
A48: (A) L’intensité du capital correspond aux dépenses d’investissement divisées par les produits d’exploitation.
A49: (B) Le BAIIA ajusté de Bell SCT est un total des mesures sectorielles. Se reporter à la note 2.3, Total des mesures sectorielles dans les notes annexes du présent rapport pour en savoir plus sur cette mesure.

Sheet BCE Inc. Seg Info HIS p5
M1: BCE
M2: Informations sectorielles – Tendance historique
B3: Cumul | H3: TOTAL
A4: (en millions de dollars canadiens, sauf indication contraire) (non audité) | B4: 2025 | D4: T3 25 | E4: T2 25 | F4: T1 25 | H4: 2024 | J4: T4 24 | K4: T3 24 | L4: T2 24 | M4: T1 24
A6: Produits d’exploitation
A7: Bell SCT – Canada | B7: 15828 | D7: 5248 | E7: 5334 | F7: 5246 | H7: 21619 | J7: 5681 | K7: 5280 | L7: 5283 | M7: 5375
A8: Bell SCT – États-Unis | B8: 160 | D8: 160 | E8: 0 | F8: 0 | H8: 0 | J8: 0 | K8: 0 | L8: 0 | M8: 0
A9: Bell SCT | B9: 15988 | C9: 0 | D9: 5408 | E9: 5334 | F9: 5246 | H9: 21619 | J9: 5681 | K9: 5280 | L9: 5283 | M9: 5375
A10: Bell Média | B10: 2350 | D10: 732 | E10: 843 | F10: 775 | H10: 3151 | J10: 832 | K10: 782 | L10: 812 | M10: 725
A11: Éliminations intersectorielles | B11: -274 | D11: -91 | E11: -92 | F11: -91 | H11: -361 | J11: -91 | K11: -91 | L11: -90 | M11: -89
A12: Total | B12: 18064 | D12: 6049 | E12: 6085 | F12: 5930 | H12: 24409 | J12: 6422 | K12: 5971 | L12: 6005 | M12: 6011
A14: Coûts d’exploitation
A15: Bell SCT – Canada | B15: -8536 | D15: -2794 | E15: -2895 | F15: -2847 | H15: -11788 | J15: -3245 | K15: -2812 | L15: -2804 | M15: -2927
A16: Bell SCT – États-Unis | B16: -89 | D16: -89 | E16: 0 | F16: 0 | H16: 0 | J16: 0 | K16: 0 | L16: 0 | M16: 0
A17: Bell SCT | B17: -8625 | D17: -2883 | E17: -2895 | F17: -2847 | H17: -11788 | J17: -3245 | K17: -2812 | L17: -2804 | M17: -2927
A18: Bell Média | B18: -1719 | D18: -495 | E18: -608 | F18: -616 | H18: -2393 | J18: -663 | K18: -528 | L18: -594 | M18: -608
A19: Éliminations intersectorielles | B19: 274 | D19: 91 | E19: 92 | F19: 91 | H19: 361 | J19: 91 | K19: 91 | L19: 90 | M19: 89
A20: Total | B20: -10070 | D20: -3287 | E20: -3411 | F20: -3372 | H20: -13820 | J20: -3817 | K20: -3249 | L20: -3308 | M20: -3446
A22: BAIIA ajusté
A23: Bell SCT – Canada | B23: 7292 | D23: 2454 | E23: 2439 | F23: 2399 | H23: 9831 | J23: 2436 | K23: 2468 | L23: 2479 | M23: 2448
A24: Marge | B24: 0.461 | D24: 0.468 | E24: 0.457 | F24: 0.457 | H24: 0.455 | J24: 0.429 | K24: 0.467 | L24: 0.469 | M24: 0.455
A25: Bell SCT – États-Unis | B25: 71 | D25: 71 | E25: 0 | F25: 0 | H25: 0 | J25: 0 | K25: 0 | L25: 0 | M25: 0
A26: Marge | B26: 0.444 | D26: 0.444 | E26: 0 | F26: 0 | H26: 0 | J26: 0 | K26: 0 | L26: 0 | M26: 0
A27: Bell SCT | B27: 7363 | D27: 2525 | E27: 2439 | F27: 2399 | H27: 9831 | J27: 2436 | K27: 2468 | L27: 2479 | M27: 2448
A28: Marge | B28: 0.461 | D28: 0.467 | E28: 0.457 | F28: 0.457 | H28: 0.455 | J28: 0.429 | K28: 0.467 | L28: 0.469 | M28: 0.455
A29: Bell Média | B29: 631 | D29: 237 | E29: 235 | F29: 159 | H29: 758 | J29: 169 | K29: 254 | L29: 218 | M29: 117
A30: Marge | B30: 0.269 | D30: 0.324 | E30: 0.279 | F30: 0.205 | H30: 0.241 | J30: 0.203 | K30: 0.325 | L30: 0.268 | M30: 0.161
A31: Total | B31: 7994 | D31: 2762 | E31: 2674 | F31: 2558 | H31: 10589 | J31: 2605 | K31: 2722 | L31: 2697 | M31: 2565
A32: Marge | B32: 0.443 | D32: 0.457 | E32: 0.439 | F32: 0.431 | H32: 0.434 | J32: 0.406 | K32: 0.456 | L32: 0.449 | M32: 0.427
A34: Dépenses d’investissement
A35: Bell SCT – Canada | B35: 2163 | D35: 732 | E35: 727 | F35: 704 | H35: 3746 | J35: 907 | K35: 919 | L35: 945 | M35: 975
A36: Intensité du capital | B36: 0.136656558 | D36: 0.1394817073 | E36: 0.136 | F36: 0.134 | H36: 0.173 | J36: 0.16 | K36: 0.174 | L36: 0.179 | M36: 0.181
A37: Bell SCT – États-Unis | B37: 128 | D37: 128 | E37: 0 | F37: 0 | H37: 0 | J37: 0 | K37: 0 | L37: 0 | M37: 0
A38: Intensité du capital | B38: 0.8 | D38: 0.8 | E38: 0 | F38: 0 | H38: 0 | J38: 0 | K38: 0 | L38: 0 | M38: 0
A39: Bell SCT | B39: 2291 | D39: 860 | E39: 727 | F39: 704 | H39: 3746 | J39: 907 | K39: 919 | L39: 945 | M39: 975
A40: Intensité du capital | B40: 0.1432949712 | D40: 0.1590236686 | E40: 0.136 | F40: 0.134 | H40: 0.173 | J40: 0.16 | K40: 0.174 | L40: 0.179 | M40: 0.181
A41: Bell Média | B41: 92 | D41: 31 | E41: 36 | F41: 25 | H41: 151 | J41: 56 | K41: 35 | L41: 33 | M41: 27
A42: Intensité du capital | B42: 0.03914893617 | D42: 0.04234972678 | E42: 0.043 | F42: 0.032 | H42: 0.048 | J42: 0.067 | K42: 0.045 | L42: 0.041 | M42: 0.037
A43: Total | B43: 2383 | D43: 891 | E43: 763 | F43: 729 | H43: 3897 | J43: 963 | K43: 954 | L43: 978 | M43: 1002
A44: Intensité du capital | B44: 0.1319198406 | D44: 0.1472970739 | E44: 0.125 | F44: 0.123 | H44: 0.16 | J44: 0.15 | K44: 0.16 | L44: 0.163 | M44: 0.167

Sheet BCE Inc. Seg Info HIST p5 (hidden)
A1: CORPORATE | B1: CONSOL
A2: ACTUAL | B2: ACTUAL
A3: ALL_DS | B3: ALL_DS | C3: All Data Sources
A4: All Posting Levels | B4: BCE_CONS - BCE
A5: Canadian Dollar | B5: F_CLO - Closing Balance
A6: All Trading Partners | B6: BCE - BCE Consolidated.
A7: Year To Date | B7: ALL_POSTING - All posting levels (C)
A8: Quarter to date | B8: CAD - Canadian Dollar
B9: All Trading Partners
B10: YTD - Year To Date
E15: 2022.Q4 - 2022.Q4 | G15: 2021.Q4 - 2021.Q4
C16: Revenues
Q17: BCE (2)
Q18: Segmented Data - Historical Trend
D20: (In millions of Canadian dollars, except where otherwise indicated) (unaudited) | E20: TOTAL 2022 | G20: Q4 22 | H20: Q3 22 | I20: Q2 22 | J20: Q1 22 | L20: TOTAL 2021 | N20: Q4 21 | O20: Q3 21 | P20: Q2 21 | Q20: Q1 21 | S20: CY Check | T20: PY Check
D22: Operating revenues
B23: T401000 - Total Revenue | C23: WRLESS | D23: Bell Wireless | E23: =ROUND(_xll.EPMRetrieveData($A$1,$B$23,$A$2,$A$3,$A$4,$A$5,E15,$A$6,$A$7,$C$23)/1000000,0) ->  | G23: =E23-H23-I23-J23 ->  | H23: 2466 | I23: 2246 | J23: 2210 | L23: 8999 | N23: 2475 | O23: 2296 | P23: 2128 | Q23: 2100 | S23: =SUM(G23:J23)=E23 ->  | T23: =SUM(N23:Q23)=L23 -> TRUE
C24: WRLINE | D24: Bell Wireline | E24: =(ROUND(_xll.EPMRetrieveData($A$1,$B$23,$A$2,$C$24,$A$3,$A$4,$A$5,E15,$A$6,$A$7)/1000000,0))-1 ->  | G24: =E24-H24-I24-J24 ->  | H24: 3046 | I24: 2995 | J24: 3013 | L24: 12178 | N24: 3079 | O24: 3015 | P24: 3003 | Q24: 3081 | S24: =SUM(G24:J24)=E24 ->  | T24: =SUM(N24:Q24)=L24 -> TRUE
C25: Bell_Media | D25: Bell Media | E25: =ROUND(_xll.EPMRetrieveData($A$1,$B$23,$A$2,$C$25,$A$3,$A$4,$A$5,E15,$A$6,$A$7)/1000000,0) ->  | G25: =E25-H25-I25-J25 ->  | H25: 719 | I25: 821 | J25: 825 | L25: 3036 | N25: 849 | O25: 719 | P25: 755 | Q25: 713 | T25: TRUE
D26: Inter-segment eliminations | E26: =E27-E23-E24-E25 ->  | G26: =E26-H26-I26-J26 ->  | H26: -207 | I26: -201 | J26: -198 | L26: -764 | N26: -194 | O26: -194 | P26: -188 | Q26: -188 | T26: TRUE
C27: BELL | D27: Total | E27: =ROUND(_xll.EPMRetrieveData($A$1,$B$23,$A$2,$C$27,$A$3,$A$4,$A$5,E15,$A$6,$A$7)/1000000,0) ->  | G27: =E27-H27-I27-J27 ->  | H27: 6024 | I27: 5861 | J27: 5850 | L27: 23449 | N27: 6209 | O27: 5836 | P27: 5698 | Q27: 5706 | T27: TRUE
D29: Operating costs
D30: Bell Wireless | E30: =(E37-E23) ->  | G30: =E30-H30-I30-J30 ->  | H30: -1377 | I30: -1197 | J30: -1201 | L30: -5146 | N30: -1524 | O30: -1286 | P30: -1159 | Q30: -1177 | T30: TRUE
D31: Bell Wireline | E31: =E39-E24 ->  | G31: =E31-H31-I31-J31 ->  | H31: -1729 | I31: -1680 | J31: -1646 | L31: -6863 | N31: -1753 | O31: -1682 | P31: -1710 | Q31: -1718 | T31: TRUE
D32: Bell Media | E32: =E41-E25 ->  | G32: =E32-H32-I32-J32 ->  | H32: -537 | I32: -595 | J32: -617 | L32: -2311 | N32: -696 | O32: -504 | P32: -541 | Q32: -570 | T32: TRUE
D33: Inter-segment eliminations | E33: =-E26 ->  | G33: =E33-H33-I33-J33 ->  | H33: 207 | I33: 201 | J33: 198 | L33: 764 | N33: 194 | O33: 194 | P33: 188 | Q33: 188 | T33: TRUE
D34: Total | E34: =E43-E27 ->  | G34: =E34-H34-I34-J34 ->  | H34: -3436 | I34: -3271 | J34: -3266 | L34: -13556 | N34: -3779 | O34: -3278 | P34: -3222 | Q34: -3277 | T34: TRUE
D36: Adjusted EBITDA
B37: T6CCCCA - EBITDA | D37: Bell Wireless | E37: =ROUND(_xll.EPMRetrieveData($A$1,$B$37,$A$2,$C$23,$A$3,$A$4,$A$5,E15,$A$6,$A$7)/1000000,0) ->  | G37: =E37-H37-I37-J37 ->  | H37: 1089 | I37: 1049 | J37: 1009 | L37: 3853 | N37: 951 | O37: 1010 | P37: 969 | Q37: 923 | S37: =SUM(G37:J37)=E37 ->  | T37: =SUM(N37:Q37)=L37 -> TRUE
D38: Margin | E38: =ROUND(E37/E23,3) ->  | G38: =ROUND(G37/G23,3) ->  | H38: 0.442 | I38: 0.467 | J38: 0.457 | L38: 0.428 | N38: 0.384 | O38: 0.4398954704 | P38: 0.455 | Q38: 0.44
D39: Bell Wireline | E39: =ROUND(_xll.EPMRetrieveData($A$1,$B$37,$A$2,$C$24,$A$3,$A$4,$A$5,E15,$A$6,$A$7)/1000000,0) ->  | G39: =E39-H39-I39-J39 ->  | H39: 1317 | I39: 1315 | J39: 1367 | L39: 5315 | N39: 1326 | O39: 1333 | P39: 1293 | Q39: 1363 | S39: =SUM(G39:J39)=E39 ->  | T39: TRUE
D40: Margin | E40: =ROUND(E39/E24,3) ->  | G40: =ROUND(G39/G24,3) ->  | H40: 0.432 | I40: 0.439 | J40: 0.454 | L40: 0.436 | N40: 0.431 | O40: 0.4421227197 | P40: 0.431 | Q40: 0.442
D41: Bell Media | E41: =ROUND(_xll.EPMRetrieveData($A$1,$B$37,$A$2,$C$25,$A$3,$A$4,$A$5,E15,$A$6,$A$7)/1000000,0) ->  | G41: =E41-H41-I41-J41 ->  | H41: 182 | I41: 226 | J41: 208 | L41: 725 | N41: 153 | O41: 215 | P41: 214 | Q41: 143 | T41: TRUE
D42: Margin | E42: =ROUND(E41/E25,3) ->  | G42: =ROUND(G41/G25,3) ->  | H42: 0.253 | I42: 0.275 | J42: 0.252 | L42: 0.239 | N42: 0.18 | O42: 0.2990264256 | P42: 0.283 | Q42: 0.201
D43: Total | E43: =ROUND(_xll.EPMRetrieveData($A$1,$B$37,$A$2,$C$27,$A$3,$A$4,$A$5,E15,$A$6,$A$7)/1000000,0) ->  | G43: =E43-H43-I43-J43 ->  | H43: 2588 | I43: 2590 | J43: 2584 | L43: 9893 | N43: 2430 | O43: 2558 | P43: 2476 | Q43: 2429 | T43: TRUE
D44: Margin | E44: =ROUND(E43/E27,3) ->  | G44: =ROUND(G43/G27,3) ->  | H44: 0.43 | I44: 0.442 | J44: 0.442 | L44: 0.422 | N44: 0.391 | O44: 0.4383139136 | P44: 0.435 | Q44: 0.426
D46: Capital expenditures
B47: TCFCapEx | D47: Bell Wireless | E47: 1084 | G47: =E47-H47-I47-J47 -> 308 | H47: 248 | I47: 280 | J47: 248 | L47: =SUM(N47:Q47) -> 1120 | N47: 273 | O47: 255 | P47: 306 | Q47: 286 | S47: =SUM(G47:J47)=E47 -> TRUE | T47: TRUE
D48: Capital intensity | E48: =E47/E23 ->  | G48: =G47/G23 ->  | H48: 0.100567721 | I48: 0.124666073 | J48: =J47/J23 -> 0.1122171946 | L48: 0.1244582731 | N48: 0.1103030303 | O48: 0.1110627178 | P48: 0.1437969925 | Q48: =Q47/Q23 -> 0.1361904762
D49: Bell Wireline | E49: 3887 | G49: =E49-H49-I49-J49 -> 1251 | H49: 1038 | I49: 910 | J49: 688 | L49: =SUM(N49:Q49) -> 3612 | N49: 1141 | O49: 884 | P49: 880 | Q49: 707 | S49: TRUE | T49: TRUE
D50: Capital intensity | E50: =E49/E24 ->  | G50: =G49/G24 ->  | H50: 0.3407747866 | I50: 0.3038397329 | J50: =J49/J24 -> 0.2283438433 | L50: =L49/L24 -> 0.296600427 | N50: 0.370574862 | O50: 0.2932006633 | P50: =P49/P24 -> 0.293040293 | Q50: 0.229470951
C51: SAPCO_2300_CONS - Bell Media | D51: Bell Media | E51: 162 | G51: =E51-H51-I51-J51 -> 79 | H51: 31 | I51: 29 | J51: 23 | L51: 120 | N51: 52 | O51: 25 | P51: 24 | Q51: 19 | S51: TRUE | T51: TRUE
D52: Capital intensity | E52: =E51/E25 ->  | G52: =G51/G25 ->  | H52: 0.04311543811 | I52: 0.0353227771 | J52: =J51/J25 -> 0.02787878788 | L52: 0.0395256917 | N52: 0.06124852768 | O52: 0.0347705146 | P52: =P51/P25 -> 0.03178807947 | Q52: 0.02664796634
C53: BCE_CONS - BCE | D53: Total | E53: =-ROUND(_xll.EPMRetrieveData($B$1,$B$47,$B$2,$C$53,$B$3,$B$4,$B$5,E15,$B$7,$B$8,$B$9,$B$10)/1000000,0) ->  | G53: =E53-H53-I53-J53 ->  | H53: 1317 | I53: 1219 | J53: =J47+J49+J51 -> 959 | K53: =K47+K49+K51 -> 0 | L53: 4852 | M53: 0 | N53: 1466 | O53: 1164 | P53: 1210 | Q53: =Q47+Q49+Q51 -> 1012 | T53: TRUE
D54: Capital intensity | E54: =E53/E27 ->  | G54: =G53/G27 ->  | H54: 0.218625498 | I54: 0.2079849855 | J54: =J53/J27 -> 0.1639316239 | L54: =L53/L27 -> 0.2069171393 | N54: 0.2361088742 | O54: =O53/O27 -> 0.1994516792 | P54: =P53/P27 -> 0.2123552124 | Q54: =Q53/Q27 -> 0.1773571679
E60: =E47+E49+E51=E53 ->  | F60: TRUE | H60: TRUE | I60: TRUE | J60: TRUE | K60: TRUE | L60: TRUE | M60: TRUE | N60: TRUE | O60: TRUE | P60: TRUE | Q60: =Q47+Q49+Q51=Q53 -> TRUE
E61: =E37+E39+E41=E43 ->  | F61: =F37+F39+F41=F43 -> TRUE | H61: TRUE | I61: TRUE | J61: TRUE | K61: TRUE | L61: TRUE | M61: TRUE | N61: TRUE | O61: TRUE | P61: TRUE | Q61: TRUE
E62: =E30+E31+E32+E33=E34 ->  | F62: =F30+F31+F32+F33=F34 -> TRUE | H62: TRUE | I62: TRUE | J62: TRUE | K62: TRUE | L62: TRUE | M62: TRUE | N62: =N30+N31+N32+N33=N34 -> TRUE | O62: TRUE | P62: TRUE | Q62: TRUE
E63: =E23+E24+E25+E26=E27 ->  | F63: =F23+F24+F25+F26=F27 -> TRUE | H63: TRUE | I63: TRUE | J63: TRUE | K63: TRUE | L63: TRUE | M63: TRUE | N63: TRUE | O63: TRUE | P63: TRUE | Q63: TRUE

Sheet CTS HIST p6FMO-delete (hidden)
M2: Bell Wireline (1) (2)
C5: Q4 | E5: Q4 | I5: TOTAL | K5: TOTAL
A6: (In millions of Canadian dollars, except where otherwise indicated) (unaudited) | C6: 2022 | E6: 2021 | G6: % change | I6: 2022 | K6: 2021 | M6: % change
A7: Bell Wireline
A8: Operating revenues
A9: Data | C9: ='Bell Wireline HIST p9'!G24 ->  | E9: ='Bell Wireline HIST p9'!N24 -> 1986 | G9: =IF(OR(((ABS(C9-E9)/E9))>100%,((ABS(C9-E9)/E9))<-100%),"n.m.",((C9-E9)/ABS(E9))) ->  | H9: =(C9-F9)/F9 ->  | I9: ='Bell Wireline HIST p9'!E24 ->  | K9: ='Bell Wireline HIST p9'!O24+'Bell Wireline HIST p9'!P24+'Bell Wireline HIST p9'!Q24+'Bell Wireline HIST p9'!N24 -> 7871 | M9: =IF(OR(((ABS(I9-K9)/K9))>100%,((ABS(I9-K9)/K9))<-100%),"n.m.",((I9-K9)/ABS(K9))) -> 
A10: Voice | C10: ='Bell Wireline HIST p9'!G25 ->  | E10: ='Bell Wireline HIST p9'!N25 -> 779 | G10: =IF(OR(((ABS(C10-E10)/E10))>100%,((ABS(C10-E10)/E10))<-100%),"n.m.",((C10-E10)/ABS(E10))) ->  | I10: ='Bell Wireline HIST p9'!E25 ->  | K10: ='Bell Wireline HIST p9'!O25+'Bell Wireline HIST p9'!P25+'Bell Wireline HIST p9'!Q25+'Bell Wireline HIST p9'!N25 -> 3154 | M10: =IF(OR(((ABS(I10-K10)/K10))>100%,((ABS(I10-K10)/K10))<-100%),"n.m.",((I10-K10)/ABS(K10))) -> 
A11: Other services | C11: ='Bell Wireline HIST p9'!G26 ->  | E11: ='Bell Wireline HIST p9'!N26 -> 75 | G11: =IF(OR(((ABS(C11-E11)/E11))>100%,((ABS(C11-E11)/E11))<-100%),"n.m.",((C11-E11)/ABS(E11))) ->  | I11: ='Bell Wireline HIST p9'!E26 ->  | K11: ='Bell Wireline HIST p9'!O26+'Bell Wireline HIST p9'!P26+'Bell Wireline HIST p9'!Q26+'Bell Wireline HIST p9'!N26 -> 289 | M11: =IF(OR(((ABS(I11-K11)/K11))>100%,((ABS(I11-K11)/K11))<-100%),"n.m.",((I11-K11)/ABS(K11))) -> 
A12: External service revenues | C12: ='Bell Wireline HIST p9'!G27 ->  | E12: ='Bell Wireline HIST p9'!N27 -> 2840 | G12: =IF(OR(((ABS(C12-E12)/E12))>100%,((ABS(C12-E12)/E12))<-100%),"n.m.",((C12-E12)/ABS(E12))) ->  | I12: ='Bell Wireline HIST p9'!E27 ->  | K12: ='Bell Wireline HIST p9'!O27+'Bell Wireline HIST p9'!P27+'Bell Wireline HIST p9'!Q27+'Bell Wireline HIST p9'!N27 -> 11314 | M12: =IF(OR(((ABS(I12-K12)/K12))>100%,((ABS(I12-K12)/K12))<-100%),"n.m.",((I12-K12)/ABS(K12))) -> 
A13: Inter-segment service revenues | C13: ='Bell Wireline HIST p9'!G28 ->  | E13: ='Bell Wireline HIST p9'!N28 -> 94 | G13: =IF(OR(((ABS(C13-E13)/E13))>=100%,((ABS(C13-E13)/E13))<=-100%),"n.m.",((C13-E13)/ABS(E13))) ->  | I13: ='Bell Wireline HIST p9'!E28 ->  | K13: ='Bell Wireline HIST p9'!O28+'Bell Wireline HIST p9'!P28+'Bell Wireline HIST p9'!Q28+'Bell Wireline HIST p9'!N28 -> 358 | M13: =IF(OR(((ABS(I13-K13)/K13))>=100%,((ABS(I13-K13)/K13))<=-100%),"n.m.",((I13-K13)/ABS(K13))) -> 
A14: Operating service revenues | C14: ='Bell Wireline HIST p9'!G29 ->  | E14: ='Bell Wireline HIST p9'!N29 -> 2934 | G14: =IF(OR(((ABS(C14-E14)/E14))>100%,((ABS(C14-E14)/E14))<-100%),"n.m.",((C14-E14)/ABS(E14))) ->  | I14: ='Bell Wireline HIST p9'!E29 ->  | K14: ='Bell Wireline HIST p9'!O29+'Bell Wireline HIST p9'!P29+'Bell Wireline HIST p9'!Q29+'Bell Wireline HIST p9'!N29 -> 11672 | M14: =IF(OR(((ABS(I14-K14)/K14))>100%,((ABS(I14-K14)/K14))<-100%),"n.m.",((I14-K14)/ABS(K14))) -> 
A15: Data | C15: ='Bell Wireline HIST p9'!G30 ->  | E15: ='Bell Wireline HIST p9'!N30 -> 132 | G15: =IF(OR(((ABS(C15-E15)/E15))>100%,((ABS(C15-E15)/E15))<-100%),"n.m.",((C15-E15)/ABS(E15))) ->  | I15: ='Bell Wireline HIST p9'!E30 ->  | K15: ='Bell Wireline HIST p9'!O30+'Bell Wireline HIST p9'!P30+'Bell Wireline HIST p9'!Q30+'Bell Wireline HIST p9'!N30 -> 463
A16: Equipment and other | C16: ='Bell Wireline HIST p9'!G31 ->  | E16: ='Bell Wireline HIST p9'!N31 -> 13 | I16: ='Bell Wireline HIST p9'!E31 ->  | K16: ='Bell Wireline HIST p9'!O31+'Bell Wireline HIST p9'!P31+'Bell Wireline HIST p9'!Q31+'Bell Wireline HIST p9'!N31 -> 43
A17: External product revenues | C17: ='Bell Wireline HIST p9'!G32 ->  | E17: ='Bell Wireline HIST p9'!N32 -> 145 | I17: ='Bell Wireline HIST p9'!E32 ->  | K17: ='Bell Wireline HIST p9'!O32+'Bell Wireline HIST p9'!P32+'Bell Wireline HIST p9'!Q32+'Bell Wireline HIST p9'!N32 -> 506
A18: Inter-segment product revenues | C18: ='Bell Wireline HIST p9'!G33 ->  | E18: ='Bell Wireline HIST p9'!N33 -> 0 | G18: n.m | H18: 0 | I18: ='Bell Wireline HIST p9'!E33 ->  | K18: ='Bell Wireline HIST p9'!O33+'Bell Wireline HIST p9'!P33+'Bell Wireline HIST p9'!Q33+'Bell Wireline HIST p9'!N33 -> 0 | M18: n.m
A19: Operating product revenues | C19: ='Bell Wireline HIST p9'!G34 ->  | E19: ='Bell Wireline HIST p9'!N34 -> 145 | H19: =(C19-F19)/F19 ->  | I19: ='Bell Wireline HIST p9'!E34 ->  | K19: ='Bell Wireline HIST p9'!O34+'Bell Wireline HIST p9'!P34+'Bell Wireline HIST p9'!Q34+'Bell Wireline HIST p9'!N34 -> 506
A20: Total external revenues | C20: ='Bell Wireline HIST p9'!G35 ->  | E20: ='Bell Wireline HIST p9'!N35 -> 2985 | H20: =(C20-F20)/F20 ->  | I20: ='Bell Wireline HIST p9'!E35 ->  | K20: ='Bell Wireline HIST p9'!O35+'Bell Wireline HIST p9'!P35+'Bell Wireline HIST p9'!Q35+'Bell Wireline HIST p9'!N35 -> 11820
A21: Total operating revenues | C21: ='Bell Wireline HIST p9'!G36 ->  | E21: ='Bell Wireline HIST p9'!N36 -> 3079 | H21: =(C21-F21)/F21 ->  | I21: ='Bell Wireline HIST p9'!E36 ->  | K21: ='Bell Wireline HIST p9'!O36+'Bell Wireline HIST p9'!P36+'Bell Wireline HIST p9'!Q36+'Bell Wireline HIST p9'!N36 -> 12178
A22: Operating costs | C22: ='Bell Wireline HIST p9'!G37 ->  | E22: ='Bell Wireline HIST p9'!N37 -> -1753 | H22: =(-C22+F22)/F22 ->  | I22: ='Bell Wireline HIST p9'!E37 ->  | K22: ='Bell Wireline HIST p9'!O37+'Bell Wireline HIST p9'!P37+'Bell Wireline HIST p9'!Q37+'Bell Wireline HIST p9'!N37 -> -6863
A23: Adjusted EBITDA | C23: ='Bell Wireline HIST p9'!G38 ->  | E23: ='Bell Wireline HIST p9'!N38 -> 1326 | H23: =(C23-F23)/F23 ->  | I23: ='Bell Wireline HIST p9'!E38 ->  | K23: ='Bell Wireline HIST p9'!O38+'Bell Wireline HIST p9'!P38+'Bell Wireline HIST p9'!Q38+'Bell Wireline HIST p9'!N38 -> 5315 | M23: 0
A24: Adjusted EBITDA margin | C24: ='Bell Wireline HIST p9'!G39 ->  | E24: ='Bell Wireline HIST p9'!N39 -> 0.431 | G24: =((ROUND(C24,3)-ROUND(E24,3))*100) ->  | H24: =(C24-F24)*100 ->  | I24: ='Bell Wireline HIST p9'!E39 ->  | K24: =K23/K21 -> 0.4364427656 | M24: =((ROUND(I24,3)-ROUND(K24,3))*100) -> 
A26: Capital expenditures | C26: ='Bell Wireline HIST p9'!G41 -> 1251 | E26: ='Bell Wireline HIST p9'!N41 -> 1141 | G26: =IF(OR(((ABS(E26-C26)/E26))>100%,((ABS(E26-C26)/E26))<-100%),"n.m.",((E26-C26)/ABS(E26))) -> -0.09640666082 | H26: =(-C26+F26)/F26 ->  | I26: ='Bell Wireline HIST p9'!E41 -> 3887 | K26: ='Bell Wireline HIST p9'!O41+'Bell Wireline HIST p9'!P41+'Bell Wireline HIST p9'!Q41+'Bell Wireline HIST p9'!N41 -> 3612 | M26: =IF(OR(((ABS(K26-I26)/K26))>100%,((ABS(K26-I26)/K26))<-100%),"n.m.",((K26-I26)/ABS(K26))) -> -0.0761351052
A27: Capital intensity | C27: ='Bell Wireline HIST p9'!G42 ->  | E27: ='Bell Wireline HIST p9'!N42 -> 0.370574862 | G27: =((ROUND(E27,3)-ROUND(C27,3))*100) ->  | H27: =(-(C27-F27)*100) ->  | I27: ='Bell Wireline HIST p9'!E42 ->  | K27: =K26/K21 -> 0.296600427 | M27: =((ROUND(K27,3)-ROUND(I27,3))*100) -> 
A28: Retail high-speed Internet subscribers(4)
A29: Retail net subscriber activations | C29: ='Bell Wireline HIST p9'!G44 -> 63465.86585 | E29: ='Bell Wireline HIST p9'!N44 -> 47618 | G29: =IF(OR(((ABS(C29-E29)/E29))>100%,((ABS(C29-E29)/E29))<-100%),"n.m.",((C29-E29)/ABS(E29))) -> 0.3328125047 | H29: =(C29-F29)/F29 ->  | I29: ='Bell Wireline HIST p9'!E44 -> 201762 | K29: ='Bell Wireline HIST p9'!O44+'Bell Wireline HIST p9'!P44+'Bell Wireline HIST p9'!Q44+'Bell Wireline HIST p9'!N44 -> 152285 | M29: =IF(OR(((ABS(I29-K29)/K29))>100%,((ABS(I29-K29)/K29))<-100%),"n.m.",((I29-K29)/ABS(K29))) -> 0.3248973963
A30: Retail subscribers EOP(A) (B) | C30: ='Bell Wireline HIST p9'!G45 -> 4258570 | E30: ='Bell Wireline HIST p9'!N45 -> 3861652.723 | G30: 0.1027843012 | H30: =(C30-F30)/F30 ->  | I30: ='Bell Wireline HIST p9'!E45 -> 4258570 | K30: ='Bell Wireline HIST p9'!L45 -> 3861652.723 | M30: 0.1027843012
A31: Retail TV subscribers(4)
A32: Retail net subscriber activations (losses) | C32: ='Bell Wireline HIST p9'!G47 -> 14183 | E32: ='Bell Wireline HIST p9'!N47 -> 6049 | G32: n.m. | H32: =-(C32-F32)/F32 ->  | I32: ='Bell Wireline HIST p9'!E47 -> 5148 | K32: ='Bell Wireline HIST p9'!O47+'Bell Wireline HIST p9'!P47+'Bell Wireline HIST p9'!Q47+'Bell Wireline HIST p9'!N47 -> 2530 | M32: n.m.
A33: Internet protocol television (IPTV) | C33: ='Bell Wireline HIST p9'!G48 -> 40209 | E33: ='Bell Wireline HIST p9'!N48 -> 29191 | G33: 0.3774451029 | H33: =(C33-F33)/F33 ->  | I33: ='Bell Wireline HIST p9'!E48 -> 94400 | K33: ='Bell Wireline HIST p9'!O48+'Bell Wireline HIST p9'!P48+'Bell Wireline HIST p9'!Q48+'Bell Wireline HIST p9'!N48 -> 76068 | M33: 0.2409948993
A34: Satellite | C34: =+'Bell Wireline HIST p9'!G49 -> -26026 | E34: =+'Bell Wireline HIST p9'!N49 -> -23142 | G34: -0.1246218996 | I34: ='Bell Wireline HIST p9'!E49 -> -89252 | K34: ='Bell Wireline HIST p9'!O49+'Bell Wireline HIST p9'!P49+'Bell Wireline HIST p9'!Q49+'Bell Wireline HIST p9'!N49 -> -73538 | M34: -0.2136854415
A35: Total retail subscribers EOP(A) (B) | C35: ='Bell Wireline HIST p9'!G50 -> 2751498 | E35: ='Bell Wireline HIST p9'!N50 -> 2735010.138 | G35: 0.006028446388 | H35: =(C35-F35)/F35 ->  | I35: ='Bell Wireline HIST p9'!E50 -> 2751498 | K35: ='Bell Wireline HIST p9'!L50 -> 2735010.138 | M35: 0.006028446388
A36: IPTV(A) (B) | C36: ='Bell Wireline HIST p9'!G51 -> 1988181 | E36: ='Bell Wireline HIST p9'!N51 -> 1882441.138 | G36: 0.05617166978 | H36: =(C36-F36)/F36 ->  | I36: ='Bell Wireline HIST p9'!E51 -> 1988181 | K36: ='Bell Wireline HIST p9'!L51 -> 1882441.138 | M36: 0.05617166978
A37: Satellite | C37: ='Bell Wireline HIST p9'!G52 -> 763317 | E37: ='Bell Wireline HIST p9'!N52 -> 852569 | G37: -0.104685955 | I37: ='Bell Wireline HIST p9'!E52 -> 763317 | K37: ='Bell Wireline HIST p9'!N52 -> 852569 | M37: -0.104685955
A38: Retail residential network access services (NAS)(4)
A39: Retail residential NAS lines net losses | C39: ='Bell Wireline HIST p9'!G54 -> -37878 | E39: ='Bell Wireline HIST p9'!N54 -> -40211 | G39: 0.05801895004 | H39: =-(C39-F39)/F39 ->  | I39: ='Bell Wireline HIST p9'!E54 -> -175788 | K39: ='Bell Wireline HIST p9'!O54+'Bell Wireline HIST p9'!P54+'Bell Wireline HIST p9'!Q54+'Bell Wireline HIST p9'!N54 -> -185327 | M39: 0.05147118337
A40: Retail residential NAS lines(A) (B) | C40: ='Bell Wireline HIST p9'!G55 -> 2190771 | E40: ='Bell Wireline HIST p9'!N55 -> 2298605 | G40: -0.04691280146 | H40: =(C40-F40)/F40 ->  | I40: ='Bell Wireline HIST p9'!E55 -> 2190771 | K40: ='Bell Wireline HIST p9'!N55 -> 2298605 | M40: -0.04691280146
A42: n.m. : not meaningful
A43: (A) | B43: In Q1 2022, as a result of the acquisition of EBOX and other related companies, our retail high-speed Internet, retail IPTV and retail residential NAS lines subscriber bases increased by 67,090, 9,025 and 3,456 subscribers, respectively.
A44: (B) | B44: In Q4 2022, as a result of the acquisition of Distributel Communications Limited (Distributel), our retail high-speed Internet, retail IPTV and retail residential NAS lines subscriber bases increased by 128,065, 2,315 and 64,498 subscribers, respectively.

Sheet CTS CAN & US Summary p6
J1: Bell SCT – Canada et Bell SCT – États-Unis
C3: T3 | D3: T3 | F3: % de | G3: Cumul | H3: Cumul | J3: % de
A4: (en millions de dollars canadiens, sauf indication contraire) (non audité) | C4: 2025 | D4: 2024 | F4: variation | G4: 2025 | H4: 2024 | J4: variation
A5: Bell SCT – Canada
A6: Produits d’exploitation
A7: Services sans fil | C7: 1804 | D7: 1811 | F7: -0.003865267808 | G7: 5346 | H7: 5373 | J7: -0.005025125628
A8: Services de données filaires | C8: 2036 | D8: 2038 | F8: -0.0009813542689 | G8: 6075 | H8: 6084 | J8: -0.001479289941
A9: Services voix filaires | C9: 603 | D9: 663 | F9: -0.09049773756 | G9: 1856 | H9: 2023 | J9: -0.08255066733
A10: Autres services sur fil | C10: 78 | D10: 76 | F10: 0.02631578947 | G10: 234 | H10: 236 | J10: -0.008474576271
A11: Produits externes tirés des services | C11: 4521 | D11: 4588 | F11: -0.01460331299 | G11: 13511 | H11: 13716 | J11: -0.01494604841
A12: Produits intersectoriels tirés des services | C12: 7 | D12: 7 | F12: 0 | G12: 21 | H12: 21 | J12: 0
A13: Produits d’exploitation tirés des services | C13: 4528 | D13: 4595 | F13: -0.01458106638 | G13: 13532 | H13: 13737 | J13: -0.01492320012
A14: Services sans fil | C14: 610 | D14: 569 | F14: 0.07205623902 | G14: 1828 | H14: 1821 | J14: 0.003844041735
A15: Services sur fil | C15: 110 | D15: 116 | F15: -0.05172413793 | G15: 468 | H15: 380 | J15: 0.2315789474
A16: Produits externes/d’exploitation tirés des produits | C16: 720 | D16: 685 | F16: 0.05109489051 | G16: 2296 | H16: 2201 | J16: 0.043162199
A17: Total des produits externes | C17: 5241 | D17: 5273 | F17: -0.006068651621 | G17: 15807 | H17: 15917 | J17: -0.006910850035
A18: Total des produits d’exploitation | C18: 5248 | D18: 5280 | F18: -0.006060606061 | G18: 15828 | H18: 15938 | J18: -0.006901744259
A19: Coûts d’exploitation | C19: -2794 | D19: -2812 | F19: 0.00640113798 | G19: -8536 | H19: -8543 | J19: 0.0008193842912
A20: BAIIA ajusté | C20: 2454 | D20: 2468 | F20: -0.0056726094 | G20: 7292 | H20: 7395 | J20: -0.01392832995
A21: Marge du BAIIA ajusté | C21: 46,8 % | D21: 0.467 | F21: 0.1 | G21: 46,1 % | H21: 0.464 | J21: -0.3
A23: Dépenses d’investissement | C23: 732 | D23: 919 | F23: 0.2034820457 | G23: 2163 | H23: 2839 | J23: 0.2381120113
A24: Intensité du capital | C24: 13,9 % | D24: 0.174 | F24: 3.5 | G24: 13,7 % | H24: 0.178 | J24: 4.1
A26: Bell SCT – États-Unis
A27: Produits d’exploitation
A28: Services de données filaires | C28: 129 | D28: 0 | F28: n.s. | G28: 129 | H28: 0 | J28: n.s.
A29: Services voix filaires | C29: 29 | D29: 0 | F29: n.s. | G29: 29 | H29: 0 | J29: n.s.
A30: Autres services sur fil | C30: 2 | D30: 0 | F30: n.s. | G30: 2 | H30: 0 | J30: n.s.
A31: Produits externes/d’exploitation tirés des produits | C31: 160 | D31: 0 | F31: n.s. | G31: 160 | H31: 0 | J31: n.s.
A32: Total des produits externes/d’exploitation tirés des produits | C32: 160 | D32: 0 | F32: n.s. | G32: 160 | H32: 0 | J32: n.s.
A33: Coûts d’exploitation | C33: -89 | D33: 0 | F33: n.s. | G33: -89 | H33: 0 | J33: n.s.
A34: BAIIA ajusté | C34: 71 | D34: 0 | F34: n.s. | G34: 71 | H34: 0 | J34: n.s.
A35: Marge du BAIIA ajusté | C35: 44,4 % | D35: 0 | F35: 44.4 | G35: 44,4 % | H35: 0 | J35: 44.4
A37: Dépenses d’investissement | C37: 128 | D37: 0 | F37: n.s. | G37: 128 | H37: 0 | J37: n.s.
A38: Intensité du capital | C38: 80,0 % | D38: 0 | F38: (80,0) pts | G38: 80,0 % | H38: 0 | J38: (80,0) pts
A40: n.s. : non significatif

Sheet CTS CAN & US HIST Info p7
N1: Bell SCT – Canada et Bell SCT – États-Unis
N2: Tendance historique
C3: Cumul | I3: TOTAL
A4: (en millions de dollars canadiens, sauf indication contraire) (non audité) | C4: 2025 | E4: T3 25 | F4: T2 25 | G4: T1 25 | I4: 2024 | K4: T4 24 | L4: T3 24 | M4: T2 24 | N4: T1 24
A5: Bell SCT – Canada
A6: Produits d’exploitation
A7: Services sans fil | C7: 5346 | E7: 1804 | F7: 1783 | G7: 1759 | I7: 7149 | K7: 1776 | L7: 1811 | M7: 1788 | N7: 1774
A8: Services de données filaires | C8: 6075 | E8: 2036 | F8: 2025 | G8: 2014 | I8: 8117 | K8: 2033 | L8: 2038 | M8: 2034 | N8: 2012
A9: Services voix filaires | C9: 1856 | E9: 603 | F9: 624 | G9: 629 | I9: 2672 | K9: 649 | L9: 663 | M9: 677 | N9: 683
A10: Autres services sur fil | C10: 234 | E10: 78 | F10: 77 | G10: 79 | I10: 318 | K10: 82 | L10: 76 | M10: 79 | N10: 81
A11: Produits externes tirés des services | C11: 13511 | E11: 4521 | F11: 4509 | G11: 4481 | I11: 18256 | K11: 4540 | L11: 4588 | M11: 4578 | N11: 4550
A12: Produits intersectoriels tirés des services | C12: 21 | E12: 7 | F12: 7 | G12: 7 | I12: 27 | K12: 6 | L12: 7 | M12: 8 | N12: 6
A13: Produits d’exploitation tirés des services | C13: 13532 | E13: 4528 | F13: 4516 | G13: 4488 | I13: 18283 | K13: 4546 | L13: 4595 | M13: 4586 | N13: 4556
A14: Services sans fil | C14: 1828 | E14: 610 | F14: 594 | G14: 624 | I14: 2715 | K14: 894 | L14: 569 | M14: 568 | N14: 684
A15: Services sur fil | C15: 468 | E15: 110 | F15: 224 | G15: 134 | I15: 621 | K15: 241 | L15: 116 | M15: 129 | N15: 135
A16: Produits externes/d’exploitation tirés des produits | C16: 2296 | E16: 720 | F16: 818 | G16: 758 | I16: 3336 | K16: 1135 | L16: 685 | M16: 697 | N16: 819
A17: Total des produits externes | C17: 15807 | E17: 5241 | F17: 5327 | G17: 5239 | I17: 21592 | K17: 5675 | L17: 5273 | M17: 5275 | N17: 5369
A18: Total des produits d’exploitation | C18: 15828 | E18: 5248 | F18: 5334 | G18: 5246 | I18: 21619 | K18: 5681 | L18: 5280 | M18: 5283 | N18: 5375
A19: Coûts d’exploitation | C19: -8536 | E19: -2794 | F19: -2895 | G19: -2847 | I19: -11788 | K19: -3245 | L19: -2812 | M19: -2804 | N19: -2927
A20: BAIIA ajusté | C20: 7292 | E20: 2454 | F20: 2439 | G20: 2399 | I20: 9831 | K20: 2436 | L20: 2468 | M20: 2479 | N20: 2448
A21: Marge du BAIIA ajusté | C21: 0.4607025524 | E21: 0.4676067073 | F21: 0.457 | G21: 0.457 | I21: 0.455 | K21: 0.429 | L21: 0.467 | M21: 0.469 | N21: 0.455
A23: Dépenses d’investissement | C23: 2163 | E23: 732 | F23: 727 | G23: 704 | I23: 3746 | K23: 907 | L23: 919 | M23: 945 | N23: 975
A24: Intensité du capital | C24: 0.136656558 | E24: 0.1394817073 | F24: 0.136 | G24: 0.134 | I24: 0.173 | K24: 0.16 | L24: 0.174 | M24: 0.179 | N24: 0.181
A26: Bell SCT – États-Unis
A27: Produits d’exploitation
A28: Services de données filaires | C28: 129 | E28: 129 | F28: 0 | G28: 0 | I28: 0 | K28: 0 | L28: 0 | M28: 0 | N28: 0
A29: Services voix filaires | C29: 29 | E29: 29 | F29: 0 | G29: 0 | I29: 0 | K29: 0 | L29: 0 | M29: 0 | N29: 0
A30: Autres services sur fil | C30: 2 | E30: 2 | F30: 0 | G30: 0 | I30: 0 | K30: 0 | L30: 0 | M30: 0 | N30: 0
A31: Produits externes/d’exploitation tirés des produits | C31: 160 | E31: 160 | F31: 0 | G31: 0 | I31: 0 | K31: 0 | L31: 0 | M31: 0 | N31: 0
A32: Total des produits externes/d’exploitation tirés des produits | C32: 160 | E32: 160 | F32: 0 | G32: 0 | I32: 0 | K32: 0 | L32: 0 | M32: 0 | N32: 0
A33: Coûts d’exploitation | C33: -89 | E33: -89 | F33: 0 | G33: 0 | I33: 0 | K33: 0 | L33: 0 | M33: 0 | N33: 0
A34: BAIIA ajusté | C34: 71 | E34: 71 | F34: 0 | G34: 0 | I34: 0 | K34: 0 | L34: 0 | M34: 0 | N34: 0
A35: Marge du BAIIA ajusté | C35: 0.44375 | E35: 0.44375 | F35: 0 | G35: 0 | I35: 0 | K35: 0 | L35: 0 | M35: 0 | N35: 0
A37: Dépenses d’investissement | C37: 128 | E37: 128 | F37: 0 | G37: 0 | I37: 0 | K37: 0 | L37: 0 | M37: 0 | N37: 0
A38: Intensité du capital | C38: 0.8 | E38: 0.8 | F38: 0 | G38: 0 | I38: 0 | K38: 0 | L38: 0 | M38: 0 | N38: 0

Sheet BELL CTS Summary p8
J1: Bell SCT
C3: T3 | D3: T3 | F3: % de | G3: Cumul | H3: Cumul | J3: % de
A4: (en millions de dollars canadiens, sauf indication contraire) (non audité) | C4: 2025 | D4: 2024 | F4: variation | G4: 2025 | H4: 2024 | J4: variation
A5: Bell SCT
A6: Produits d’exploitation
A7: Services sans fil | C7: 1804 | D7: 1811 | F7: -0.003865267808 | G7: 5346 | H7: 5373 | J7: -0.005025125628
A8: Services de données filaires | C8: 2165 | D8: 2038 | F8: 0.06231599607 | G8: 6204 | H8: 6084 | J8: 0.01972386588
A9: Services voix filaires | C9: 632 | D9: 663 | F9: -0.0467571644 | G9: 1885 | H9: 2023 | J9: -0.0682155215
A10: Autres services sur fil | C10: 80 | D10: 76 | F10: 0.05263157895 | G10: 236 | H10: 236 | J10: 0
A11: Produits externes tirés des services | C11: 4681 | D11: 4588 | F11: 0.02027027027 | G11: 13671 | H11: 13716 | J11: -0.003280839895
A12: Produits intersectoriels tirés des services | C12: 7 | D12: 7 | F12: 0 | G12: 21 | H12: 21 | J12: 0
A13: Produits d’exploitation tirés des services | C13: 4688 | D13: 4595 | F13: 0.02023939064 | G13: 13692 | H13: 13737 | J13: -0.003275824416
A14: Services sans fil | C14: 610 | D14: 569 | F14: 0.07205623902 | G14: 1828 | H14: 1821 | J14: 0.003844041735
A15: Services sur fil | C15: 110 | D15: 116 | F15: -0.05172413793 | G15: 468 | H15: 380 | J15: 0.2315789474
A16: Produits externes/d’exploitation tirés des produits | C16: 720 | D16: 685 | F16: 0.05109489051 | G16: 2296 | H16: 2201 | J16: 0.043162199
A17: Total des produits externes | C17: 5401 | D17: 5273 | F17: 0.02427460649 | G17: 15967 | H17: 15917 | J17: 0.00314129547
A18: Total des produits d’exploitation | C18: 5408 | D18: 5280 | F18: 0.02424242424 | G18: 15988 | H18: 15938 | J18: 0.003137156481
A19: Coûts d’exploitation | C19: -2883 | D19: -2812 | F19: -0.02524893314 | G19: -8625 | H19: -8543 | J19: -0.009598501697
A20: BAIIA ajusté | C20: 2525 | D20: 2468 | F20: 0.02309562399 | G20: 7363 | H20: 7395 | J20: -0.004327248141
A21: Marge du BAIIA ajusté | C21: 46,7 % | D21: 0.467 | F21: 0 | G21: 46,1 % | H21: 0.464 | J21: -0.3
A23: Dépenses d’investissement | C23: 860 | D23: 919 | F23: 0.06420021763 | G23: 2291 | H23: 2839 | J23: 0.1930257133
A24: Intensité du capital | C24: 15,9 % | D24: 0.174 | F24: 1.5 | G24: 14,3 % | H24: 0.178 | J24: 3.5

Sheet BELL CTS HIST Info p9
N1: Bell SCT – Tendance historique
C3: Cumul | I3: TOTAL
A4: (en millions de dollars canadiens, sauf indication contraire) (non audité) | C4: 2025 | E4: T3 25 | F4: T2 25 | G4: T1 25 | I4: 2024 | K4: T4 24 | L4: T3 24 | M4: T2 24 | N4: T1 24
A5: Bell SCT
A6: Produits d’exploitation
A7: Services sans fil | C7: 5346 | E7: 1804 | F7: 1783 | G7: 1759 | I7: 7149 | K7: 1776 | L7: 1811 | M7: 1788 | N7: 1774
A8: Services de données filaires | C8: 6204 | E8: 2165 | F8: 2025 | G8: 2014 | I8: 8117 | K8: 2033 | L8: 2038 | M8: 2034 | N8: 2012
A9: Services voix filaires | C9: 1885 | E9: 632 | F9: 624 | G9: 629 | I9: 2672 | K9: 649 | L9: 663 | M9: 677 | N9: 683
A10: Autres services sur fil | C10: 236 | E10: 80 | F10: 77 | G10: 79 | I10: 318 | K10: 82 | L10: 76 | M10: 79 | N10: 81
A11: Produits externes tirés des services | C11: 13671 | E11: 4681 | F11: 4509 | G11: 4481 | I11: 18256 | K11: 4540 | L11: 4588 | M11: 4578 | N11: 4550
A12: Produits intersectoriels tirés des services | C12: 21 | E12: 7 | F12: 7 | G12: 7 | I12: 27 | K12: 6 | L12: 7 | M12: 8 | N12: 6
A13: Produits d’exploitation tirés des services | C13: 13692 | E13: 4688 | F13: 4516 | G13: 4488 | I13: 18283 | K13: 4546 | L13: 4595 | M13: 4586 | N13: 4556
A14: Services sans fil | C14: 1828 | E14: 610 | F14: 594 | G14: 624 | I14: 2715 | K14: 894 | L14: 569 | M14: 568 | N14: 684
A15: Services sur fil | C15: 468 | E15: 110 | F15: 224 | G15: 134 | I15: 621 | K15: 241 | L15: 116 | M15: 129 | N15: 135
A16: Produits externes/d’exploitation tirés des produits | C16: 2296 | E16: 720 | F16: 818 | G16: 758 | I16: 3336 | K16: 1135 | L16: 685 | M16: 697 | N16: 819
A17: Total des produits externes | C17: 15967 | E17: 5401 | F17: 5327 | G17: 5239 | I17: 21592 | K17: 5675 | L17: 5273 | M17: 5275 | N17: 5369
A18: Total des produits d’exploitation | C18: 15988 | E18: 5408 | F18: 5334 | G18: 5246 | I18: 21619 | K18: 5681 | L18: 5280 | M18: 5283 | N18: 5375
A19: Coûts d’exploitation | C19: -8625 | E19: -2883 | F19: -2895 | G19: -2847 | I19: -11788 | K19: -3245 | L19: -2812 | M19: -2804 | N19: -2927
A20: BAIIA ajusté | C20: 7363 | E20: 2525 | F20: 2439 | G20: 2399 | I20: 9831 | K20: 2436 | L20: 2468 | M20: 2479 | N20: 2448
A21: Marge du BAIIA ajusté | C21: 0.4605328997 | E21: 0.4669008876 | F21: 0.457 | G21: 0.457 | I21: 0.455 | K21: 0.429 | L21: 0.467 | M21: 0.469 | N21: 0.455
A23: Dépenses d’investissement | C23: 2291 | E23: 860 | F23: 727 | G23: 704 | I23: 3746 | K23: 907 | L23: 919 | M23: 945 | N23: 975
A24: Intensité du capital | C24: 0.1432949712 | E24: 0.1590236686 | F24: 0.136 | G24: 0.134 | I24: 0.173 | K24: 0.16 | L24: 0.174 | M24: 0.179 | N24: 0.181

Sheet CTS Metrics Summary p10
J1: Indicateurs de Bell SCT
C3: T3 | D3: T3 | F3: % de | G3: Cumul | H3: Cumul | J3: % de
A4: (en millions de dollars canadiens, sauf indication contraire) (non audité) | C4: 2025 | D4: 2024 | F4: variation | G4: 2025 | H4: 2024 | J4: variation
A5: Abonnés utilisant des téléphones mobiles (3)
A6: Activations brutes d’abonnés | C6: 514661 | D6: 588263 | F6: -0.125117507 | G6: 1493843 | H6: 1671036 | J6: -0.1060378113
A7: Services postpayés | C7: 315607 | D7: 374116 | F7: -0.1563926697 | G7: 967295 | H7: 1130203 | J7: -0.1441404774
A8: Services prépayés | C8: 199054 | D8: 214147 | F8: -0.07047962381 | G8: 526548 | H8: 540833 | J8: -0.02641295927
A9: Activations nettes d’abonnés | C9: 68018 | D9: 102196 | F9: -0.3344357901 | G9: 161901 | H9: 258447 | J9: -0.3735620843
A10: Services postpayés | C10: 11511 | D10: 33111 | F10: -0.6523511824 | G10: 46460 | H10: 156858 | J10: -0.7038085402
A11: Services prépayés | C11: 56507 | D11: 69085 | F11: -0.1820655714 | G11: 115441 | H11: 101589 | J11: 0.1363533453
A12: Abonnés à la fin de la période (A) (D) (E) | C12: 10398934 | D12: 10361720 | F12: 0.003591488672 | G12: 10398934 | H12: 10361720 | J12: 0.003591488672
A13: Services postpayés (A) | C13: 9525355 | D13: 9473886 | F13: 0.005432723172 | G13: 9525355 | H13: 9473886 | J13: 0.005432723172
A14: Services prépayés (D) (E) | C14: 873579 | D14: 887834 | F14: -0.01605592937 | G14: 873579 | H14: 887834 | J14: -0.01605592937
A15: Revenu moyen par utilisateur (RMU) combiné ($/mois) (3) (A) (D) (E) (F) | C15: 58.04 | D15: 58.26 | F15: -0.003776175764 | G15: 57.58 | H15: 58.15 | J15: -0.009802235598
A16: Taux de désabonnement combiné (%) (moyen par mois) (3) | C16: 0.0145 | D16: 0.0158 | F16: 0.13 | G16: 0.0145 | H16: 0.0155 | J16: 0.1
A17: Services postpayés | C17: 0.0113 | D17: 0.0128 | F17: 0.15 | G17: 0.0113 | H17: 0.0123 | J17: 0.1
A18: Services prépayés | C18: 0.051 | D18: 0.0466 | F18: -0.44 | G18: 0.053 | H18: 0.0499 | J18: -0.31
A19: Activations d’abonnés utilisant des appareils mobiles (3)
A20: Activations nettes d’abonnés | C20: 83505 | D20: 56216 | F20: 0.485431194 | G20: 216991 | H20: 210539 | J20: 0.03064515363
A21: Abonnés à la fin de la période (A) | C21: 3252554 | D21: 2943087 | F21: 0.1051504764 | G21: 3252554 | H21: 2943087 | J21: 0.1051504764
A22: Abonnés des services Internet haute vitesse de détail (3)
B23: Bell SCT – Canada | C23: 21426 | D23: 42415 | F23: -0.4948485206 | G23: 35940 | H23: 97334 | J23: -0.6307559537
B24: Bell SCT – États-Unis | C24: 4685 | D24: 0 | F24: n.s. | G24: 4685 | H24: 0 | J24: n.s.
A25: Activations nettes d’abonnés des services de détail – Bell SCT | C25: 26111 | D25: 42415 | F25: -0.384392314 | G25: 40625 | H25: 97334 | J25: -0.5826227218
B26: Bell SCT – Canada (C) (E) | C26: 4443387 | D26: 4456709 | F26: -0.002989201224 | G26: 4443387 | H26: 4456709 | J26: -0.002989201224
B27: Bell SCT – États-Unis (B) | C27: 446910 | D27: 0 | F27: n.s. | G27: 446910 | H27: 0 | J27: n.s.
A28: Abonnés des services de détail à la fin de la période – Bell SCT (B) (C) (E) | C28: 4890297 | D28: 4456709 | F28: 0.09728882904 | G28: 4890297 | H28: 4456709 | J28: 0.09728882904
A29: Abonnés des services de télé sur protocole Internet (télé IP) de détail (3)
B30: Bell SCT – Canada | C30: -16161 | D30: 9197 | F30: n.s. | G30: -47983 | H30: 22058 | J30: n.s.
B31: Bell SCT – États-Unis | C31: -57 | D31: 0 | F31: n.s. | G31: -57 | H31: 0 | J31: n.s.
A32: (Pertes) activations nettes d’abonnés des services de télé IP de détail – Bell SCT | C32: -16218 | D32: 9197 | F32: n.s. | G32: -48040 | H32: 22058 | J32: n.s.
B33: Bell SCT – Canada (C) (G) | C33: 2084529 | D33: 2133397 | F33: -0.02290619139 | G33: 2084529 | H33: 2133397 | J33: -0.02290619139
B34: Bell SCT – États-Unis (B) | C34: 6032 | D34: 0 | F34: n.s. | G34: 6032 | H34: 0 | J34: n.s.
A35: Abonnés des services de télé IP de détail à la fin de la période – Bell SCT (B) (C) (G) | C35: 2090561 | D35: 2133397 | F35: -0.02007877577 | G35: 2090561 | H35: 2133397 | J35: -0.02007877577
A36: Services d’accès au réseau (SAR) résidentiels de détail (3)
B37: Bell SCT – Canada | C37: -42866 | D37: -47674 | F37: 0.1008516172 | G37: -134996 | H37: -144835 | J37: 0.06793247489
B38: Bell SCT – États-Unis | C38: -3124 | D38: 0 | F38: n.s. | G38: -3124 | H38: 0 | J38: n.s.
A39: Pertes nettes d’abonnés des SAR filaires résidentiels de détail – Bell SCT | C39: -45990 | D39: -47674 | F39: 0.03532323698 | G39: -138120 | H39: -144835 | J39: 0.04636310284
B40: Bell SCT – Canada (C) | C40: 1685045 | D40: 1876782 | F40: -0.102162638 | G40: 1685045 | H40: 1876782 | J40: -0.102162638
B41: Bell SCT – États-Unis (B) | C41: 81316 | D41: 0 | F41: n.s. | G41: 81316 | H41: 0 | J41: n.s.
A42: Abonnés des SAR filaires résidentiels de détail – Bell SCT (B) (C) | C42: 1766361 | D42: 1876782 | F42: -0.05883528295 | G42: 1766361 | H42: 1876782 | J42: -0.05883528295
A43: n.s. : non significatif
A45: (A) | B45: Au T3 2025, Bell SCT – Canada a réduit sa clientèle d’abonnés des services postpayés utilisant des téléphones mobiles et des appareils mobiles connectés de 51 541 et 7 867, respectivement, à la suite de l’examen d’un compte client du secteur public visant à éliminer les abonnés non utilisateurs.
A46: (B) | B46: Au T3 2025, à la suite de l’acquisition de Ziply Fiber le 1er août 2025, la clientèle d’abonnés de Bell SCT – États-Unis pour les services Internet haute vitesse de détail, des services de télé IP de détail et des SAR filaires résidentiels de détail a augmenté de 442 225 abonnés, de 6 089 abonnés et de 84 440 abonnés, respectivement.
A47: (C) | B47: Au T1 2025, nous avons réduit notre clientèle d’abonnés des services Internet haute vitesse de détail, des services de télé IP de détail et des SAR filaires résidentiels de détail de 80 666 abonnés, de 441 abonnés et de 14 150 abonnés, respectivement, dans le secteur Bell SCT – Canada, au 31 mars 2025, car nous avons cessé de vendre de nouveaux forfaits des marques Distributel, Acanac, Oricom et B2B2C pour ces services. En outre, au début du T1 2025, nous avons réduit notre clientèle d’abonnés des services Internet haute vitesse de détail de 2 783 abonnés, dans le secteur Bell SCT – Canada, afin d’ajuster le nombre pour tenir compte des désactivations d’abonnés de l’exercice précédent à la suite d’un examen du compte de nos abonnés.
A48: (D) | B48: Au T4 2024, nous avons retiré 124 216 abonnés des services prépayés utilisant des téléphones mobiles de Bell de notre clientèle d’abonnés des services prépayés utilisant des téléphones mobiles, dans le secteur Bell SCT – Canada, au 31 décembre 2024, car nous avons cessé de vendre de nouveaux forfaits pour ces services à cette date.
A49: (E) | B49: Au T3 2024, nous avons retiré 77 971 abonnés des services prépayés utilisant des téléphones mobiles de Virgin Plus de notre clientèle d’abonnés des services prépayés utilisant des téléphones mobiles, dans le secteur Bell SCT – Canada, au 30 septembre 2024, car nous avons cessé de vendre de nouveaux forfaits pour ces services à cette date. En outre, en raison d’une récente décision du Conseil de la radiodiffusion et des télécommunications canadiennes (CRTC) visant les services d’accès Internet haute vitesse de gros, nous ne sommes plus en mesure de revendre des services Internet par câble à de nouveaux clients dans notre zone de couverture des services sur fil depuis le 12 septembre 2024 et, par conséquent, dans le secteur Bell SCT – Canada, nous avons retiré la totalité des 106 259 abonnés existants aux services par câble dans la zone de couverture des services sur fil de notre clientèle d’abonnés des services Internet haute vitesse de détail à cette date.
A50: (F) | B50: Le RMU combiné des abonnés utilisant des téléphones mobiles se définit comme les produits externes tirés des services sans fil du secteur Bell SCT – Canada divisés par le nombre moyen d’abonnés utilisant des téléphones mobiles pour la période visée, et est exprimé en unité monétaire par mois. Se reporter à la note 3, Indicateurs de performance clés des notes annexes du présent rapport pour un complément d’information sur cette mesure.
A51: (G) | B51: Au T2 2024, nous avons augmenté notre clientèle d’abonnés des services de télé IP de détail de 40 997 abonnés, dans le secteur Bell SCT – Canada, pour aligner le calcul de la désactivation de nos services de télé en continu Télé Fibe sur celui de notre service Télé Fibe traditionnel.

Sheet BCE Inc. Seg Info Summary p4 (hidden)
L1: BCE (1) (2)
L2: Segmented Data
A5: (In millions of Canadian dollars, except where otherwise indicated) (unaudited) | B5: Q4 2022 | C5: Q4 2021 | E5: $ change | F5: % change | H5: TOTAL 2022 | I5: TOTAL 2021 | K5: $ change | L5: % change
A7: Operating revenues
A8: Bell Wireless | B8: ='BCE Inc. Seg Info HIST p5'!G23 ->  | C8: ='BCE Inc. Seg Info HIST p5'!N23 -> 2475 | E8: =B8-C8 ->  | F8: =IF(OR((+E8/(ABS(C8)))>100%,(+E8/(ABS(C8)))<-100%),"n.m.",(+E8/(ABS(C8)))) ->  | H8: ='BCE Inc. Seg Info HIST p5'!E23 ->  | I8: ='BCE Inc. Seg Info HIST p5'!O23+'BCE Inc. Seg Info HIST p5'!P23+'BCE Inc. Seg Info HIST p5'!Q23+'BCE Inc. Seg Info HIST p5'!N23 -> 8999 | K8: =H8-I8 ->  | L8: =IF(OR((+K8/(ABS(I8)))>100%,(+K8/(ABS(I8)))<-100%),"n.m.",(+K8/(ABS(I8)))) -> 
A9: Bell Wireline | B9: ='BCE Inc. Seg Info HIST p5'!G24 ->  | C9: ='BCE Inc. Seg Info HIST p5'!N24 -> 3079 | E9: =B9-C9 ->  | F9: =IF(OR((+E9/(ABS(C9)))>100%,(+E9/(ABS(C9)))<-100%),"n.m.",(+E9/(ABS(C9)))) ->  | H9: ='BCE Inc. Seg Info HIST p5'!E24 ->  | I9: ='BCE Inc. Seg Info HIST p5'!O24+'BCE Inc. Seg Info HIST p5'!P24+'BCE Inc. Seg Info HIST p5'!Q24+'BCE Inc. Seg Info HIST p5'!N24 -> 12178 | K9: =H9-I9 ->  | L9: =IF(OR((+K9/(ABS(I9)))>100%,(+K9/(ABS(I9)))<-100%),"n.m.",(+K9/(ABS(I9)))) -> 
A10: Bell Media | B10: ='BCE Inc. Seg Info HIST p5'!G25 ->  | C10: ='BCE Inc. Seg Info HIST p5'!N25 -> 849 | E10: =B10-C10 ->  | F10: =IF(OR((+E10/(ABS(C10)))>100%,(+E10/(ABS(C10)))<-100%),"n.m.",(+E10/(ABS(C10)))) ->  | H10: ='BCE Inc. Seg Info HIST p5'!E25 ->  | I10: ='BCE Inc. Seg Info HIST p5'!O25+'BCE Inc. Seg Info HIST p5'!P25+'BCE Inc. Seg Info HIST p5'!Q25+'BCE Inc. Seg Info HIST p5'!N25 -> 3036 | K10: =H10-I10 ->  | L10: =IF(OR((+K10/(ABS(I10)))>100%,(+K10/(ABS(I10)))<-100%),"n.m.",(+K10/(ABS(I10)))) -> 
A11: Inter-segment eliminations | B11: ='BCE Inc. Seg Info HIST p5'!G26 ->  | C11: ='BCE Inc. Seg Info HIST p5'!N26 -> -194 | E11: =B11-C11 ->  | F11: =IF(OR((+E11/(ABS(C11)))>100%,(+E11/(ABS(C11)))<-100%),"n.m.",(+E11/(ABS(C11)))) ->  | H11: ='BCE Inc. Seg Info HIST p5'!E26 ->  | I11: ='BCE Inc. Seg Info HIST p5'!O26+'BCE Inc. Seg Info HIST p5'!P26+'BCE Inc. Seg Info HIST p5'!Q26+'BCE Inc. Seg Info HIST p5'!N26 -> -764 | K11: =H11-I11 ->  | L11: =IF(OR((+K11/(ABS(I11)))>100%,(+K11/(ABS(I11)))<-100%),"n.m.",(+K11/(ABS(I11)))) -> 
A12: Total | B12: ='BCE Inc. Seg Info HIST p5'!G27 ->  | C12: ='BCE Inc. Seg Info HIST p5'!N27 -> 6209 | E12: =B12-C12 ->  | F12: =IF(OR((+E12/(ABS(C12)))>100%,(+E12/(ABS(C12)))<-100%),"n.m.",(+E12/(ABS(C12)))) ->  | H12: ='BCE Inc. Seg Info HIST p5'!E27 ->  | I12: ='BCE Inc. Seg Info HIST p5'!O27+'BCE Inc. Seg Info HIST p5'!P27+'BCE Inc. Seg Info HIST p5'!Q27+'BCE Inc. Seg Info HIST p5'!N27 -> 23449 | K12: =H12-I12 ->  | L12: =IF(OR((+K12/(ABS(I12)))>100%,(+K12/(ABS(I12)))<-100%),"n.m.",(+K12/(ABS(I12)))) -> 
A14: Operating costs
A15: Bell Wireless | B15: ='BCE Inc. Seg Info HIST p5'!G30 ->  | C15: ='BCE Inc. Seg Info HIST p5'!N30 -> -1524 | E15: =B15-C15 ->  | F15: =IF(OR((+E15/(ABS(C15)))>100%,(+E15/(ABS(C15)))<-100%),"n.m.",(+E15/(ABS(C15)))) ->  | H15: ='BCE Inc. Seg Info HIST p5'!E30 ->  | I15: ='BCE Inc. Seg Info HIST p5'!O30+'BCE Inc. Seg Info HIST p5'!P30+'BCE Inc. Seg Info HIST p5'!Q30+'BCE Inc. Seg Info HIST p5'!N30 -> -5146 | K15: =H15-I15 ->  | L15: =IF(OR((+K15/(ABS(I15)))>100%,(+K15/(ABS(I15)))<-100%),"n.m.",(+K15/(ABS(I15)))) -> 
A16: Bell Wireline | B16: ='BCE Inc. Seg Info HIST p5'!G31 ->  | C16: ='BCE Inc. Seg Info HIST p5'!N31 -> -1753 | E16: =B16-C16 ->  | F16: =IF(OR((+E16/(ABS(C16)))>100%,(+E16/(ABS(C16)))<-100%),"n.m.",(+E16/(ABS(C16)))) ->  | H16: ='BCE Inc. Seg Info HIST p5'!E31 ->  | I16: ='BCE Inc. Seg Info HIST p5'!O31+'BCE Inc. Seg Info HIST p5'!P31+'BCE Inc. Seg Info HIST p5'!Q31+'BCE Inc. Seg Info HIST p5'!N31 -> -6863 | K16: =H16-I16 ->  | L16: =IF(OR((+K16/(ABS(I16)))>100%,(+K16/(ABS(I16)))<-100%),"n.m.",(+K16/(ABS(I16)))) -> 
A17: Bell Media | B17: ='BCE Inc. Seg Info HIST p5'!G32 ->  | C17: ='BCE Inc. Seg Info HIST p5'!N32 -> -696 | E17: =B17-C17 ->  | F17: =IF(OR((+E17/(ABS(C17)))>100%,(+E17/(ABS(C17)))<-100%),"n.m.",(+E17/(ABS(C17)))) ->  | H17: ='BCE Inc. Seg Info HIST p5'!E32 ->  | I17: ='BCE Inc. Seg Info HIST p5'!O32+'BCE Inc. Seg Info HIST p5'!P32+'BCE Inc. Seg Info HIST p5'!Q32+'BCE Inc. Seg Info HIST p5'!N32 -> -2311 | K17: =H17-I17 ->  | L17: =IF(OR((+K17/(ABS(I17)))>100%,(+K17/(ABS(I17)))<-100%),"n.m.",(+K17/(ABS(I17)))) -> 
A18: Inter-segment eliminations | B18: ='BCE Inc. Seg Info HIST p5'!G33 ->  | C18: ='BCE Inc. Seg Info HIST p5'!N33 -> 194 | E18: =B18-C18 ->  | F18: =IF(OR((+E18/(ABS(C18)))>100%,(+E18/(ABS(C18)))<-100%),"n.m.",(+E18/(ABS(C18)))) ->  | H18: ='BCE Inc. Seg Info HIST p5'!E33 ->  | I18: ='BCE Inc. Seg Info HIST p5'!O33+'BCE Inc. Seg Info HIST p5'!P33+'BCE Inc. Seg Info HIST p5'!Q33+'BCE Inc. Seg Info HIST p5'!N33 -> 764 | K18: =H18-I18 ->  | L18: =IF(OR((+K18/(ABS(I18)))>100%,(+K18/(ABS(I18)))<-100%),"n.m.",(+K18/(ABS(I18)))) -> 
A19: Total | B19: ='BCE Inc. Seg Info HIST p5'!G34 ->  | C19: ='BCE Inc. Seg Info HIST p5'!N34 -> -3779 | E19: =B19-C19 ->  | F19: =IF(OR((+E19/(ABS(C19)))>100%,(+E19/(ABS(C19)))<-100%),"n.m.",(+E19/(ABS(C19)))) ->  | H19: ='BCE Inc. Seg Info HIST p5'!E34 ->  | I19: ='BCE Inc. Seg Info HIST p5'!O34+'BCE Inc. Seg Info HIST p5'!P34+'BCE Inc. Seg Info HIST p5'!Q34+'BCE Inc. Seg Info HIST p5'!N34 -> -13556 | K19: =H19-I19 ->  | L19: =IF(OR((+K19/(ABS(I19)))>100%,(+K19/(ABS(I19)))<-100%),"n.m.",(+K19/(ABS(I19)))) -> 
A21: Adjusted EBITDA
A22: Bell Wireless | B22: ='BCE Inc. Seg Info HIST p5'!G37 ->  | C22: ='BCE Inc. Seg Info HIST p5'!N37 -> 951 | E22: =B22-C22 ->  | F22: =IF(OR((+E22/(ABS(C22)))>100%,(+E22/(ABS(C22)))<-100%),"n.m.",(+E22/(ABS(C22)))) ->  | H22: ='BCE Inc. Seg Info HIST p5'!E37 ->  | I22: ='BCE Inc. Seg Info HIST p5'!O37+'BCE Inc. Seg Info HIST p5'!P37+'BCE Inc. Seg Info HIST p5'!Q37+'BCE Inc. Seg Info HIST p5'!N37 -> 3853 | K22: =H22-I22 ->  | L22: =IF(OR((+K22/(ABS(I22)))>100%,(+K22/(ABS(I22)))<-100%),"n.m.",(+K22/(ABS(I22)))) -> 
A23: Margin | B23: ='BCE Inc. Seg Info HIST p5'!G38 ->  | C23: ='BCE Inc. Seg Info HIST p5'!N38 -> 0.384 | F23: =((ROUND(B23,3)-ROUND(C23,3))*100) ->  | H23: ='BCE Inc. Seg Info HIST p5'!E38 ->  | I23: =I22/I8 -> 0.4281586843 | L23: =((ROUND(H23,3)-ROUND(I23,3))*100) -> 
A24: Bell Wireline | B24: ='BCE Inc. Seg Info HIST p5'!G39 ->  | C24: ='BCE Inc. Seg Info HIST p5'!N39 -> 1326 | E24: =B24-C24 ->  | F24: =IF(OR((+E24/(ABS(C24)))>100%,(+E24/(ABS(C24)))<-100%),"n.m.",(+E24/(ABS(C24)))) ->  | H24: ='BCE Inc. Seg Info HIST p5'!E39 ->  | I24: ='BCE Inc. Seg Info HIST p5'!O39+'BCE Inc. Seg Info HIST p5'!P39+'BCE Inc. Seg Info HIST p5'!Q39+'BCE Inc. Seg Info HIST p5'!N39 -> 5315 | K24: =H24-I24 ->  | L24: 0
A25: Margin | B25: ='BCE Inc. Seg Info HIST p5'!G40 ->  | C25: ='BCE Inc. Seg Info HIST p5'!N40 -> 0.431 | F25: =((ROUND(B25,3)-ROUND(C25,3))*100) ->  | H25: ='BCE Inc. Seg Info HIST p5'!E40 ->  | I25: =I24/I9 -> 0.4364427656 | L25: =((ROUND(H25,3)-ROUND(I25,3))*100) -> 
A26: Bell Media | B26: ='BCE Inc. Seg Info HIST p5'!G41 ->  | C26: ='BCE Inc. Seg Info HIST p5'!N41 -> 153 | E26: =B26-C26 ->  | F26: =IF(OR((+E26/(ABS(C26)))>100%,(+E26/(ABS(C26)))<-100%),"n.m.",(+E26/(ABS(C26)))) ->  | H26: ='BCE Inc. Seg Info HIST p5'!E41 ->  | I26: ='BCE Inc. Seg Info HIST p5'!O41+'BCE Inc. Seg Info HIST p5'!P41+'BCE Inc. Seg Info HIST p5'!Q41+'BCE Inc. Seg Info HIST p5'!N41 -> 725 | K26: =H26-I26 ->  | L26: =IF(OR((+K26/(ABS(I26)))>100%,(+K26/(ABS(I26)))<-100%),"n.m.",(+K26/(ABS(I26)))) -> 
A27: Margin | B27: ='BCE Inc. Seg Info HIST p5'!G42 ->  | C27: ='BCE Inc. Seg Info HIST p5'!N42 -> 0.18 | F27: =((ROUND(B27,3)-ROUND(C27,3))*100) ->  | H27: =('BCE Inc. Seg Info HIST p5'!E42) ->  | I27: =I26/I10 -> 0.238801054 | L27: =((ROUND(H27,3)-ROUND(I27,3))*100) -> 
A28: Total | B28: ='BCE Inc. Seg Info HIST p5'!G43 ->  | C28: ='BCE Inc. Seg Info HIST p5'!N43 -> 2430 | E28: =B28-C28 ->  | F28: =IF(OR((+E28/(ABS(C28)))>100%,(+E28/(ABS(C28)))<-100%),"n.m.",(+E28/(ABS(C28)))) ->  | H28: ='BCE Inc. Seg Info HIST p5'!E43 ->  | I28: ='BCE Inc. Seg Info HIST p5'!O43+'BCE Inc. Seg Info HIST p5'!P43+'BCE Inc. Seg Info HIST p5'!Q43+'BCE Inc. Seg Info HIST p5'!N43 -> 9893 | K28: =H28-I28 ->  | L28: =IF(OR((+K28/(ABS(I28)))>100%,(+K28/(ABS(I28)))<-100%),"n.m.",(+K28/(ABS(I28)))) -> 
A29: Margin | B29: ='BCE Inc. Seg Info HIST p5'!G44 ->  | C29: ='BCE Inc. Seg Info HIST p5'!N44 -> 0.391 | F29: =((ROUND(B29,3)-ROUND(C29,3))*100) ->  | H29: ='BCE Inc. Seg Info HIST p5'!E44 ->  | I29: =I28/I12 -> 0.4218943239 | L29: =((ROUND(I29,3)-ROUND(H29,3))*100) -> 
A31: Capital expenditures
A32: Bell Wireless | B32: =+'BCE Inc. Seg Info HIST p5'!G47 -> 308 | C32: =+'BCE Inc. Seg Info HIST p5'!N47 -> 273 | E32: =C32-B32 -> -35 | F32: =IF(OR((+E32/(ABS(C32)))>100%,(+E32/(ABS(C32)))<-100%),"n.m.",(+E32/(ABS(C32)))) -> -0.1282051282 | H32: =+'BCE Inc. Seg Info HIST p5'!E47 -> 1084 | I32: ='BCE Inc. Seg Info HIST p5'!O47+'BCE Inc. Seg Info HIST p5'!P47+'BCE Inc. Seg Info HIST p5'!Q47+'BCE Inc. Seg Info HIST p5'!N47 -> 1120 | K32: =I32-H32 -> 36 | L32: =IF(OR((+K32/(ABS(I32)))>100%,(+K32/(ABS(I32)))<-100%),"n.m.",(+K32/(ABS(I32)))) -> 0.03214285714
A33: Capital intensity (A)(4) | B33: =+'BCE Inc. Seg Info HIST p5'!G48 ->  | C33: =+'BCE Inc. Seg Info HIST p5'!N48 -> 0.1103030303 | F33: =((ROUND(C33,3)-ROUND(B33,3))*100) ->  | H33: ='BCE Inc. Seg Info HIST p5'!E48 ->  | I33: =I32/I8 -> 0.1244582731 | L33: =((ROUND(I33,3)-ROUND(H33,3))*100) -> 
A34: Bell Wireline | B34: =+'BCE Inc. Seg Info HIST p5'!G49 -> 1251 | C34: =+'BCE Inc. Seg Info HIST p5'!N49 -> 1141 | E34: =C34-B34 -> -110 | F34: =IF(OR((+E34/(ABS(C34)))>100%,(+E34/(ABS(C34)))<-100%),"n.m.",(+E34/(ABS(C34)))) -> -0.09640666082 | H34: =+'BCE Inc. Seg Info HIST p5'!E49 -> 3887 | I34: ='BCE Inc. Seg Info HIST p5'!O49+'BCE Inc. Seg Info HIST p5'!P49+'BCE Inc. Seg Info HIST p5'!Q49+'BCE Inc. Seg Info HIST p5'!N49 -> 3612 | K34: =I34-H34 -> -275 | L34: =IF(OR((+K34/(ABS(I34)))>100%,(+K34/(ABS(I34)))<-100%),"n.m.",(+K34/(ABS(I34)))) -> -0.0761351052
A35: Capital intensity | B35: =+'BCE Inc. Seg Info HIST p5'!G50 ->  | C35: =+'BCE Inc. Seg Info HIST p5'!N50 -> 0.370574862 | F35: =((ROUND(C35,3)-ROUND(B35,3))*100) ->  | H35: ='BCE Inc. Seg Info HIST p5'!E50 ->  | I35: =I34/I9 -> 0.296600427 | L35: =((ROUND(I35,3)-ROUND(H35,3))*100) -> 
A36: Bell Media | B36: =+'BCE Inc. Seg Info HIST p5'!G51 -> 79 | C36: =+'BCE Inc. Seg Info HIST p5'!N51 -> 52 | E36: =C36-B36 -> -27 | F36: =IF(OR((+E36/(ABS(C36)))>100%,(+E36/(ABS(C36)))<-100%),"n.m.",(+E36/(ABS(C36)))) -> -0.5192307692 | H36: =+'BCE Inc. Seg Info HIST p5'!E51 -> 162 | I36: ='BCE Inc. Seg Info HIST p5'!O51+'BCE Inc. Seg Info HIST p5'!P51+'BCE Inc. Seg Info HIST p5'!Q51+'BCE Inc. Seg Info HIST p5'!N51 -> 120 | K36: =I36-H36 -> -42 | L36: =IF(OR((+K36/(ABS(I36)))>100%,(+K36/(ABS(I36)))<-100%),"n.m.",(+K36/(ABS(I36)))) -> -0.35
A37: Capital intensity | B37: ='BCE Inc. Seg Info HIST p5'!G52 ->  | C37: ='BCE Inc. Seg Info HIST p5'!N52 -> 0.06124852768 | F37: =((ROUND(C37,3)-ROUND(B37,3))*100) ->  | H37: ='BCE Inc. Seg Info HIST p5'!E52 ->  | I37: =I36/I10 -> 0.0395256917 | L37: =((ROUND(I37,3)-ROUND(H37,3))*100) -> 
A38: Total | B38: ='BCE Inc. Seg Info HIST p5'!G53 ->  | C38: ='BCE Inc. Seg Info HIST p5'!N53 -> 1466 | E38: =C38-B38 ->  | F38: =IF(OR((+E38/(ABS(C38)))>100%,(+E38/(ABS(C38)))<-100%),"n.m.",(+E38/(ABS(C38)))) ->  | H38: ='BCE Inc. Seg Info HIST p5'!E53 ->  | I38: ='BCE Inc. Seg Info HIST p5'!O53+'BCE Inc. Seg Info HIST p5'!P53+'BCE Inc. Seg Info HIST p5'!Q53+'BCE Inc. Seg Info HIST p5'!N53 -> 4852 | K38: =I38-H38 ->  | L38: =IF(OR((+K38/(ABS(I38)))>100%,(+K38/(ABS(I38)))<-100%),"n.m.",(+K38/(ABS(I38)))) -> 
A39: Capital intensity | B39: ='BCE Inc. Seg Info HIST p5'!G54 ->  | C39: ='BCE Inc. Seg Info HIST p5'!N54 -> 0.2361088742 | F39: =((ROUND(C39,3)-ROUND(B39,3))*100) ->  | H39: ='BCE Inc. Seg Info HIST p5'!E54 ->  | I39: =I38/I12 -> 0.2069171393 | L39: =((ROUND(I39,3)-ROUND(H39,3))*100) -> 
A42: (A) Capital intensity is defined as capital expenditures divided by operating revenues.
A43: n.m. : not meaningful

Sheet Bell Wireless Summary p6 (hidden)
N2: Bell Wireless (1) (2)
D5: Q4 | F5: Q4 | J5: TOTAL | L5: TOTAL
B6: (In millions of Canadian dollars, except where otherwise indicated) (unaudited) | D6: 2022 | F6: 2021 | H6: % change | J6: 2022 | L6: 2021 | N6: % change
B7: Bell Wireless
B8: Operating revenues
B9: External service revenues | D9: ='Bell Wireless HIST p7'!F18 ->  | F9: ='Bell Wireless HIST p7'!M18 -> 1641 | H9: =IF(OR(((ABS(D9-F9)/F9))>100%,((ABS(D9-F9)/F9))<-100%),"n.m.",((D9-F9)/ABS(F9))) ->  | J9: ='Bell Wireless HIST p7'!D18 ->  | L9: ='Bell Wireless HIST p7'!N18+'Bell Wireless HIST p7'!O18+'Bell Wireless HIST p7'!P18+'Bell Wireless HIST p7'!M18 -> 6355 | N9: =IF(OR(((ABS(J9-L9)/L9))>100%,((ABS(J9-L9)/L9))<-100%),"n.m.",((J9-L9)/ABS(L9))) -> 
B10: Inter-segment service revenues | D10: ='Bell Wireless HIST p7'!F19 ->  | F10: ='Bell Wireless HIST p7'!M19 -> 11 | H10: =IF(OR(((ABS(D10-F10)/F10))>100%,((ABS(D10-F10)/F10))<-100%),"n.m.",((D10-F10)/ABS(F10))) ->  | J10: ='Bell Wireless HIST p7'!D19 ->  | L10: ='Bell Wireless HIST p7'!N19+'Bell Wireless HIST p7'!O19+'Bell Wireless HIST p7'!P19+'Bell Wireless HIST p7'!M19 -> 45 | N10: =IF(OR(((ABS(J10-L10)/L10))>100%,((ABS(J10-L10)/L10))<-100%),"n.m.",((J10-L10)/ABS(L10))) -> 
B11: Operating service revenues | D11: ='Bell Wireless HIST p7'!F20 ->  | F11: ='Bell Wireless HIST p7'!M20 -> 1652 | H11: =IF(OR(((ABS(D11-F11)/F11))>100%,((ABS(D11-F11)/F11))<-100%),"n.m.",((D11-F11)/ABS(F11))) ->  | J11: ='Bell Wireless HIST p7'!D20 ->  | L11: ='Bell Wireless HIST p7'!N20+'Bell Wireless HIST p7'!O20+'Bell Wireless HIST p7'!P20+'Bell Wireless HIST p7'!M20 -> 6400 | N11: =IF(OR(((ABS(J11-L11)/L11))>100%,((ABS(J11-L11)/L11))<-100%),"n.m.",((J11-L11)/ABS(L11))) -> 
B12: External product revenues | D12: ='Bell Wireless HIST p7'!F21 ->  | F12: ='Bell Wireless HIST p7'!M21 -> 821 | J12: ='Bell Wireless HIST p7'!D21 ->  | L12: ='Bell Wireless HIST p7'!N21+'Bell Wireless HIST p7'!O21+'Bell Wireless HIST p7'!P21+'Bell Wireless HIST p7'!M21 -> 2593
B13: Inter-segment product revenues | D13: ='Bell Wireless HIST p7'!F22 ->  | F13: ='Bell Wireless HIST p7'!M22 -> 2 | H13: 0 | J13: ='Bell Wireless HIST p7'!D22 ->  | L13: ='Bell Wireless HIST p7'!N22+'Bell Wireless HIST p7'!O22+'Bell Wireless HIST p7'!P22+'Bell Wireless HIST p7'!M22 -> 6
B14: Operating product revenues | D14: ='Bell Wireless HIST p7'!F23 ->  | F14: ='Bell Wireless HIST p7'!M23 -> 823 | J14: ='Bell Wireless HIST p7'!D23 ->  | L14: ='Bell Wireless HIST p7'!N23+'Bell Wireless HIST p7'!O23+'Bell Wireless HIST p7'!P23+'Bell Wireless HIST p7'!M23 -> 2599
B15: Total external revenues | D15: ='Bell Wireless HIST p7'!F24 ->  | F15: ='Bell Wireless HIST p7'!M24 -> 2462 | J15: =J9+J12 ->  | L15: =L9+L12 -> 8948
B16: Total operating revenues | D16: ='Bell Wireless HIST p7'!F26 ->  | F16: ='Bell Wireless HIST p7'!M26 -> 2475 | J16: ='Bell Wireless HIST p7'!D26 ->  | L16: ='Bell Wireless HIST p7'!N26+'Bell Wireless HIST p7'!O26+'Bell Wireless HIST p7'!P26+'Bell Wireless HIST p7'!M26 -> 8999
B17: Operating costs | D17: ='Bell Wireless HIST p7'!F27 ->  | F17: ='Bell Wireless HIST p7'!M27 -> -1524 | J17: ='Bell Wireless HIST p7'!D27 ->  | L17: ='Bell Wireless HIST p7'!N27+'Bell Wireless HIST p7'!O27+'Bell Wireless HIST p7'!P27+'Bell Wireless HIST p7'!M27 -> -5146
B18: Adjusted EBITDA | D18: ='Bell Wireless HIST p7'!F28 ->  | F18: ='Bell Wireless HIST p7'!M28 -> 951 | J18: ='Bell Wireless HIST p7'!D28 ->  | L18: ='Bell Wireless HIST p7'!N28+'Bell Wireless HIST p7'!O28+'Bell Wireless HIST p7'!P28+'Bell Wireless HIST p7'!M28 -> 3853
B19: Adjusted EBITDA margin | D19: ='Bell Wireless HIST p7'!F29 ->  | F19: ='Bell Wireless HIST p7'!M29 -> 0.3842424242 | H19: =((ROUND(D19,3)-ROUND(F19,3))*100) ->  | J19: ='Bell Wireless HIST p7'!D29 ->  | L19: =L18/L16 -> 0.4281586843 | N19: =((ROUND(J19,3)-ROUND(L19,3))*100) -> 
B20: Capital expenditures | D20: ='Bell Wireless HIST p7'!F33 -> 308 | F20: ='Bell Wireless HIST p7'!M33 -> 273 | H20: =IF(OR(((ABS(F20-D20)/F20))>=100%,((ABS(F20-D20)/F20))<=-100%),"n.m.",((F20-D20)/ABS(F20))) -> -0.1282051282 | J20: ='Bell Wireless HIST p7'!D33 -> 1084 | L20: ='Bell Wireless HIST p7'!N33+'Bell Wireless HIST p7'!O33+'Bell Wireless HIST p7'!P33+'Bell Wireless HIST p7'!M33 -> 1120 | N20: =IF(OR(((ABS(L20-J20)/L20))>=100%,((ABS(L20-J20)/L20))<=-100%),"n.m.",((L20-J20)/ABS(L20))) -> 0.03214285714
B21: Capital intensity | D21: ='Bell Wireless HIST p7'!F34 ->  | F21: ='Bell Wireless HIST p7'!M34 -> 0.1103030303 | H21: =((ROUND(F21,3)-ROUND(D21,3))*100) ->  | J21: ='Bell Wireless HIST p7'!D34 ->  | L21: =L20/L16 -> 0.1244582731 | N21: =((ROUND(L21,3)-ROUND(J21,3))*100) -> 
B23: Mobile phone subscribers(4)
B24: Gross subscriber activations | D24: ='Bell Wireless HIST p7'!F37 -> 605034 | F24: ='Bell Wireless HIST p7'!M37 -> 495076 | H24: =IF(OR(((ABS(D24-F24)/F24))>100%,((ABS(D24-F24)/F24))<-100%),"n.m.",((D24-F24)/ABS(F24))) -> 0.222103273 | J24: ='Bell Wireless HIST p7'!D37 -> 1953912 | L24: ='Bell Wireless HIST p7'!N37+'Bell Wireless HIST p7'!O37+'Bell Wireless HIST p7'!P37+'Bell Wireless HIST p7'!M37 -> 1653771 | N24: =IF(OR(((ABS(J24-L24)/L24))>100%,((ABS(J24-L24)/L24))<-100%),"n.m.",((J24-L24)/ABS(L24))) -> 0.1814888518
B25: Postpaid | D25: ='Bell Wireless HIST p7'!F38 -> 467294 | F25: ='Bell Wireless HIST p7'!M38 -> 373621 | H25: 0.2507166353 | J25: ='Bell Wireless HIST p7'!D38 -> 1355772 | L25: ='Bell Wireless HIST p7'!N38+'Bell Wireless HIST p7'!O38+'Bell Wireless HIST p7'!P38+'Bell Wireless HIST p7'!M38 -> 1201659 | N25: 0.1282501941
B26: Prepaid | D26: ='Bell Wireless HIST p7'!F39 -> 137740 | F26: ='Bell Wireless HIST p7'!M39 -> 121455 | H26: 0.134082582 | J26: ='Bell Wireless HIST p7'!D39 -> 598140 | L26: ='Bell Wireless HIST p7'!N39+'Bell Wireless HIST p7'!O39+'Bell Wireless HIST p7'!P39+'Bell Wireless HIST p7'!M39 -> 452112 | N26: 0.3229907634
B27: Net subscriber activations (losses) | D27: ='Bell Wireless HIST p7'!F40 -> 122621 | F27: ='Bell Wireless HIST p7'!M40 -> 109726 | H27: 0.1175200044 | J27: ='Bell Wireless HIST p7'!D40 -> 489901 | L27: ='Bell Wireless HIST p7'!N40+'Bell Wireless HIST p7'!O40+'Bell Wireless HIST p7'!P40+'Bell Wireless HIST p7'!M40 -> 294842 | N27: 0.6615712822
B28: Postpaid | D28: ='Bell Wireless HIST p7'!F41 -> 154617 | F28: ='Bell Wireless HIST p7'!M41 -> 109527 | H28: 0.411679312 | J28: ='Bell Wireless HIST p7'!D41 -> 439842 | L28: ='Bell Wireless HIST p7'!N41+'Bell Wireless HIST p7'!O41+'Bell Wireless HIST p7'!P41+'Bell Wireless HIST p7'!M41 -> 301706 | N28: 0.4578496947
B29: Prepaid | D29: ='Bell Wireless HIST p7'!F42 -> -31996 | F29: ='Bell Wireless HIST p7'!M42 -> 199 | H29: n.m. | J29: ='Bell Wireless HIST p7'!D42 -> 50059 | L29: ='Bell Wireless HIST p7'!N42+'Bell Wireless HIST p7'!O42+'Bell Wireless HIST p7'!P42+'Bell Wireless HIST p7'!M42 -> -6864 | N29: n.m.
B30: Subscribers end of period (EOP) | D30: ='Bell Wireless HIST p7'!F43 -> 9949086 | F30: ='Bell Wireless HIST p7'!M43 -> 9459185.125 | H30: 0.05179102303 | J30: ='Bell Wireless HIST p7'!D43 -> 9949086 | L30: =F30 -> 9459185.125 | N30: 0.05179102303
B31: Postpaid | D31: ='Bell Wireless HIST p7'!F44 -> 9069887 | F31: ='Bell Wireless HIST p7'!M44 -> 8630045.225 | H31: 0.05096633484 | J31: ='Bell Wireless HIST p7'!D44 -> 9069887 | L31: =F31 -> 8630045.225 | N31: 0.05096633484
B32: Prepaid | D32: ='Bell Wireless HIST p7'!F45 -> 879199 | F32: ='Bell Wireless HIST p7'!M45 -> 829139.9 | H32: 0.0603747329 | J32: ='Bell Wireless HIST p7'!D45 -> 879199 | L32: 829139.9 | N32: 0.0603747329
B33: Blended average revenue per user (ARPU) ($/month)(A)(4) | D33: ='Bell Wireless HIST p7'!F46 -> 58.88 | F33: ='Bell Wireless HIST p7'!M46 -> 58.6084888 | H33: =IF(OR(((ABS(D33-F33)/F33))>100%,((ABS(D33-F33)/F33))<-100%),"n.m.",((D33-F33)/ABS(F33))) -> 0.004632625846 | J33: ='Bell Wireless HIST p7'!D46 -> 59.3 | L33: ='Bell Wireless HIST p7'!K46 -> 57.6644238 | N33: 0.02836369623
B35: Blended churn (%) (average per month)(4) | D35: ='Bell Wireless HIST p7'!F48 -> 0.0163 | F35: ='Bell Wireless HIST p7'!M48 -> 0.0137295 | H35: =((ROUND(F35,4)-ROUND(D35,4))*100) -> -0.26 | J35: ='Bell Wireless HIST p7'!D48 -> 0.0127 | L35: ='Bell Wireless HIST p7'!K48 -> 0.0123074 | N35: =((ROUND(L35,4)-ROUND(J35,4))*100) -> -0.04
B36: Postpaid | D36: ='Bell Wireless HIST p7'!F49 -> 0.0122 | F36: ='Bell Wireless HIST p7'!M49 -> 0.010782 | H36: =((ROUND(F36,4)-ROUND(D36,4))*100) -> -0.14 | J36: ='Bell Wireless HIST p7'!D49 -> 0.0092 | L36: ='Bell Wireless HIST p7'!K49 -> 0.0093212 | N36: =((ROUND(L36,4)-ROUND(J36,4))*100) -> 0.01
B37: Prepaid | D37: ='Bell Wireless HIST p7'!F50 -> 0.0574 | F37: ='Bell Wireless HIST p7'!M50 -> 0.0441512 | H37: -1.32 | J37: ='Bell Wireless HIST p7'!D50 -> 0.0485 | L37: ='Bell Wireless HIST p7'!K50 -> 0.0430751 | N37: -0.54
B38: Mobile connected device subscribers(4)
B39: Net subscriber activations | D39: ='Bell Wireless HIST p7'!F52 -> 104447 | F39: ='Bell Wireless HIST p7'!M52 -> 38998 | H39: =IF(OR(((ABS(D39-F39)/F39))>100%,((ABS(D39-F39)/F39))<-100%),"n.m.",((D39-F39)/ABS(F39))) -> n.m. | J39: ='Bell Wireless HIST p7'!D52 -> 202024 | L39: ='Bell Wireless HIST p7'!N52+'Bell Wireless HIST p7'!O52+'Bell Wireless HIST p7'!P52+'Bell Wireless HIST p7'!M52 -> 193641 | N39: =IF(OR(((ABS(J39-L39)/L39))>100%,((ABS(J39-L39)/L39))<-100%),"n.m.",((J39-L39)/ABS(L39))) -> 0.04329145171
B40: Subscribers EOP | D40: ='Bell Wireless HIST p7'!F53 -> 2451818 | F40: ='Bell Wireless HIST p7'!M53 -> 2249794 | H40: 0.08979666583 | J40: ='Bell Wireless HIST p7'!D53 -> 2451818 | L40: ='Bell Wireless HIST p7'!K53 -> 2249794 | N40: 0.08979666583
B42: n.m. : not meaningful
B44: (A) | C44: Mobile phone blended ARPU is calculated by dividing wireless operating service revenues by the average mobile phone subscriber base for the specified period and is expressed as a dollar unit per month.
B45: (B) | C45: In Q3 2022, as a result of the acquisition of Xplore Mobile and other related companies, our retail mobility subscriber base increased by XXX,XXX subscribers

Sheet Bell Wireless HIST p7 (hidden)
A1: CORPORATE | B1: METRICS
A2: ACTUAL | B2: GLOBAL in Metrics
A3: ALL_DS | B3: ACTUAL | C3: All Data Sources
A4: All Posting Levels | B4: ALL CUSTOMERS
A5: Canadian Dollar | B5: All Data Sources
A6: All Trading Partners | B6: ALL CHANNELS
A7: Year To Date | B7: ALL NETWORKS
A8: Quarter to date | B8: ALL_POST_PRE | R8: =_xll.EPMOlapMemberO("[POST_PREPAID].[PARENTH1].[PREPAID]","","PREPAID","","000") -> PREPAID
B9: WIRELESS_PROD
A10: WRLESS | B10: ALL REGIONS
B11: Year To Date | D11: 2022.Q4 - 2022.Q4
A12: TP_IC - All Intercos | P12: Bell Wireless - Historical Trend (2)
A13: TP_EXTERNAL - External (Third Party)
B15: (In millions of Canadian dollars, except where otherwise indicated) (unaudited) | D15: TOTAL 2022 | F15: Q4 22 | G15: Q3 22 | H15: Q2 22 | I15: Q1 22 | K15: TOTAL 2021 | M15: Q4 21 | N15: Q3 21 | O15: Q2 21 | P15: Q1 21 | R15: CY CHECK | S15: PY CHECK
B16: Bell Wireless
B17: Operating revenues
A18: T401010 | B18: External service revenues | D18: =(ROUND(_xll.EPMRetrieveData($A$1,$A$18,$A$10,$A$2,$A$3,$A$4,$A$5,$A$13,$A$7,D11)/1000000,0)) ->  | F18: =D18-G18-H18-I18 ->  | G18: 1759 | H18: 1692 | I18: 1635 | K18: 6355 | M18: 1641 | N18: 1642 | O18: 1569 | P18: 1503 | R18: =SUM(F18:I18)=D18 ->  | S18: =P18+O18+N18+M18=K18 -> TRUE
B19: Inter-segment service revenues | D19: =((ROUND(_xll.EPMRetrieveData($A$1,$A$18,$A$10,$A$2,$A$3,$A$4,$A$5,$A$12,$A$7,D11)/1000000,0))) ->  | F19: =D19-G19-H19-I19 ->  | G19: 10 | H19: 11 | I19: 11 | K19: 45 | M19: 11 | N19: 12 | O19: 11 | P19: 11 | R19: =SUM(F19:I19)=D19 ->  | S19: =P19+O19+N19+M19=K19 -> TRUE
B20: Operating service revenues | D20: =D19+D18 ->  | F20: =D20-G20-H20-I20 ->  | G20: 1769 | H20: 1703 | I20: 1646 | K20: 6400 | M20: 1652 | N20: 1654 | O20: 1580 | P20: 1514 | S20: TRUE
A21: LC-4261100 - Wireline Product Revenue | B21: External product revenues | D21: =(ROUND(_xll.EPMRetrieveData($A$1,$A$22,$A$10,$A$2,$A$3,$A$4,$A$5,$A$13,$A$7,D11)/1000000,0)) ->  | G21: 692 | H21: 542 | I21: 563 | K21: 2593 | M21: 821 | N21: 642 | O21: 546 | P21: 584 | S21: TRUE
A22: t401040 | B22: Inter-segment product revenues | D22: =ROUND(_xll.EPMRetrieveData($A$1,$A$22,$A$10,$A$2,$A$3,$A$4,$A$5,$A$12,$A$7,D11)/1000000,0) ->  | F22: =D22-G22-H22-I22 ->  | G22: 5 | H22: 1 | I22: 1 | K22: 6 | M22: 2 | N22: 0 | O22: 2 | P22: 2 | S22: TRUE
A23: T401000 | B23: Operating product revenues | D23: =D22+D21 ->  | G23: 697 | H23: 543 | I23: 564 | J23: =J22+J21 -> 0 | K23: 2599 | M23: 823 | N23: 642 | O23: 548 | P23: 586 | S23: TRUE
A24: LC-4999920 - Hardware - Intercompany | B24: Total external revenues | D24: =ROUND(_xll.EPMRetrieveData($A$1,$A$23,$A$10,$A$2,$A$3,$A$4,$A$5,$A$13,$A$7,D11)/1000000,0) ->  | G24: 2451 | H24: 2234 | I24: 2198 | K24: 8948 | M24: 2462 | N24: 2284 | O24: 2115 | P24: 2087 | S24: TRUE
B25: Inter-segment | G25: 0 | H25: 0 | N25: 0 | O25: 0 | R25: TRUE | S25: TRUE
A26: t401070 | B26: Total operating revenues | D26: ='BCE Inc. Seg Info HIST p5'!E23 ->  | G26: 2466 | H26: 2246 | I26: 2210 | K26: 8999 | M26: 2475 | N26: 2296 | O26: 2128 | P26: 2100 | S26: TRUE
B27: Operating costs | D27: ='BCE Inc. Seg Info HIST p5'!E30 ->  | G27: -1377 | H27: -1197 | I27: -1201 | K27: -5146 | M27: -1524 | N27: -1286 | O27: -1159 | P27: -1177 | S27: TRUE
B28: Adjusted EBITDA | D28: ='BCE Inc. Seg Info HIST p5'!E37 ->  | G28: 1089 | H28: 1049 | I28: 1009 | K28: 3853 | M28: 951 | N28: 1010 | O28: 969 | P28: 923 | S28: TRUE
B29: Adjusted EBITDA margin | D29: =D28/D26 ->  | F29: =F28/F26 ->  | G29: 0.442 | H29: 0.4670525378 | I29: 0.456561086 | K29: 0.4281586843 | M29: 0.3842424242 | N29: 0.4398954704 | O29: 0.4553571429 | P29: 0.4395238095
B30: Adjusted EBITDA margin (External service revenues) | R30: TRUE | S30: TRUE
B31: Adjusted EBITDA margin (Operating service revenues) | R31: TRUE | S31: TRUE
B33: Capital expenditures | D33: ='BCE Inc. Seg Info HIST p5'!E47 -> 1084 | F33: ='BCE Inc. Seg Info HIST p5'!G47 -> 308 | G33: 248 | H33: 280 | I33: ='BCE Inc. Seg Info HIST p5'!J47 -> 248 | J33: ='BCE Inc. Seg Info HIST p5'!K47 -> 0 | K33: ='BCE Inc. Seg Info HIST p5'!L47 -> 1120 | L33: ='BCE Inc. Seg Info HIST p5'!M47 -> 0 | M33: ='BCE Inc. Seg Info HIST p5'!N47 -> 273 | N33: ='BCE Inc. Seg Info HIST p5'!O47 -> 255 | O33: ='BCE Inc. Seg Info HIST p5'!P47 -> 306 | P33: ='BCE Inc. Seg Info HIST p5'!Q47 -> 286 | R33: TRUE | S33: TRUE
B34: Capital intensity | D34: ='BCE Inc. Seg Info HIST p5'!E48 ->  | F34: ='BCE Inc. Seg Info HIST p5'!G48 ->  | G34: 0.100567721 | H34: 0.124666073 | I34: ='BCE Inc. Seg Info HIST p5'!J48 -> 0.1122171946 | J34: ='BCE Inc. Seg Info HIST p5'!K48 ->  | K34: ='BCE Inc. Seg Info HIST p5'!L48 -> 0.1244582731 | L34: ='BCE Inc. Seg Info HIST p5'!M48 ->  | M34: ='BCE Inc. Seg Info HIST p5'!N48 -> 0.1103030303 | N34: ='BCE Inc. Seg Info HIST p5'!O48 -> 0.1110627178 | O34: ='BCE Inc. Seg Info HIST p5'!P48 -> 0.1437969925 | P34: ='BCE Inc. Seg Info HIST p5'!Q48 -> 0.1361904762
B36: Mobile phone subscribers
B37: Gross subscriber activations | D37: 1953912 | F37: =D37-G37-H37-I37 -> 605034 | G37: 583700 | H37: 415270 | I37: 349908 | K37: 1653771 | M37: 495076 | N37: 470165 | O37: 348403 | P37: 340127 | R37: TRUE | S37: TRUE
B38: Postpaid | D38: 1355772 | F38: =D38-G38-H38-I38 -> 467294 | G38: 391165 | H38: 266600 | I38: 230713 | K38: 1201659 | M38: 373621 | N38: 336328 | O38: 242720 | P38: 248990 | R38: TRUE | S38: TRUE
B39: Prepaid | D39: 598140 | F39: =D39-G39-H39-I39 -> 137740 | G39: 192535 | H39: 148670 | I39: 119195 | K39: 452112 | M39: 121455 | N39: 133837 | O39: 105683 | P39: 91137 | R39: =SUM(F39:I39)=D39 -> TRUE | S39: TRUE
B40: Net subscriber activations (losses) | D40: 489901 | F40: 122621 | G40: 224343 | H40: 110761 | I40: 32176 | K40: 294842 | M40: 109726 | N40: 136464 | O40: 46247 | P40: 2405 | R40: TRUE | S40: TRUE
B41: Postpaid | D41: 439842 | F41: 154617 | G41: 167798 | H41: 83197 | I41: 34230 | K41: 301706 | M41: 109527 | N41: 114821 | O41: 44433 | P41: 32925 | R41: TRUE | S41: TRUE
B42: Prepaid | D42: 50059 | F42: -31996 | G42: 56545 | H42: 27564 | I42: -2054 | K42: -6864 | M42: 199 | N42: 21643 | O42: 1814 | P42: -30520 | R42: TRUE | S42: TRUE
B43: Subscribers EOP | D43: 9949086 | F43: =D43 -> 9949086 | G43: 9826465.125 | H43: 9602122.125 | I43: 9491361.125 | K43: 9459185.125 | M43: 9459185.125 | N43: 9349459.125 | O43: 9212995.125 | P43: 9166748 | R43: FALSE
B44: Postpaid | D44: 9069887 | F44: =D44 -> 9069887 | G44: 8915270.225 | H44: 8747472.225 | I44: 8664275.225 | K44: 8630045.225 | M44: 8630045.225 | N44: 8520518.225 | O44: 8405697.225 | P44: 8361264 | R44: FALSE
B45: Prepaid | D45: 879199 | F45: =D45 -> 879199 | G45: 911194.9 | H45: 854649.9 | I45: 827085.9 | K45: 829139.9 | M45: 829139.9 | N45: 828940.9 | O45: 807297.9 | P45: 805484 | R45: FALSE
B46: Blended ARPU ($/month) | D46: 59.3 | F46: 58.88 | G46: 60.76 | H46: 59.5431934 | I46: 57.9834894 | K46: 57.6644238 | M46: 58.6084888 | N46: 59.4662306 | O46: 57.3603057 | P46: 55.1743833
R47: TRUE | S47: TRUE
B48: Blended churn (%) (average per month) | D48: 0.0127 | F48: 0.0163 | G48: 0.0124 | H48: 0.0107375 | I48: 0.0112421 | K48: 0.0123074 | M48: 0.0137295 | N48: 0.0120897 | O48: 0.0110435 | P48: 0.0123
B49: Postpaid | D49: 0.0092 | F49: 0.0122 | G49: 0.009 | H49: 0.0075217 | I49: 0.0079129 | K49: 0.0093212 | M49: 0.010782 | N49: 0.0092504 | O49: 0.0082737 | P49: 0.0089
B50: Prepaid | D50: 0.0485 | F50: 0.0574 | G50: 0.0458 | H50: 0.0440907 | I50: 0.0460511 | K50: 0.0430751 | M50: 0.0441512 | N50: 0.041469 | O50: 0.0398034 | P50: 0.0468
B51: Mobile connected device subscribers
B52: Net subscriber activations (losses) | D52: 202024 | F52: =D52-G52-H52-I52 -> 104447 | G52: 49044 | H52: -344 | I52: 48877 | K52: 193641 | M52: 38998 | N52: 33035 | O52: 47449 | P52: 74159 | R52: TRUE | S52: TRUE
B53: Subscribers EOP | D53: 2451818 | F53: =D53 -> 2451818 | G53: 2347371 | H53: 2298327 | I53: 2298671 | K53: 2249794 | M53: 2249794 | N53: 2210796 | O53: 2177761 | P53: 2130312
B55: (A) | C55: In Q3 2022, as a result of the acquisition of Xplore Mobile and other related companies, our retail mobility subscriber base increased by XXX,XXX subscribers
C57: Operating service revenues | D57: =SUM(D18:D19)=D20 ->  | F57: =SUM(F18:F19)=F20 ->  | G57: =SUM(G18:G19)=G20 -> TRUE | H57: =SUM(H18:H19)=H20 -> TRUE | I57: =SUM(I18:I19)=I20 -> TRUE | K57: TRUE | M57: TRUE | N57: TRUE | O57: TRUE | P57: TRUE
C58: Operating product revenues | D58: =(D21+D22)=D23 ->  | F58: =(F21+F22)=F23 ->  | G58: =(G21+G22)=G23 -> TRUE | H58: =(H21+H22)=H23 -> TRUE | I58: =(I21+I22)=I23 -> TRUE | K58: TRUE | M58: TRUE | N58: TRUE | O58: TRUE | P58: TRUE
C59: Total external revenues | D59: =(D18+D21)=D24 ->  | F59: =(F18+F21)=F24 ->  | G59: =(G18+G21)=G24 -> TRUE | H59: =(H18+H21)=H24 -> TRUE | I59: =(I18+I21)=I24 -> TRUE | K59: TRUE | M59: TRUE | N59: TRUE | O59: TRUE | P59: TRUE
C60: Total operating revenues | D60: =(D20+D23)=D26 ->  | F60: =(F20+F23)=F26 ->  | G60: =(G20+G23)=G26 -> TRUE | H60: =(H20+H23)=H26 -> TRUE | I60: =(I20+I23)=I26 -> TRUE | K60: TRUE | M60: TRUE | N60: TRUE | O60: TRUE | P60: TRUE
C61: Adjusted EBITDA | D61: =(D26+D27)=D28 ->  | F61: =(F26+F27)=F28 ->  | G61: =(G26+G27)=G28 -> TRUE | H61: =(H26+H27)=H28 -> TRUE | I61: =(I26+I27)=I28 -> TRUE | K61: TRUE | M61: TRUE | N61: TRUE | O61: TRUE | P61: TRUE

Sheet Bell Wireline Summary p8 (hidden)
M2: Bell Wireline (1) (2)
C5: Q4 | E5: Q4 | I5: TOTAL | K5: TOTAL
A6: (In millions of Canadian dollars, except where otherwise indicated) (unaudited) | C6: 2022 | E6: 2021 | G6: % change | I6: 2022 | K6: 2021 | M6: % change
A7: Bell Wireline
A8: Operating revenues
A9: Data | C9: ='Bell Wireline HIST p9'!G24 ->  | E9: ='Bell Wireline HIST p9'!N24 -> 1986 | G9: =IF(OR(((ABS(C9-E9)/E9))>100%,((ABS(C9-E9)/E9))<-100%),"n.m.",((C9-E9)/ABS(E9))) ->  | H9: =(C9-F9)/F9 ->  | I9: ='Bell Wireline HIST p9'!E24 ->  | K9: ='Bell Wireline HIST p9'!O24+'Bell Wireline HIST p9'!P24+'Bell Wireline HIST p9'!Q24+'Bell Wireline HIST p9'!N24 -> 7871 | M9: =IF(OR(((ABS(I9-K9)/K9))>100%,((ABS(I9-K9)/K9))<-100%),"n.m.",((I9-K9)/ABS(K9))) -> 
A10: Voice | C10: ='Bell Wireline HIST p9'!G25 ->  | E10: ='Bell Wireline HIST p9'!N25 -> 779 | G10: =IF(OR(((ABS(C10-E10)/E10))>100%,((ABS(C10-E10)/E10))<-100%),"n.m.",((C10-E10)/ABS(E10))) ->  | I10: ='Bell Wireline HIST p9'!E25 ->  | K10: ='Bell Wireline HIST p9'!O25+'Bell Wireline HIST p9'!P25+'Bell Wireline HIST p9'!Q25+'Bell Wireline HIST p9'!N25 -> 3154 | M10: =IF(OR(((ABS(I10-K10)/K10))>100%,((ABS(I10-K10)/K10))<-100%),"n.m.",((I10-K10)/ABS(K10))) -> 
A11: Other services | C11: ='Bell Wireline HIST p9'!G26 ->  | E11: ='Bell Wireline HIST p9'!N26 -> 75 | G11: =IF(OR(((ABS(C11-E11)/E11))>100%,((ABS(C11-E11)/E11))<-100%),"n.m.",((C11-E11)/ABS(E11))) ->  | I11: ='Bell Wireline HIST p9'!E26 ->  | K11: ='Bell Wireline HIST p9'!O26+'Bell Wireline HIST p9'!P26+'Bell Wireline HIST p9'!Q26+'Bell Wireline HIST p9'!N26 -> 289 | M11: =IF(OR(((ABS(I11-K11)/K11))>100%,((ABS(I11-K11)/K11))<-100%),"n.m.",((I11-K11)/ABS(K11))) -> 
A12: External service revenues | C12: ='Bell Wireline HIST p9'!G27 ->  | E12: ='Bell Wireline HIST p9'!N27 -> 2840 | G12: =IF(OR(((ABS(C12-E12)/E12))>100%,((ABS(C12-E12)/E12))<-100%),"n.m.",((C12-E12)/ABS(E12))) ->  | I12: ='Bell Wireline HIST p9'!E27 ->  | K12: ='Bell Wireline HIST p9'!O27+'Bell Wireline HIST p9'!P27+'Bell Wireline HIST p9'!Q27+'Bell Wireline HIST p9'!N27 -> 11314 | M12: =IF(OR(((ABS(I12-K12)/K12))>100%,((ABS(I12-K12)/K12))<-100%),"n.m.",((I12-K12)/ABS(K12))) -> 
A13: Inter-segment service revenues | C13: ='Bell Wireline HIST p9'!G28 ->  | E13: ='Bell Wireline HIST p9'!N28 -> 94 | G13: =IF(OR(((ABS(C13-E13)/E13))>=100%,((ABS(C13-E13)/E13))<=-100%),"n.m.",((C13-E13)/ABS(E13))) ->  | I13: ='Bell Wireline HIST p9'!E28 ->  | K13: ='Bell Wireline HIST p9'!O28+'Bell Wireline HIST p9'!P28+'Bell Wireline HIST p9'!Q28+'Bell Wireline HIST p9'!N28 -> 358 | M13: =IF(OR(((ABS(I13-K13)/K13))>=100%,((ABS(I13-K13)/K13))<=-100%),"n.m.",((I13-K13)/ABS(K13))) -> 
A14: Operating service revenues | C14: ='Bell Wireline HIST p9'!G29 ->  | E14: ='Bell Wireline HIST p9'!N29 -> 2934 | G14: =IF(OR(((ABS(C14-E14)/E14))>100%,((ABS(C14-E14)/E14))<-100%),"n.m.",((C14-E14)/ABS(E14))) ->  | I14: ='Bell Wireline HIST p9'!E29 ->  | K14: ='Bell Wireline HIST p9'!O29+'Bell Wireline HIST p9'!P29+'Bell Wireline HIST p9'!Q29+'Bell Wireline HIST p9'!N29 -> 11672 | M14: =IF(OR(((ABS(I14-K14)/K14))>100%,((ABS(I14-K14)/K14))<-100%),"n.m.",((I14-K14)/ABS(K14))) -> 
A15: Data | C15: ='Bell Wireline HIST p9'!G30 ->  | E15: ='Bell Wireline HIST p9'!N30 -> 132 | G15: =IF(OR(((ABS(C15-E15)/E15))>100%,((ABS(C15-E15)/E15))<-100%),"n.m.",((C15-E15)/ABS(E15))) ->  | I15: ='Bell Wireline HIST p9'!E30 ->  | K15: ='Bell Wireline HIST p9'!O30+'Bell Wireline HIST p9'!P30+'Bell Wireline HIST p9'!Q30+'Bell Wireline HIST p9'!N30 -> 463
A16: Equipment and other | C16: ='Bell Wireline HIST p9'!G31 ->  | E16: ='Bell Wireline HIST p9'!N31 -> 13 | I16: ='Bell Wireline HIST p9'!E31 ->  | K16: ='Bell Wireline HIST p9'!O31+'Bell Wireline HIST p9'!P31+'Bell Wireline HIST p9'!Q31+'Bell Wireline HIST p9'!N31 -> 43
A17: External product revenues | C17: ='Bell Wireline HIST p9'!G32 ->  | E17: ='Bell Wireline HIST p9'!N32 -> 145 | I17: ='Bell Wireline HIST p9'!E32 ->  | K17: ='Bell Wireline HIST p9'!O32+'Bell Wireline HIST p9'!P32+'Bell Wireline HIST p9'!Q32+'Bell Wireline HIST p9'!N32 -> 506
A18: Inter-segment product revenues | C18: ='Bell Wireline HIST p9'!G33 ->  | E18: ='Bell Wireline HIST p9'!N33 -> 0 | G18: n.m | H18: 0 | I18: ='Bell Wireline HIST p9'!E33 ->  | K18: ='Bell Wireline HIST p9'!O33+'Bell Wireline HIST p9'!P33+'Bell Wireline HIST p9'!Q33+'Bell Wireline HIST p9'!N33 -> 0 | M18: n.m
A19: Operating product revenues | C19: ='Bell Wireline HIST p9'!G34 ->  | E19: ='Bell Wireline HIST p9'!N34 -> 145 | H19: =(C19-F19)/F19 ->  | I19: ='Bell Wireline HIST p9'!E34 ->  | K19: ='Bell Wireline HIST p9'!O34+'Bell Wireline HIST p9'!P34+'Bell Wireline HIST p9'!Q34+'Bell Wireline HIST p9'!N34 -> 506
A20: Total external revenues | C20: ='Bell Wireline HIST p9'!G35 ->  | E20: ='Bell Wireline HIST p9'!N35 -> 2985 | H20: =(C20-F20)/F20 ->  | I20: ='Bell Wireline HIST p9'!E35 ->  | K20: ='Bell Wireline HIST p9'!O35+'Bell Wireline HIST p9'!P35+'Bell Wireline HIST p9'!Q35+'Bell Wireline HIST p9'!N35 -> 11820
A21: Total operating revenues | C21: ='Bell Wireline HIST p9'!G36 ->  | E21: ='Bell Wireline HIST p9'!N36 -> 3079 | H21: =(C21-F21)/F21 ->  | I21: ='Bell Wireline HIST p9'!E36 ->  | K21: ='Bell Wireline HIST p9'!O36+'Bell Wireline HIST p9'!P36+'Bell Wireline HIST p9'!Q36+'Bell Wireline HIST p9'!N36 -> 12178
A22: Operating costs | C22: ='Bell Wireline HIST p9'!G37 ->  | E22: ='Bell Wireline HIST p9'!N37 -> -1753 | H22: =(-C22+F22)/F22 ->  | I22: ='Bell Wireline HIST p9'!E37 ->  | K22: ='Bell Wireline HIST p9'!O37+'Bell Wireline HIST p9'!P37+'Bell Wireline HIST p9'!Q37+'Bell Wireline HIST p9'!N37 -> -6863
A23: Adjusted EBITDA | C23: ='Bell Wireline HIST p9'!G38 ->  | E23: ='Bell Wireline HIST p9'!N38 -> 1326 | H23: =(C23-F23)/F23 ->  | I23: ='Bell Wireline HIST p9'!E38 ->  | K23: ='Bell Wireline HIST p9'!O38+'Bell Wireline HIST p9'!P38+'Bell Wireline HIST p9'!Q38+'Bell Wireline HIST p9'!N38 -> 5315 | M23: 0
A24: Adjusted EBITDA margin | C24: ='Bell Wireline HIST p9'!G39 ->  | E24: ='Bell Wireline HIST p9'!N39 -> 0.431 | G24: =((ROUND(C24,3)-ROUND(E24,3))*100) ->  | H24: =(C24-F24)*100 ->  | I24: ='Bell Wireline HIST p9'!E39 ->  | K24: =K23/K21 -> 0.4364427656 | M24: =((ROUND(I24,3)-ROUND(K24,3))*100) -> 
A26: Capital expenditures | C26: ='Bell Wireline HIST p9'!G41 -> 1251 | E26: ='Bell Wireline HIST p9'!N41 -> 1141 | G26: =IF(OR(((ABS(E26-C26)/E26))>100%,((ABS(E26-C26)/E26))<-100%),"n.m.",((E26-C26)/ABS(E26))) -> -0.09640666082 | H26: =(-C26+F26)/F26 ->  | I26: ='Bell Wireline HIST p9'!E41 -> 3887 | K26: ='Bell Wireline HIST p9'!O41+'Bell Wireline HIST p9'!P41+'Bell Wireline HIST p9'!Q41+'Bell Wireline HIST p9'!N41 -> 3612 | M26: =IF(OR(((ABS(K26-I26)/K26))>100%,((ABS(K26-I26)/K26))<-100%),"n.m.",((K26-I26)/ABS(K26))) -> -0.0761351052
A27: Capital intensity | C27: ='Bell Wireline HIST p9'!G42 ->  | E27: ='Bell Wireline HIST p9'!N42 -> 0.370574862 | G27: =((ROUND(E27,3)-ROUND(C27,3))*100) ->  | H27: =(-(C27-F27)*100) ->  | I27: ='Bell Wireline HIST p9'!E42 ->  | K27: =K26/K21 -> 0.296600427 | M27: =((ROUND(K27,3)-ROUND(I27,3))*100) -> 
A28: Retail high-speed Internet subscribers(4)
A29: Retail net subscriber activations | C29: ='Bell Wireline HIST p9'!G44 -> 63465.86585 | E29: ='Bell Wireline HIST p9'!N44 -> 47618 | G29: =IF(OR(((ABS(C29-E29)/E29))>100%,((ABS(C29-E29)/E29))<-100%),"n.m.",((C29-E29)/ABS(E29))) -> 0.3328125047 | H29: =(C29-F29)/F29 ->  | I29: ='Bell Wireline HIST p9'!E44 -> 201762 | K29: ='Bell Wireline HIST p9'!O44+'Bell Wireline HIST p9'!P44+'Bell Wireline HIST p9'!Q44+'Bell Wireline HIST p9'!N44 -> 152285 | M29: =IF(OR(((ABS(I29-K29)/K29))>100%,((ABS(I29-K29)/K29))<-100%),"n.m.",((I29-K29)/ABS(K29))) -> 0.3248973963
A30: Retail subscribers EOP(A) (B) | C30: ='Bell Wireline HIST p9'!G45 -> 4258570 | E30: ='Bell Wireline HIST p9'!N45 -> 3861652.723 | G30: 0.1027843012 | H30: =(C30-F30)/F30 ->  | I30: ='Bell Wireline HIST p9'!E45 -> 4258570 | K30: ='Bell Wireline HIST p9'!L45 -> 3861652.723 | M30: 0.1027843012
A31: Retail TV subscribers(4)
A32: Retail net subscriber activations (losses) | C32: ='Bell Wireline HIST p9'!G47 -> 14183 | E32: ='Bell Wireline HIST p9'!N47 -> 6049 | G32: n.m. | H32: =-(C32-F32)/F32 ->  | I32: ='Bell Wireline HIST p9'!E47 -> 5148 | K32: ='Bell Wireline HIST p9'!O47+'Bell Wireline HIST p9'!P47+'Bell Wireline HIST p9'!Q47+'Bell Wireline HIST p9'!N47 -> 2530 | M32: n.m.
A33: Internet protocol television (IPTV) | C33: ='Bell Wireline HIST p9'!G48 -> 40209 | E33: ='Bell Wireline HIST p9'!N48 -> 29191 | G33: 0.3774451029 | H33: =(C33-F33)/F33 ->  | I33: ='Bell Wireline HIST p9'!E48 -> 94400 | K33: ='Bell Wireline HIST p9'!O48+'Bell Wireline HIST p9'!P48+'Bell Wireline HIST p9'!Q48+'Bell Wireline HIST p9'!N48 -> 76068 | M33: 0.2409948993
A34: Satellite | C34: =+'Bell Wireline HIST p9'!G49 -> -26026 | E34: =+'Bell Wireline HIST p9'!N49 -> -23142 | G34: -0.1246218996 | I34: ='Bell Wireline HIST p9'!E49 -> -89252 | K34: ='Bell Wireline HIST p9'!O49+'Bell Wireline HIST p9'!P49+'Bell Wireline HIST p9'!Q49+'Bell Wireline HIST p9'!N49 -> -73538 | M34: -0.2136854415
A35: Total retail subscribers EOP(A) (B) | C35: ='Bell Wireline HIST p9'!G50 -> 2751498 | E35: ='Bell Wireline HIST p9'!N50 -> 2735010.138 | G35: 0.006028446388 | H35: =(C35-F35)/F35 ->  | I35: ='Bell Wireline HIST p9'!E50 -> 2751498 | K35: ='Bell Wireline HIST p9'!L50 -> 2735010.138 | M35: 0.006028446388
A36: IPTV(A) (B) | C36: ='Bell Wireline HIST p9'!G51 -> 1988181 | E36: ='Bell Wireline HIST p9'!N51 -> 1882441.138 | G36: 0.05617166978 | H36: =(C36-F36)/F36 ->  | I36: ='Bell Wireline HIST p9'!E51 -> 1988181 | K36: ='Bell Wireline HIST p9'!L51 -> 1882441.138 | M36: 0.05617166978
A37: Satellite | C37: ='Bell Wireline HIST p9'!G52 -> 763317 | E37: ='Bell Wireline HIST p9'!N52 -> 852569 | G37: -0.104685955 | I37: ='Bell Wireline HIST p9'!E52 -> 763317 | K37: ='Bell Wireline HIST p9'!N52 -> 852569 | M37: -0.104685955
A38: Retail residential network access services (NAS)(4)
A39: Retail residential NAS lines net losses | C39: ='Bell Wireline HIST p9'!G54 -> -37878 | E39: ='Bell Wireline HIST p9'!N54 -> -40211 | G39: 0.05801895004 | H39: =-(C39-F39)/F39 ->  | I39: ='Bell Wireline HIST p9'!E54 -> -175788 | K39: ='Bell Wireline HIST p9'!O54+'Bell Wireline HIST p9'!P54+'Bell Wireline HIST p9'!Q54+'Bell Wireline HIST p9'!N54 -> -185327 | M39: 0.05147118337
A40: Retail residential NAS lines(A) (B) | C40: ='Bell Wireline HIST p9'!G55 -> 2190771 | E40: ='Bell Wireline HIST p9'!N55 -> 2298605 | G40: -0.04691280146 | H40: =(C40-F40)/F40 ->  | I40: ='Bell Wireline HIST p9'!E55 -> 2190771 | K40: ='Bell Wireline HIST p9'!N55 -> 2298605 | M40: -0.04691280146
A42: n.m. : not meaningful
A43: (A) | B43: In Q1 2022, as a result of the acquisition of EBOX and other related companies, our retail high-speed Internet, retail IPTV and retail residential NAS lines subscriber bases increased by 67,090, 9,025 and 3,456 subscribers, respectively.
A44: (B) | B44: In Q4 2022, as a result of the acquisition of Distributel Communications Limited (Distributel), our retail high-speed Internet, retail IPTV and retail residential NAS lines subscriber bases increased by 128,065, 2,315 and 64,498 subscribers, respectively.

Sheet Bell Wireline HIST p9 (hidden)
A1: CORPORATE
A2: ACTUAL
A3: ALL_DS | C3: All Data Sources
A4: All Posting Levels
A5: Canadian Dollar
A6: All Trading Partners | C6: TP_IC - All Intercos
A7: Year To Date | C7: TP_EXTERNAL - External (Third Party)
A8: Quarter to date
A10: WRLINE
E13: 2022.Q4 - 2022.Q4 | G13: 2021.Q4 - 2021.Q4
Q17: Bell Wireline - Historical Trend (2)
C21: (In millions of Canadian dollars, except where otherwise indicated) (unaudited) | E21: TOTAL 2022 | G21: Q4 22 | H21: Q3 22 | I21: Q2 22 | J21: Q1 22 | L21: TOTAL 2021 | N21: Q4 21 | O21: Q3 21 | P21: Q2 21 | Q21: Q1 21 | S21: CY CHECK | T21: PY CHECK
C22: Bell Wireline
C23: Operating revenues
A24: T4D0100 - Data Revenue (service) | B24: T401050 - Data Revenue (product) | C24: Data | E24: =((ROUND((_xll.EPMRetrieveData($A$1,$A$24,$A$2,$A$3,$A$4,$A$5,$C$7,$A$7,$A$10,E13)+_xll.EPMRetrieveData($A$1,$B$24,$A$2,$A$3,$A$4,$A$5,$C$7,$A$7,$A$10,E13))/1000000,0)-E30)) ->  | G24: =E24-H24-I24-J24 ->  | H24: 1987 | I24: 1974 | J24: 1953 | L24: 7871 | N24: 1986 | O24: 1976 | P24: 1944 | Q24: 1965 | S24: =SUM(G24:J24)=E24 ->  | T24: =Q24+P24+O24+N24=L24 -> TRUE
A25: =_xll.EPMOlapMemberO("[ACCOUNT].[PARENTH1].[T4D0200]","","T4D0200 - Voice Revenue (service)","","000") -> T4D0200 - Voice Revenue (service) | C25: Voice | E25: =ROUND((_xll.EPMRetrieveData($A$1, _xll.EPMMemberID($A$25), $A$2, $A$3, $A$4, $A$5, $C$7, $A$7, $A$10, E13))/1000000, 0) ->  | H25: 739 | I25: 756 | J25: 771 | L25: 3154 | N25: 779 | O25: 778 | P25: 794 | Q25: 803 | S25: =SUM(G25:J25)=E25 ->  | T25: =Q25+P25+O25+N25=L25 -> TRUE
A26: T401020 - Other Service Revenue | B26: T401070 - Other Product Revenue | C26: Other services | E26: =(ROUND((_xll.EPMRetrieveData($A$1,$A$26,$A$2,$A$3,$A$4,$A$5,$C$7,$A$7,$A$10,E13)+_xll.EPMRetrieveData($A$1,$B$26,$A$2,$A$3,$A$4,$A$5,$C$7,$A$7,$A$10,E13))/1000000,0)-E31)+1 ->  | H26: 77 | I26: 78 | J26: 77 | L26: 289 | N26: 75 | O26: 73 | P26: 67 | Q26: 74 | T26: TRUE
A27: T401070 | C27: External service revenues | E27: =SUM(E24:E26) ->  | H27: 2803 | I27: 2808 | J27: 2801 | L27: 11314 | N27: 2840 | O27: 2827 | P27: 2805 | Q27: 2842 | T27: TRUE
A28: T401010 | C28: Inter-segment service revenues | E28: =(ROUND(_xll.EPMRetrieveData($A$1,$A$28,$A$2,$A$3,$A$4,$A$5,$C$6,$A$7,$A$10,E13)/1000000,0))-1 ->  | H28: 104 | I28: 101 | J28: 102 | L28: 358 | N28: 94 | O28: 93 | P28: 86 | Q28: 85 | T28: TRUE
C29: Operating service revenues | E29: =E28+E27 ->  | H29: 2907 | I29: 2909 | J29: 2903 | L29: 11672 | N29: 2934 | O29: 2920 | P29: 2891 | Q29: 2927 | T29: TRUE
A30: T401050 | C30: Data | E30: =((ROUND(_xll.EPMRetrieveData($A$1,$A$30,$A$2,$A$3,$A$4,$A$5,$C$7,$A$7,$A$10,E13)/1000000,0))) ->  | H30: 130 | I30: 73 | J30: 99 | L30: 463 | N30: 132 | O30: 86 | P30: 101 | Q30: 144 | T30: TRUE
C31: Equipment and other | E31: =ROUND(_xll.EPMRetrieveData($A$1,$A$27,$A$2,$A$3,$A$4,$A$5,$C$7,$A$7,$A$10,E13)/1000000,0) ->  | H31: 9 | I31: 13 | J31: 11 | L31: 43 | N31: 13 | O31: 9 | P31: 11 | Q31: 10 | T31: TRUE
C32: External product revenues | E32: =E31+E30 ->  | H32: 139 | I32: 86 | J32: 110 | L32: 506 | N32: 145 | O32: 95 | P32: 112 | Q32: 154 | T32: TRUE
A33: T401040 | C33: Inter-segment product revenues | E33: =ROUND(_xll.EPMRetrieveData($A$1,$A$33,$A$2,$A$3,$A$4,$A$5,$C$6,$A$7,$A$10,E13)/1000000,0) ->  | H33: 0 | I33: 0 | J33: 0 | L33: 0 | N33: 0 | O33: 0 | P33: 0 | Q33: 0 | T33: TRUE
C34: Operating product revenues | E34: =E33+E32 ->  | H34: 139 | I34: 86 | J34: 110 | L34: 506 | N34: 145 | O34: 95 | P34: 112 | Q34: 154 | T34: TRUE
A35: t401000 | C35: Total external revenues | E35: =ROUND(_xll.EPMRetrieveData($A$1,$A$35,$A$2,$A$3,$A$4,$A$5,$C$7,$A$7,$A$10,E13)/1000000,0) ->  | H35: 2942 | I35: 2894 | J35: 2911 | L35: 11820 | N35: 2985 | O35: 2922 | P35: 2917 | Q35: 2996 | T35: TRUE
C36: Total operating revenues | E36: =E34+E29 ->  | H36: 3046 | I36: 2995 | J36: 3013 | L36: 12178 | N36: 3079 | O36: 3015 | P36: 3003 | Q36: 3081 | T36: TRUE
C37: Operating costs | E37: ='BCE Inc. Seg Info HIST p5'!E31 ->  | H37: -1729 | I37: -1680 | J37: -1646 | L37: -6863 | N37: -1753 | O37: -1682 | P37: -1710 | Q37: -1718 | T37: TRUE
C38: Adjusted EBITDA | E38: ='BCE Inc. Seg Info HIST p5'!E39 ->  | H38: 1317 | I38: 1315 | J38: 1367 | L38: 5315 | N38: 1326 | O38: 1333 | P38: 1293 | Q38: 1363 | T38: TRUE
C39: Adjusted EBITDA margin | E39: ='BCE Inc. Seg Info HIST p5'!E40 ->  | G39: ='BCE Inc. Seg Info HIST p5'!G40 ->  | H39: 0.432 | I39: 0.439 | J39: 0.454 | L39: 0.436 | N39: 0.431 | O39: 0.4421227197 | P39: 0.431 | Q39: 0.442
C41: Capital expenditures | E41: ='BCE Inc. Seg Info HIST p5'!E49 -> 3887 | G41: ='BCE Inc. Seg Info HIST p5'!G49 -> 1251 | H41: 1038 | I41: 910 | J41: ='BCE Inc. Seg Info HIST p5'!J49 -> 688 | K41: ='BCE Inc. Seg Info HIST p5'!K49 -> 0 | L41: ='BCE Inc. Seg Info HIST p5'!L49 -> 3612 | M41: ='BCE Inc. Seg Info HIST p5'!M49 -> 0 | N41: ='BCE Inc. Seg Info HIST p5'!N49 -> 1141 | O41: ='BCE Inc. Seg Info HIST p5'!O49 -> 884 | P41: ='BCE Inc. Seg Info HIST p5'!P49 -> 880 | Q41: ='BCE Inc. Seg Info HIST p5'!Q49 -> 707 | S41: TRUE | T41: TRUE
C42: Capital intensity | E42: ='BCE Inc. Seg Info HIST p5'!E50 ->  | G42: ='BCE Inc. Seg Info HIST p5'!G50 ->  | H42: 0.3407747866 | I42: 0.3038397329 | J42: ='BCE Inc. Seg Info HIST p5'!J50 -> 0.2283438433 | K42: ='BCE Inc. Seg Info HIST p5'!K50 ->  | L42: ='BCE Inc. Seg Info HIST p5'!L50 -> 0.296600427 | M42: ='BCE Inc. Seg Info HIST p5'!M50 ->  | N42: ='BCE Inc. Seg Info HIST p5'!N50 -> 0.370574862 | O42: ='BCE Inc. Seg Info HIST p5'!O50 -> 0.2932006633 | P42: ='BCE Inc. Seg Info HIST p5'!P50 -> 0.293040293 | Q42: ='BCE Inc. Seg Info HIST p5'!Q50 -> 0.229470951
C43: Retail high-speed Internet subscribers | S43: TRUE | T43: TRUE
C44: Retail net subscriber activations | E44: 201762 | G44: =E44-H44-I44-J44 -> 63465.86585 | H44: 89652 | I44: 22620 | J44: 26024.13415 | L44: 152285 | N44: 47618 | O44: 65779 | P44: 17680 | Q44: 21208 | S44: TRUE | T44: TRUE
C45: Retail subscribers EOP(A) (B) | E45: 4258570 | G45: =E45 -> 4258570 | H45: 4067038.858 | I45: 3977386.858 | J45: 3954766.858 | L45: 3861652.723 | N45: 3861652.723 | O45: 3814034.647 | P45: 3748255.647 | Q45: 3730576
C46: Retail TV subscribers | S46: TRUE | T46: TRUE
C47: Retail net subscriber activations (losses) | E47: 5148 | G47: =E47-H47-I47-J47 -> 14183 | H47: 10853 | I47: -11527 | J47: -8361 | L47: 2530 | N47: 6049 | O47: 10521 | P47: -4928 | Q47: -9112 | S47: TRUE | T47: TRUE
C48: IPTV | E48: 94400 | G48: =E48-H48-I48-J48 -> 40209 | H48: 38093 | I48: 3838 | J48: 12260 | L48: 76068 | N48: 29191 | O48: 31641 | P48: 4540 | Q48: 10696 | S48: TRUE | T48: TRUE
C49: Satellite | E49: -89252 | G49: =E49-H49-I49-J49 -> -26026 | H49: -27240 | I49: -15365 | J49: -20621 | L49: -73538 | N49: -23142 | O49: -21120 | P49: -9468 | Q49: -19808 | S49: TRUE | T49: TRUE
C50: Total retail subscribers EOP(A) (B) | E50: =SUM(E51:E52) -> 2751498 | G50: =E50 -> 2751498 | H50: 2734999.564 | I50: 2724147.138 | J50: 2735674.138 | L50: 2735010.138 | N50: 2735010.138 | O50: 2728961.138 | P50: 2718440.138 | Q50: 2723368
C51: IPTV(A) (B) | E51: 1988181 | G51: =E51 -> 1988181 | H51: 1945656.564 | I51: 1907564.138 | J51: 1903726.138 | L51: 1882441.138 | N51: 1882441.138 | O51: 1853250.138 | P51: 1821609.138 | Q51: 1817069
C52: Satellite | E52: 763317 | G52: =E52 -> 763317 | H52: 789343 | I52: 816583 | J52: 831948 | L52: 852569 | N52: 852569 | O52: 875711 | P52: 896831 | Q52: 906299
C53: Retail residential NAS | S53: TRUE | T53: TRUE
C54: Retail residential NAS lines net losses | E54: -175788 | G54: =E54-H54-I54-J54 -> -37878 | H54: -42853 | I54: -52712 | J54: -42345 | L54: -185327 | N54: -40211 | O54: -42755 | P54: -51292 | Q54: -51069 | S54: TRUE | T54: TRUE
C55: Retail residential NAS lines(A) (B) | E55: 2190771 | G55: =E55 -> 2190771 | H55: 2164151 | I55: 2207004 | J55: 2259716 | L55: 2298605 | N55: 2298605 | O55: 2338816 | P55: 2381571 | Q55: 2432863
C57: (A) | D57: In Q1 2022, as a result of the acquisition of EBOX and other related companies, our retail high-speed Internet, retail IPTV and retail residential NAS lines subscriber bases increased by 67,090, 9,025 and 3,456 subscribers, respectively.
C58: (B) | D58: In Q4 2022, as a result of the acquisition of Distributel, our retail high-speed Internet, retail IPTV and retail residential NAS lines subscriber bases increased by 128,065, 2,315 and 64,498 subscribers, respectively.
D66: External service revenues | E66: =SUM(E24:E26)=E27 ->  | H66: =SUM(H24:H26)=H27 -> TRUE | I66: =SUM(I24:I26)=I27 -> TRUE | J66: =SUM(J24:J26)=J27 -> TRUE | K66: TRUE | L66: TRUE | M66: TRUE | N66: TRUE | O66: TRUE | P66: TRUE | Q66: TRUE
D67: Operating service revenues | E67: =(E27+E28)=E29 ->  | H67: =(H27+H28)=H29 -> TRUE | I67: =(I27+I28)=I29 -> TRUE | J67: =(J27+J28)=J29 -> TRUE | K67: TRUE | L67: TRUE | M67: TRUE | N67: TRUE | O67: TRUE | P67: TRUE | Q67: TRUE
D68: External product revenues | E68: =(E30+E31)=E32 ->  | H68: =(H30+H31)=H32 -> TRUE | I68: =(I30+I31)=I32 -> TRUE | J68: =(J30+J31)=J32 -> TRUE | K68: TRUE | L68: TRUE | M68: TRUE | N68: TRUE | O68: TRUE | P68: TRUE | Q68: TRUE
D69: Total external revenues | E69: =(E27+E32)=E35 ->  | H69: =(H27+H32)=H35 -> TRUE | I69: =(I27+I32)=I35 -> TRUE | J69: =(J27+J32)=J35 -> TRUE | K69: TRUE | L69: TRUE | M69: TRUE | N69: TRUE | O69: TRUE | P69: TRUE | Q69: TRUE
D70: Total operating revenues | E70: =(E29+E34)=E36 ->  | H70: =(H29+H34)=H36 -> TRUE | I70: =(I29+I34)=I36 -> TRUE | J70: =(J29+J34)=J36 -> TRUE | K70: TRUE | L70: TRUE | M70: TRUE | N70: TRUE | O70: TRUE | P70: TRUE | Q70: TRUE
D71: Adjusted EBITDA | E71: =(E36+E37)=E38 ->  | H71: =(H36+H37)=H38 -> TRUE | I71: =(I36+I37)=I38 -> TRUE | J71: =(J36+J37)=J38 -> TRUE | K71: TRUE | L71: TRUE | M71: TRUE | N71: TRUE | O71: TRUE | P71: TRUE | Q71: TRUE

Sheet CTS Metrics HIST Info p11
N1: Indicateurs de Bell SCT – Tendance historique
C3: Cumul | I3: TOTAL
A4: (en millions de dollars canadiens, sauf indication contraire) (non audité) | C4: 2025 | E4: T3 25 | F4: T2 25 | G4: T1 25 | I4: 2024 | K4: T4 24 | L4: T3 24 | M4: T2 24 | N4: T1 24
A5: Abonnés utilisant des téléphones mobiles
A6: Activations brutes d’abonnés | C6: 1493843 | E6: 514661 | F6: 510597 | G6: 468585 | I6: 2351507 | K6: 680471 | L6: 588263 | M6: 575334 | N6: 507439
A7: Services postpayés | C7: 967295 | E7: 315607 | F7: 331438 | G7: 320250 | I7: 1641053 | K7: 510850 | L7: 374116 | M7: 389213 | N7: 366874
A8: Services prépayés | C8: 526548 | E8: 199054 | F8: 179159 | G8: 148335 | I8: 710454 | K8: 169621 | L8: 214147 | M8: 186121 | N8: 140565
A9: Activations (pertes) nettes d’abonnés | C9: 161901 | E9: 68018 | F9: 94479 | G9: -596 | I9: 309517 | K9: 51070 | L9: 102196 | M9: 131043 | N9: 25208
A10: Services postpayés | C10: 46460 | E10: 11511 | F10: 44547 | G10: -9598 | I10: 213408 | K10: 56550 | L10: 33111 | M10: 78500 | N10: 45247
A11: Services prépayés | C11: 115441 | E11: 56507 | F11: 49932 | G11: 9002 | I11: 96109 | K11: -5480 | L11: 69085 | M11: 52543 | N11: -20039
A12: Abonnés à la fin de la période (A) (D) (E) | C12: 10398934 | E12: 10398934 | F12: 10382457 | G12: 10287978 | I12: 10288574 | K12: 10288574 | L12: 10361720 | M12: 10337495 | N12: 10206452
A13: Services postpayés (A) | C13: 9525355 | E13: 9525355 | F13: 9565385 | G13: 9520838 | I13: 9530436 | K13: 9530436 | L13: 9473886 | M13: 9440775 | N13: 9362275
A14: Services prépayés (D) (E) | C14: 873579 | E14: 873579 | F14: 817072 | G14: 767140 | I14: 758138 | K14: 758138 | L14: 887834 | M14: 896720 | N14: 844177
A15: RMU combiné ($/mois) (A) (D) (E) | C15: 57.58 | E15: 58.04 | F15: 57.61 | G15: 57.08 | I15: 57.9 | K15: 57.15 | L15: 58.26 | M15: 58.04 | N15: 58.14
A16: Taux de désabonnement combiné (%) (moyen par mois) | C16: 0.0145 | E16: 0.0145 | F16: 0.0136 | G16: 0.0155 | I16: 0.0167 | K16: 0.0203 | L16: 0.0158 | M16: 0.0147 | N16: 0.0159
A17: Services postpayés | C17: 0.0113 | E17: 0.0113 | F17: 0.0106 | G17: 0.0121 | I17: 0.0133 | K17: 0.0166 | L17: 0.0128 | M17: 0.0118 | N17: 0.0121
A18: Services prépayés | C18: 0.053 | E18: 0.051 | F18: 0.0506 | G18: 0.0577 | I18: 0.0528 | K18: 0.0615 | L18: 0.0466 | M18: 0.046 | N18: 0.0574
A19: Activations d’abonnés utilisant des appareils mobiles
A20: Activations nettes d’abonnés | C20: 216991 | E20: 83505 | F20: 97502 | G20: 35984 | I20: 310882 | K20: 100343 | L20: 56216 | M20: 87917 | N20: 66406
A21: Abonnés à la fin de la période (A) | C21: 3252554 | E21: 3252554 | F21: 3176916 | G21: 3079414 | I21: 3043430 | K21: 3043430 | L21: 2943087 | M21: 2886871 | N21: 2798954
A22: Abonnés des services Internet haute vitesse de détail
B23: Bell SCT – Canada | C23: 35940 | E23: 21426 | F23: 4999 | G23: 9515 | I23: 131521 | K23: 34187 | L23: 42415 | M23: 23841 | N23: 31078
B24: Bell SCT – États-Unis | C24: 4685 | E24: 4685 | F24: 0 | G24: 0 | H24: 0 | I24: 0 | J24: 0 | K24: 0 | L24: 0 | M24: 0 | N24: 0
A25: Activations nettes d’abonnés des services de détail – Bell SCT | C25: 40625 | E25: 26111 | F25: 4999 | G25: 9515 | I25: 131521 | K25: 34187 | L25: 42415 | M25: 23841 | N25: 31078
B26: Bell SCT – Canada (C) (E) | C26: 4443387 | E26: 4443387 | F26: 4421961 | G26: 4416962 | I26: 4490896 | K26: 4490896 | L26: 4456709 | M26: 4520553 | N26: 4496712
B27: Bell SCT – États-Unis (B) | C27: 446910 | E27: 446910 | F27: 0 | G27: 0 | H27: 0 | I27: 0 | J27: 0 | K27: 0 | L27: 0 | M27: 0 | N27: 0
A28: Abonnés des services de détail à la fin de la période – Bell SCT (B) (C) (E) | C28: 4890297 | E28: 4890297 | F28: 4421961 | G28: 4416962 | I28: 4490896 | K28: 4490896 | L28: 4456709 | M28: 4520553 | N28: 4496712
A29: Abonnés des services de télé IP de détail
B30: Bell SCT – Canada | C30: -47983 | E30: -16161 | F30: -15851 | G30: -15971 | I30: 21614 | K30: -444 | L30: 9197 | M30: -1313 | N30: 14174
B31: Bell SCT – États-Unis | C31: -57 | E31: -57 | F31: 0 | G31: 0 | H31: 0 | I31: 0 | J31: 0 | K31: 0 | L31: 0 | M31: 0 | N31: 0
A32: (Pertes) activations nettes d’abonnés des services de télé IP de détail – Bell SCT | C32: -48040 | E32: -16218 | F32: -15851 | G32: -15971 | I32: 21614 | K32: -444 | L32: 9197 | M32: -1313 | N32: 14174
B33: Bell SCT – Canada (C) (F) | C33: 2084529 | E33: 2084529 | F33: 2100690 | G33: 2116541 | I33: 2132953 | K33: 2132953 | L33: 2133397 | M33: 2124200 | N33: 2084516
B34: Bell SCT – États-Unis (B) | C34: 6032 | E34: 6032 | F34: 0 | G34: 0 | H34: 0 | I34: 0 | J34: 0 | K34: 0 | L34: 0 | M34: 0 | N34: 0
A35: Abonnés des services de télé IP de détail à la fin de la période – Bell SCT (B) (C) (F) | C35: 2090561 | E35: 2090561 | F35: 2100690 | G35: 2116541 | I35: 2132953 | K35: 2132953 | L35: 2133397 | M35: 2124200 | N35: 2084516
A36: SAR résidentiels de détail
B37: Bell SCT – Canada | C37: -134996 | E37: -42866 | F37: -44700 | G37: -47430 | I37: -187426 | K37: -42591 | L37: -47674 | M37: -53250 | N37: -43911
B38: Bell SCT – États-Unis | C38: -3124 | E38: -3124 | F38: 0 | G38: 0 | H38: 0 | I38: 0 | J38: 0 | K38: 0 | L38: 0 | M38: 0 | N38: 0
A39: Pertes nettes d’abonnés des SAR filaires résidentiels de détail – Bell SCT | C39: -138120 | E39: -45990 | F39: -44700 | G39: -47430 | I39: -187426 | K39: -42591 | L39: -47674 | M39: -53250 | N39: -43911
B40: Bell SCT – Canada (C) | C40: 1685045 | E40: 1685045 | F40: 1727911 | G40: 1772611 | I40: 1834191 | K40: 1834191 | L40: 1876782 | M40: 1924456 | N40: 1977706
B41: Bell SCT – États-Unis (B) | C41: 81316 | E41: 81316 | F41: 0 | G41: 0 | H41: 0 | I41: 0 | J41: 0 | K41: 0 | L41: 0 | M41: 0 | N41: 0
A42: Abonnés des SAR filaires résidentiels de détail – Bell SCT (B) (C) | C42: 1766361 | E42: 1766361 | F42: 1727911 | G42: 1772611 | I42: 1834191 | K42: 1834191 | L42: 1876782 | M42: 1924456 | N42: 1977706
A44: (A) | B44: Au T3 2025, Bell SCT – Canada a réduit sa clientèle d’abonnés des services postpayés utilisant des téléphones mobiles et des appareils mobiles connectés de 51 541 et 7 867, respectivement, à la suite de l’examen d’un compte client du secteur public visant à éliminer les abonnés non utilisateurs.
A45: (B) | B45: Au T3 2025, à la suite de l’acquisition de Ziply Fiber le 1er août 2025, la clientèle d’abonnés de Bell SCT – États-Unis pour les services Internet haute vitesse de détail, des services de télé IP de détail et des SAR filaires résidentiels de détail ont augmenté de 442 225 abonnés, de 6 089 abonnés et de 84 440 abonnés, respectivement.
A46: (C) | B46: Au T1 2025, nous avons réduit notre clientèle d’abonnés des services Internet haute vitesse de détail, des services de télé IP de détail et des SAR filaires résidentiels de détail de 80 666 abonnés, de 441 abonnés et de 14 150 abonnés, respectivement, dans le secteur Bell SCT – Canada, au 31 mars 2025, car nous avons cessé de vendre de nouveaux forfaits des marques Distributel, Acanac, Oricom et B2B2C pour ces services. En outre, au début du T1 2025, nous avons réduit notre clientèle d’abonnés des services Internet haute vitesse de détail de 2 783 abonnés, dans le secteur Bell SCT – Canada, afin d’ajuster le nombre pour tenir compte des désactivations d’abonnés de l’exercice précédent à la suite d’un examen du compte de nos abonnés.
A47: (D) | B47: Au T4 2024, nous avons retiré 124 216 abonnés des services prépayés utilisant des téléphones mobiles de Bell de notre clientèle d’abonnés des services prépayés utilisant des téléphones mobiles, dans le secteur Bell SCT – Canada, au 31 décembre 2024, car nous avons cessé de vendre de nouveaux forfaits pour ces services à cette date.
A48: (E) | B48: Au T3 2024, nous avons retiré 77 971 abonnés des services prépayés utilisant des téléphones mobiles de Virgin Plus de notre clientèle d’abonnés des services prépayés utilisant des téléphones mobiles, dans le secteur Bell SCT – Canada, au 30 septembre 2024, car nous avons cessé de vendre de nouveaux forfaits pour ces services à cette date. En outre, en raison d’une récente décision du Conseil de la radiodiffusion et des télécommunications canadiennes (CRTC) visant les services d’accès Internet haute vitesse de gros, nous ne sommes plus en mesure de revendre des services Internet par câble à de nouveaux clients dans notre zone de couverture des services sur fil depuis le 12 septembre 2024 et, par conséquent, dans le secteur Bell SCT – Canada, nous avons retiré la totalité des 106 259 abonnés existants aux services par câble dans la zone de couverture des services sur fil de notre clientèle d’abonnés des services Internet haute vitesse de détail à cette date.
A49: (F) | B49: Au T2 2024, nous avons augmenté notre clientèle d’abonnés des services de télé IP de détail de 40 997 abonnés, dans le secteur Bell SCT – Canada, pour aligner le calcul de la désactivation de nos services de télé en continu Télé Fibe sur celui de notre service Télé Fibe traditionnel.

Sheet Net Debt & Bell other info p12
M1: BCE
M2: Dette nette et autres renseignements
A5: BCE – Dette nette et actions privilégiées
A6: (en millions de dollars canadiens, sauf indication contraire) (non audité)
J8: 30 septembre | K8: 30 juin | L8: 31 mars | M8: 31 décembre
J9: 2025 | K9: 2025 | L9: 2025 | M9: 2024
A11: Dette à long terme | J11: 35155 | K11: 32522 | L11: 33869 | M11: 32835
A12: Moins : 50 % de la dette subordonnée de rang inférieur | J12: -2177 | K12: -2146 | L12: -2225 | M12: 0
A13: Dette à court terme | J13: 5820 | K13: 5037 | L13: 5323 | M13: 7669
A14: 50 % des actions privilégiées | J14: 1669 | K14: 1712 | L14: 1741 | M14: 1767
A15: Trésorerie | J15: -460 | K15: -507 | L15: -1049 | M15: -1572
A16: Équivalents de trésorerie | J16: -5 | K16: -3 | L16: -3 | M16: 0
A17: Placements à court terme | J17: 0 | K17: 0 | L17: 0 | M17: -400
A18: Dette nette (A) | J18: 40002 | K18: 36615 | L18: 37656 | M18: 40299
A19: Ratio de levier financier net (A) | J19: 3.77 | K19: 3.47 | L19: 3.56 | M19: 3.81
A22: Informations sur les flux de trésorerie
A23: (en millions de dollars canadiens, sauf indication contraire) (non audité) | E23: T3 | F23: T3 | G23: Variation | H23: % de | J23: Cumul | K23: Cumul | L23: Variation | M23: % de
E24: 2025 | F24: 2024 | G24: ($) | H24: variation | J24: 2025 | K24: 2024 | L24: ($) | M24: variation
A25: Flux de trésorerie disponibles (FTD) (A) et FTD après les paiements au titre d’obligations locatives (A)
A26: Flux de trésorerie liés aux activités d’exploitation | E26: 1914 | F26: 1842 | G26: 72 | H26: 0.03908794788 | J26: 5432 | K26: 5111 | L26: 321 | M26: 0.06280571317
A27: Dépenses d’investissement | E27: -891 | F27: -954 | G27: 63 | H27: 0.06603773585 | J27: -2383 | K27: -2934 | L27: 551 | M27: 0.1877982277
A28: Dividendes en trésorerie payés sur actions privilégiées | E28: -28 | F28: -43 | G28: 15 | H28: 0.3488372093 | J28: -105 | K28: -134 | L28: 29 | M28: 0.2164179104
A29: Dividendes en trésorerie payés par des filiales aux détenteurs de PNDPC | E29: -25 | F29: -14 | G29: -11 | H29: -0.7857142857 | J29: -38 | K29: -56 | L29: 18 | M29: 0.3214285714
A30: Coûts liés aux acquisitions et autres payés | E30: 33 | F30: 1 | G30: 32 | H30: n.s. | J30: 47 | K30: 27 | L30: 20 | M30: 0.7407407407
A31: FTD | E31: 1003 | F31: 832 | G31: 171 | H31: 0.2055288462 | J31: 2953 | K31: 2014 | L31: 939 | M31: 0.4662363456
A32: Paiement de capital au titre d’obligations locatives | E32: -297 | F32: -305 | G32: 8 | H32: 0.0262295082 | J32: -879 | K32: -872 | L32: -7 | M32: -0.008027522936
A33: FTD après les paiements au titre d’obligations locatives | E33: 706 | F33: 527 | G33: 179 | H33: 0.339658444 | J33: 2074 | K33: 1142 | L33: 932 | M33: 0.8161120841
A36: Informations sur les flux de trésorerie – Tendance historique
A37: (en millions de dollars canadiens, sauf indication contraire) (non audité) | D37: Cumul | E37: T3 | F37: T2 | G37: T1 | H37: TOTAL | J37: T4 | K37: T3 | L37: T2 | M37: T1
D38: 2025 | E38: 2025 | F38: 2025 | G38: 2025 | H38: 2024 | J38: 2024 | K38: 2024 | L38: 2024 | M38: 2024
A39: FTD et FTD après les paiements au titre d’obligations locatives
A40: Flux de trésorerie liés aux activités d’exploitation | D40: 5432 | E40: 1914 | F40: 1947 | G40: 1571 | H40: 6988 | J40: 1877 | K40: 1842 | L40: 2137 | M40: 1132
A41: Dépenses d’investissement | D41: -2383 | E41: -891 | F41: -763 | G41: -729 | H41: -3897 | J41: -963 | K41: -954 | L41: -978 | M41: -1002
A42: Dividendes en trésorerie payés sur actions privilégiées | D42: -105 | E42: -28 | F42: -38 | G42: -39 | H42: -187 | J42: -53 | K42: -43 | L42: -45 | M42: -46
A43: Dividendes en trésorerie payés par des filiales aux détenteurs de PNDPC | D43: -38 | E43: -25 | F43: 0 | G43: -13 | H43: -68 | J43: -12 | K43: -14 | L43: -28 | M43: -14
A44: Coûts liés aux acquisitions et autres payés | D44: 47 | E44: 33 | F44: 6 | G44: 8 | H44: 52 | J44: 25 | K44: 1 | L44: 11 | M44: 15
A45: FTD | D45: 2953 | E45: 1003 | F45: 1152 | G45: 798 | H45: 2888 | J45: 874 | K45: 832 | L45: 1097 | M45: 85
A46: Paiement de capital au titre d’obligations locatives | D46: -879 | E46: -297 | F46: -278 | G46: -304 | H46: -1142 | J46: -270 | K46: -305 | L46: -270 | M46: -297
A47: FTD après les paiements au titre d’obligations locatives | D47: 2074 | E47: 706 | F47: 874 | G47: 494 | H47: 1746 | J47: 604 | K47: 527 | L47: 827 | M47: -212
A50: n.s. : non significatif
A51: (A) | B51: La dette nette, les flux de trésorerie disponibles et les flux de trésorerie disponibles après les paiements au titre d’obligations locatives sont des mesures financières non conformes aux PCGR, et le ratio de levier financier net est une mesure de gestion du capital. Se reporter à la note 2.1, Mesures financières non conformes aux PCGR et à la note‍ 2.4, Mesures de gestion du capital dans les notes annexes du présent rapport pour en savoir plus sur ces mesures.

Sheet BCE Inc. BS p13
I1: BCE
I2: États consolidés de la situation financière
C4: 30 septembre | E4: 30 juin | G4: 31 mars | I4: 31 décembre
A5: (en millions de dollars canadiens, sauf indication contraire) (non audité) | C5: 2025 | E5: 2025 | G5: 2025 | I5: 2024
A6: ACTIF
A7: Actifs courants
A8: Trésorerie | C8: 460 | D8: 460 | E8: 507 | G8: 1049 | I8: 1572
A9: Équivalents de trésorerie | C9: 5 | D9: 5 | E9: 3 | G9: 3 | I9: 0
A10: Placements à court terme | C10: 0 | D10: 0 | E10: 0 | G10: 0 | I10: 400
A11: Créances clients et autres débiteurs | C11: 4119 | D11: 4119 | E11: 4011 | G11: 4042 | I11: 4489
A12: Stocks | C12: 378 | D12: 378 | E12: 453 | G12: 422 | I12: 420
A13: Actifs sur contrats | C13: 503 | D13: 503 | E13: 485 | G13: 495 | I13: 477
A14: Coûts des contrats | C14: 780 | D14: 780 | E14: 713 | G14: 753 | I14: 702
A15: Charges payées d’avance | C15: 357 | D15: 357 | E15: 399 | G15: 344 | I15: 259
A16: Autres actifs courants | C16: 359 | D16: 360 | E16: 409 | G16: 593 | I16: 524
A17: Actifs détenus en vue de la vente | C17: 85 | D17: 85 | E17: 87 | G17: 79 | I17: 80
A18: Total des actifs courants | C18: 7046 | D18: 7047 | E18: 7067 | G18: 7780 | I18: 8923
A19: Actifs non courants
A20: Actifs sur contrats | C20: 257 | D20: 257 | E20: 259 | G20: 279 | I20: 282
A21: Coûts des contrats | C21: 957 | D21: 957 | E21: 955 | G21: 911 | I21: 888
A22: Immobilisations corporelles | C22: 32763 | D22: 32763 | E22: 29520 | G22: 29777 | I22: 30001
A23: Immobilisations incorporelles | C23: 16122 | D23: 16122 | E23: 16737 | G23: 16817 | I23: 16786
A24: Actifs d’impôt différé | C24: 241 | D24: 241 | E24: 138 | G24: 152 | I24: 136
A25: Participations dans des entreprises associées et des coentreprises | C25: 370 | D25: 370 | E25: 335 | G25: 337 | I25: 341
A26: Actifs au titre des avantages postérieurs à l’emploi | C26: 4014 | D26: 4193 | E26: 3710 | G26: 3647 | I26: 3578
A27: Autres actifs non courants | C27: 2269 | D27: 2269 | E27: 2238 | G27: 2292 | I27: 2289
A28: Goodwill | C28: 14544 | D28: 14544 | E28: 10175 | G28: 10170 | I28: 10261
A29: Total des actifs non courants | C29: 71537 | D29: 71716 | E29: 64067 | G29: 64382 | I29: 64562
A30: Total de l’actif | C30: 78583 | D30: 78763 | E30: 71134 | G30: 72162 | I30: 73485
A31: PASSIF
A32: Passifs courants
A33: Dettes fournisseurs et autres passifs | C33: 4178 | D33: 4178 | E33: 4288 | G33: 4134 | I33: 4507
A34: Passifs sur contrats | C34: 737 | D34: 737 | E34: 677 | G34: 773 | I34: 774
A35: Intérêts à payer | C35: 281 | D35: 281 | E35: 419 | G35: 284 | I35: 392
A36: Dividendes à payer | C36: 435 | D36: 435 | E36: 425 | G36: 944 | I36: 933
A37: Passifs d’impôt exigible | C37: 721 | D37: 721 | E37: 229 | G37: 137 | I37: 42
A38: Dette à court terme | C38: 5820 | D38: 5820 | E38: 5037 | G38: 5323 | I38: 7669
A39: Passifs détenus en vue de la vente | C39: 7 | D39: 7 | E39: 500 | G39: 525 | I39: 529
A40: Total des passifs courants | C40: 12179 | D40: 12179 | E40: 11575 | G40: 12120 | I40: 14846
A41: Passifs non courants
A42: Passifs sur contrats | C42: 377 | D42: 377 | E42: 374 | G42: 369 | I42: 350
A43: Dette à long terme | C43: 35155 | D43: 35155 | E43: 32522 | G43: 33869 | I43: 32835
A44: Passifs d’impôt différé | C44: 5526 | D44: 5526 | E44: 5516 | G44: 5335 | I44: 5244
A45: Obligations au titre des avantages postérieurs à l’emploi | C45: 1186 | D45: 1365 | E45: 1154 | G45: 1189 | I45: 1204
A46: Autres passifs non courants | C46: 1402 | D46: 1402 | E46: 1616 | G46: 1661 | I46: 1646
A47: Total des passifs non courants | C47: 43646 | D47: 43825 | E47: 41182 | G47: 42423 | I47: 41279
A48: Total du passif | C48: 55825 | D48: 56004 | E48: 52757 | G48: 54543 | I48: 56125
A50: CAPITAUX PROPRES
A51: Capitaux propres attribuables aux actionnaires de BCE
A52: Actions privilégiées | C52: 3338 | D52: 3338 | E52: 3424 | G52: 3481 | I52: 3533
A53: Actions ordinaires | C53: 21493 | D53: 21493 | E53: 21493 | G53: 21174 | I53: 20860
A54: Surplus d’apport | C54: 1321 | D54: 1321 | E54: 1295 | G54: 1271 | I54: 1278
A55: Cumul des autres éléments de bénéfice global (perte globale) | C55: 295 | D55: 370 | E55: 240 | G55: 45 | I55: -159
A56: Cumul des écarts de conversion | C56: 75 | E56: 0 | G56: 0 | I56: 0
A57: Déficit | C57: -4064 | D57: -4064 | E57: -8385 | G57: -8638 | I57: -8441
A58: Total des capitaux propres attribuables aux actionnaires de BCE | C58: 22458 | D58: 22458 | E58: 18067 | G58: 17333 | I58: 17071
A59: PNDPC | C59: 300 | D59: 301 | E59: 310 | G59: 286 | I59: 289
A60: Total des capitaux propres | C60: 22758 | D60: 22759 | E60: 18377 | G60: 17619 | I60: 17360
A61: Total du passif et des capitaux propres | C61: 78583 | D61: 78763 | E61: 71134 | G61: 72162 | I61: 73485
A62: Nombre d’actions ordinaires en circulation (en millions) | C62: 932.5 | E62: 932.5 | G62: 921.8 | I62: 912.3

Sheet BCE Inc. CF Summary p14
K1: BCE
K2: Données consolidées sur les flux de trésorerie
B4: T3 | D4: T3 | F4: Variation | G4: Cumul | I4: Cumul | K4: Variation
A5: (en millions de dollars canadiens, sauf indication contraire) (non audité) | B5: 2025 | D5: 2024 | F5: ($) | G5: 2025 | I5: 2024 | K5: ($)
A7: Bénéfice net (perte nette) | B7: 4555 | D7: -1191 | F7: 5746 | G7: 5882 | I7: -130 | K7: 6012
A8: Ajustements afin de rapprocher le bénéfice net (la perte nette) et les flux de trésorerie liés aux activités d’exploitation
A9: Coûts liés aux indemnités de départ, aux acquisitions et autres | B9: 82 | D9: 49 | F9: 33 | G9: 370 | I9: 300 | K9: 70
A10: Amortissements | B10: 1309 | D10: 1259 | F10: 50 | G10: 3868 | I10: 3791 | K10: 77
A11: Coût des régimes d’avantages postérieurs à l’emploi | B11: 24 | D11: 34 | F11: -10 | G11: 72 | I11: 109 | K11: -37
A12: Charges d’intérêts nettes | B12: 437 | D12: 405 | F12: 32 | G12: 1261 | I12: 1190 | K12: 71
A13: Perte de valeur d’actifs | B13: 970 | D13: 2113 | F13: -1143 | G13: 987 | I13: 2186 | K13: -1199
A14: Profits sur placements | B14: -5175 | D14: -66 | F14: -5109 | G14: -5165 | I14: -58 | K14: -5107
A15: Pertes nettes sur participations mises en équivalence dans des entreprises associées et des coentreprises | B15: 0 | D15: 154 | F15: -154 | G15: 0 | I15: 247 | K15: -247
A16: Impôt sur le résultat | B16: 495 | D16: 5 | F16: 490 | G16: 992 | I16: 402 | K16: 590
A17: Cotisations aux régimes d’avantages postérieurs à l’emploi | B17: -12 | D17: -12 | F17: 0 | G17: -42 | I17: -40 | K17: -2
A18: Paiements en vertu de régimes d’autres avantages postérieurs à l’emploi | B18: -15 | D18: -16 | F18: 1 | G18: -44 | I18: -47 | K18: 3
A19: Coûts liés aux indemnités de départ et autres payés | B19: -74 | D19: -129 | F19: 55 | G19: -353 | I19: -273 | K19: -80
A20: Intérêts payés | B20: -620 | D20: -532 | F20: -88 | G20: -1489 | I20: -1367 | K20: -122
A21: Impôt sur le résultat payé (après remboursements) | B21: -141 | D21: -96 | F21: -45 | G21: -265 | I21: -562 | K21: 297
A22: Coûts liés aux acquisitions et autres payés | B22: -33 | D22: -1 | F22: -32 | G22: -47 | I22: -27 | K22: -20
A23: Variation nette des actifs et des passifs d’exploitation | B23: 112 | D23: -134 | F23: 246 | G23: -595 | I23: -610 | K23: 15
A24: Flux de trésorerie liés aux activités d’exploitation | B24: 1914 | D24: 1842 | F24: 72 | G24: 5432 | I24: 5111 | K24: 321
A25: Dépenses d’investissement | B25: -891 | D25: -954 | F25: 63 | G25: -2383 | I25: -2934 | K25: 551
A26: Dividendes en trésorerie payés sur actions privilégiées | B26: -28 | D26: -43 | F26: 15 | G26: -105 | I26: -134 | K26: 29
A27: Dividendes en trésorerie payés par des filiales aux détenteurs de PNDPC | B27: -25 | D27: -14 | F27: -11 | G27: -38 | I27: -56 | K27: 18
A28: Coûts liés aux acquisitions et autres payés | B28: 33 | D28: 1 | F28: 32 | G28: 47 | I28: 27 | K28: 20
A29: FTD | B29: 1003 | D29: 832 | F29: 171 | G29: 2953 | I29: 2014 | K29: 939
A30: Paiement de capital au titre d’obligations locatives | B30: -297 | D30: -305 | F30: 8 | G30: -879 | I30: -872 | K30: -7
A31: FTD après les paiements au titre d’obligations locatives | B31: 706 | D31: 527 | F31: 179 | G31: 2074 | I31: 1142 | K31: 932
A32: Acquisitions d’entreprises | B32: -4857 | D32: -73 | F32: -4784 | G32: -4880 | I32: -590 | K32: -4290
A33: Cessions d’entreprises | B33: 0 | D33: 0 | F33: 0 | G33: 38 | I33: 0 | K33: 38
A34: Diminution des placements | B34: 4686 | D34: 10 | F34: 4676 | G34: 4686 | I34: 10 | K34: 4676
A35: Coûts liés aux acquisitions et autres payés | B35: -33 | D35: -1 | F35: -32 | G35: -47 | I35: -27 | K35: -20
A36: Diminution des placements à court terme | B36: 0 | D36: 0 | F36: 0 | G36: 400 | I36: 250 | K36: 150
A37: Licences de spectre | B37: -3 | D37: -13 | F37: 10 | G37: -3 | I37: -531 | K37: 528
A38: Autres activités d’investissement | B38: -145 | D38: -18 | F38: -127 | G38: -157 | I38: -39 | K38: -118
A39: Augmentation (diminution) des effets à payer | B39: 98 | D39: 763 | F39: -665 | G39: -628 | I39: 2146 | K39: -2774
A40: Émission de titres d’emprunt à long terme | B40: 2898 | D40: 10 | F40: 2888 | G40: 7653 | I40: 3818 | K40: 3835
A41: Remboursements sur la dette à long terme, déduction faite des paiements de capital au titre d’obligations locatives | B41: -2768 | D41: -38 | F41: -2730 | G41: -8167 | I41: -2109 | K41: -6058
A42: Achat d’actions pour le règlement de paiements fondés sur des actions | B42: -33 | D42: -42 | F42: 9 | G42: -129 | I42: -186 | K42: 57
A43: Rachat d’actions privilégiées | B43: -67 | D43: 0 | F43: -67 | G43: -143 | I43: -76 | K43: -67
A44: Dividendes en trésorerie payés sur actions ordinaires | B44: -408 | D44: -910 | F44: 502 | G44: -1618 | I44: -2703 | K44: 1085
A45: Autres activités de financement | B45: -121 | D45: -3 | F45: -118 | G45: -188 | I45: -17 | K45: -171
A46: Incidence des variations des taux de change sur la trésorerie et les équivalents de trésorerie | B46: 2 | D46: 0 | F46: 2 | G46: 2 | I46: 0 | K46: 2
B47: -751 | D47: -315 | F47: -436 | G47: -3181 | I47: -54 | K47: -3127
A48: (Diminution) augmentation nette de la trésorerie | B48: -47 | D48: 462 | F48: -509 | G48: -1112 | I48: 1313 | K48: -2425
A49: Trésorerie au début de la période | B49: 507 | D49: 1398 | F49: -891 | G49: 1572 | I49: 547 | K49: 1025
A50: Trésorerie à la fin de la période | B50: 460 | D50: 1860 | F50: -1400 | G50: 460 | I50: 1860 | K50: -1400
A51: Augmentation (diminution) nette des équivalents de trésorerie | B51: 2 | D51: -250 | F51: 252 | G51: 5 | I51: -225 | K51: 230
A52: Équivalents de trésorerie au début de la période | B52: 3 | D52: 250 | F52: -247 | G52: 0 | I52: 225 | K52: -225
A53: Équivalents de trésorerie à la fin de la période | B53: 5 | D53: 0 | F53: 5 | G53: 5 | I53: 0 | K53: 5

Sheet BCE Inc. CF HIST p15
M1: BCE
M2: Données consolidées sur les flux de trésorerie – Tendance historique
A4: (en millions de dollars canadiens, sauf indication contraire) (non audité) | B4: Cumul 2025 | D4: T3 25 | E4: T2 25 | F4: T1 25 | H4: TOTAL 2024 | J4: T4 24 | K4: T3 24 | L4: T2 24 | M4: T1 24
A6: Bénéfice net (perte nette) | B6: 5882 | D6: 4555 | E6: 644 | F6: 683 | H6: 375 | J6: 505 | K6: -1191 | L6: 604 | M6: 457
A7: Ajustements afin de rapprocher le bénéfice net (la perte nette) et les flux de trésorerie liés aux activités d’exploitation
A8: Coûts liés aux indemnités de départ, aux acquisitions et autres | B8: 370 | D8: 82 | E8: 41 | F8: 247 | H8: 454 | J8: 154 | K8: 49 | L8: 22 | M8: 229
A9: Amortissements | B9: 3868 | D9: 1309 | E9: 1287 | F9: 1272 | H9: 5041 | J9: 1250 | K9: 1259 | L9: 1270 | M9: 1262
A10: Coût des régimes d’avantages postérieurs à l’emploi | B10: 72 | D10: 24 | E10: 19 | F10: 29 | H10: 142 | J10: 33 | K10: 34 | L10: 31 | M10: 44
A11: Charges d’intérêts nettes | B11: 1261 | D11: 437 | E11: 427 | F11: 397 | H11: 1590 | J11: 400 | K11: 405 | L11: 401 | M11: 384
A12: Perte de valeur d’actifs | B12: 987 | D12: 970 | E12: 8 | F12: 9 | H12: 2190 | J12: 4 | K12: 2113 | L12: 60 | M12: 13
A13: (Profits) pertes sur placements | B13: -5165 | D13: -5175 | E13: 8 | F13: 2 | H13: -57 | J13: 1 | K13: -66 | L13: 2 | M13: 6
A14: Pertes nettes sur participations mises en équivalence dans des entreprises associées et des coentreprises | B14: 0 | D14: 0 | E14: 0 | F14: 0 | H14: 247 | J14: 0 | K14: 154 | L14: 93 | M14: 0
A15: Impôt sur le résultat | B15: 992 | D15: 495 | E15: 240 | F15: 257 | H15: 577 | J15: 175 | K15: 5 | L15: 231 | M15: 166
A16: Cotisations aux régimes d’avantages postérieurs à l’emploi | B16: -42 | D16: -12 | E16: -12 | F16: -18 | H16: -52 | J16: -12 | K16: -12 | L16: -10 | M16: -18
A17: Paiements en vertu de régimes d’autres avantages postérieurs à l’emploi | B17: -44 | D17: -15 | E17: -15 | F17: -14 | H17: -61 | J17: -14 | K17: -16 | L17: -15 | M17: -16
A18: Coûts liés aux indemnités de départ et autres payés | B18: -353 | D18: -74 | E18: -198 | F18: -81 | H18: -330 | J18: -57 | K18: -129 | L18: -98 | M18: -46
A19: Intérêts payés | B19: -1489 | D19: -620 | E19: -308 | F19: -561 | H19: -1759 | J19: -392 | K19: -532 | L19: -387 | M19: -448
A20: Impôt sur le résultat payé (après remboursements) | B20: -265 | D20: -141 | E20: -50 | F20: -74 | H20: -783 | J20: -221 | K20: -96 | L20: -131 | M20: -335
A21: Coûts liés aux acquisitions et autres payés | B21: -47 | D21: -33 | E21: -6 | F21: -8 | H21: -52 | J21: -25 | K21: -1 | L21: -11 | M21: -15
A22: Variation nette des actifs et des passifs d’exploitation | B22: -595 | D22: 112 | E22: -138 | F22: -569 | H22: -534 | J22: 76 | K22: -134 | L22: 75 | M22: -551
A23: Flux de trésorerie liés aux activités d’exploitation | B23: 5432 | D23: 1914 | E23: 1947 | F23: 1571 | H23: 6988 | J23: 1877 | K23: 1842 | L23: 2137 | M23: 1132
A24: Dépenses d’investissement | B24: -2383 | D24: -891 | E24: -763 | F24: -729 | H24: -3897 | J24: -963 | K24: -954 | L24: -978 | M24: -1002
A25: Dividendes en trésorerie payés sur actions privilégiées | B25: -105 | D25: -28 | E25: -38 | F25: -39 | H25: -187 | J25: -53 | K25: -43 | L25: -45 | M25: -46
A26: Dividendes en trésorerie payés par des filiales aux détenteurs de PNDPC | B26: -38 | D26: -25 | E26: 0 | F26: -13 | H26: -68 | J26: -12 | K26: -14 | L26: -28 | M26: -14
A27: Coûts liés aux acquisitions et autres payés | B27: 47 | D27: 33 | E27: 6 | F27: 8 | H27: 52 | J27: 25 | K27: 1 | L27: 11 | M27: 15
A28: FTD | B28: 2953 | D28: 1003 | E28: 1152 | F28: 798 | H28: 2888 | J28: 874 | K28: 832 | L28: 1097 | M28: 85
B29: 0 | D29: 0
A30: Paiement de capital au titre d’obligations locatives | B30: -879 | D30: -297 | E30: -278 | F30: -304 | H30: -1142 | J30: -270 | K30: -305 | L30: -270 | M30: -297
A31: FTD après les paiements au titre d’obligations locatives | B31: 2074 | D31: 706 | E31: 874 | F31: 494 | H31: 1746 | J31: 604 | K31: 527 | L31: 827 | M31: -212
A32: Acquisitions d’entreprises | B32: -4880 | D32: -4857 | E32: -24 | F32: 1 | H32: -624 | J32: -34 | K32: -73 | L32: -435 | M32: -82
A33: Cessions d’entreprises | B33: 38 | D33: 0 | E33: 36 | F33: 2 | G33: # | H33: 0 | J33: 0 | K33: 0 | L33: 0 | M33: 0
A34: Diminution des placements | B34: 4686 | D34: 4686 | E34: 0 | F34: 0 | H34: 12 | J34: 2 | K34: 10 | L34: 0 | M34: 0
A35: Coûts liés aux acquisitions et autres payés | B35: -47 | D35: -33 | E35: -6 | F35: -8 | H35: -52 | J35: -25 | K35: -1 | L35: -11 | M35: -15
A36: Diminution (augmentation) des placements à court terme | B36: 400 | D36: 0 | E36: 0 | F36: 400 | H36: 600 | J36: 350 | K36: 0 | L36: -50 | M36: 300
A37: Licences de spectre | B37: -3 | D37: -3 | E37: 0 | F37: 0 | H37: -531 | J37: 0 | K37: -13 | L37: -414 | M37: -104
A38: Autres activités d’investissement | B38: -157 | D38: -145 | E38: 1 | F38: -13 | H38: 2 | J38: 41 | K38: -18 | L38: -11 | M38: -10
A39: (Diminution) augmentation des effets à payer | B39: -628 | D39: 98 | E39: 405 | F39: -1131 | H39: 1945 | J39: -201 | K39: 763 | L39: 404 | M39: 979
A40: Émission de titres d’emprunt à long terme | B40: 7653 | D40: 2898 | E40: 318 | F40: 4437 | H40: 3834 | J40: 16 | K40: 10 | L40: 1617 | M40: 2191
A41: Remboursements sur la dette à long terme, exclusion faite des paiements de capital au titre d’obligations locatives | B41: -8167 | D41: -2768 | E41: -1447 | F41: -3952 | H41: -2161 | J41: -52 | K41: -38 | L41: -255 | M41: -1816
A42: Achat d’actions pour le règlement de paiements fondés sur des actions | B42: -129 | D42: -33 | E42: -32 | F42: -64 | H42: -235 | J42: -49 | K42: -42 | L42: -40 | M42: -104
A43: Rachat d’actions privilégiées | B43: -143 | D43: -67 | E43: -39 | F43: -37 | H43: -92 | J43: -16 | K43: 0 | L43: -38 | M43: -38
A44: Dividendes en trésorerie payés sur actions ordinaires | B44: -1618 | D44: -408 | E44: -608 | F44: -602 | H44: -3613 | J44: -910 | K44: -910 | L44: -910 | M44: -883
A45: Autres activités de financement | B45: -188 | D45: -121 | E45: -20 | F45: -47 | H45: -31 | J45: -14 | K45: -3 | L45: 4 | M45: -18
A46: Incidence des variations du taux de change sur la trésorerie et les équivalents de trésorerie | B46: 2 | D46: 2 | E46: 0 | F46: 0 | H46: 0 | J46: 0 | K46: 0 | L46: 0 | M46: 0
B47: -3181 | D47: -751 | E47: -1416 | F47: -1014 | H47: -946 | J47: -892 | K47: -315 | L47: -139 | M47: 400
A48: (Diminution) augmentation nette de la trésorerie | B48: -1112 | D48: -47 | E48: -542 | F48: -523 | H48: 1025 | J48: -288 | K48: 462 | L48: 609 | M48: 242
A49: Trésorerie au début de la période | B49: 1572 | D49: 507 | E49: 1049 | F49: 1572 | H49: 547 | J49: 1860 | K49: 1398 | L49: 789 | M49: 547
A50: Trésorerie à la fin de la période | B50: 460 | D50: 460 | E50: 507 | F50: 1049 | H50: 1572 | J50: 1572 | K50: 1860 | L50: 1398 | M50: 789
A51: Augmentation (diminution) nette des équivalents de trésorerie | B51: 5 | D51: 2 | E51: 0 | F51: 3 | H51: -225 | J51: 0 | K51: -250 | L51: 79 | M51: -54
A52: Équivalents de trésorerie au début de la période | B52: 0 | D52: 3 | E52: 3 | F52: 0 | H52: 225 | J52: 0 | K52: 250 | L52: 171 | M52: 225
A53: Équivalents de trésorerie à la fin de la période | B53: 5 | D53: 5 | E53: 3 | F53: 3 | H53: 0 | J53: 0 | K53: 0 | L53: 250 | M53: 171

Sheet Accomp Notes P16

Sheet Accomp Notes p17

Sheet Accomp Notes p18

Sheet Accomp Notes p19

Sheet Accomp Notes p20

Sheet Accomp Notes p21
